Workbook

Sheet BExRepositorySheet (hidden)
A1: 7

Sheet Ingresos
A2: EMPRESA DE ACUEDUCTO ALCANTARILLADO DE BOGOTA
A3: EJECUCION PRESUPUESTAL DE INGRESOS
A4: A 31 DE MAYO DE 2018
C5: 1 | D5: 2 | E5: 3 | F5: 4 | G5: 5 | H5: 6 | I5: 7=(6/4) | J5: 8=(4-6)
A6: CODIGO SECRETARIA DE HACIENDA | B6: RUBRO | C6: Presupuesto Inicial | D6: Modificaciones mes | E6: Modificaciones acumuladas | F6: Presupuesto Definitivo | G6: Recaudos mes | H6: Recaudos Acumulados | I6: % Ejecución Presupuestal | J6: Saldo por recaudar
A7: TOTAL INGRESOS + DISPONIBILIDAD INICIAL | C7: 3850633264000 | E7: 103123947963 | F7: 3953757211963 | G7: 183987157868 | H7: 1724924741134 | I7: 0.4362748264 | J7: 2228832470829
A8: 100000000000000 | B8: DISPONIBILIDAD INICIAL | C8: 810430807000 | E8: 14337600000 | F8: 824768407000 | H8: 824768407000 | I8: 1
A9: 00000100000000000000 | B9: DISPONIBILIDAD INICIAL | C9: 810430807000 | E9: 14337600000 | F9: 824768407000 | H9: 824768407000 | I9: 1
A10: 200000000000000 | B10: INGRESOS | C10: 3040202457000 | E10: 88786347963 | F10: 3128988804963 | G10: 183987157868 | H10: 900156334134 | I10: 0.2876828235 | J10: 2228832470829
A11: 210000000000000 | B11: INGRESOS CORRIENTES | C11: 1548930214000 | E11: 34307035818 | F11: 1583237249818 | G11: 175728781840 | H11: 769407310050 | I11: 0.4859709498 | J11: 813829939768
A12: 211000000000000 | B12: INGRESOS DE EXPLOTACION | C12: 1548930214000 | E12: 28316850294 | F12: 1577247064294 | G12: 171271452407 | H12: 762442117428 | I12: 0.4834005621 | J12: 814804946866
A13: 211020000000000 | B13: VENTA DE SERVICIOS | C13: 1532569244000 | E13: 28316850294 | F13: 1560886094294 | G13: 154599548852 | H13: 739607658000 | I13: 0.4738383286 | J13: 821278436294
A14: 00000211020100000000 | B14: SERVICIO ACUEDUCTO | C14: 801525787000 | F14: 801525787000 | G14: 65980100079 | H14: 327648972187 | I14: 0.4087815732 | J14: 473876814813
A15: 00000211020200000000 | B15: SERVICIO ALCANTARILLADO | C15: 677735457000 | F15: 677735457000 | G15: 83391753764 | H15: 336889108335 | I15: 0.4970805421 | J15: 340846348665
A16: 00000211020300000000 | B16: SERVICIO ASEO | C16: 53308000000 | E16: 28316850294 | F16: 81624850294 | G16: 5227695009 | H16: 75069577478 | I16: 0.9196902317 | J16: 6555272816
A17: 211990000000000 | B17: OTROS INGRESOS DE EXPLOTACIÓN | C17: 16360970000 | F17: 16360970000 | G17: 16671903555 | H17: 22834459428 | I17: 1.395666603 | J17: -6473489428
A18: 00000211990100000000 | B18: COMISIONES | C18: 1626574000 | F18: 1626574000 | G18: 132671172 | H18: 501148693 | I18: 0.3081007646 | J18: 1125425307
A19: 00000211990200000000 | B19: ARRENDAMIENTOS BIENES INMUEBLES | C19: 1114450000 | F19: 1114450000 | G19: 5440071 | H19: 196631253 | I19: 0.1764379317 | J19: 917818747
A20: 00000211990300000000 | B20: ARRENDAMIENTOS BIENES MUEBLES | G20: 913523334 | H20: 913523334 | J20: -913523334
A21: 00000211990400000000 | B21: INTERESES A USUARIOS | C21: 2498422000 | F21: 2498422000 | G21: 14027949076 | H21: 15181245372 | I21: 6.076333531 | J21: -12682823372
A22: 00000211990500000000 | B22: PUBLICACIONES | C22: 3156000 | F22: 3156000 | G22: 4504588 | H22: 18409004 | I22: 5.833017744 | J22: -15253004
A23: 00000211990700000000 | B23: SERVICIOS | C23: 498180000 | F23: 498180000 | G23: 63898367 | H23: 270996385 | I23: 0.5439728311 | J23: 227183615
A24: 00000211990800000000 | B24: CUOTAS PARTES PENSIONALES | G24: 165452525 | H24: 1254209726 | J24: -1254209726
A25: 00000211990900000000 | B25: EXTRAORDINARIOS - RECUPERACIONES | G25: 319068031 | H25: 1126141303 | J25: -1126141303
A26: 00000211991100000000 | B26: INGRESOS CENTRAL HIDROELECTRICA SANTA ANA | C26: 10620188000 | F26: 10620188000 | G26: 966933628 | H26: 3143392518 | I26: 0.2959827564 | J26: 7476795482
A27: 00000211991300000000 | B27: SANCIONES Y MULTAS | G27: 72462763 | H27: 228761840 | J27: -228761840
A28: 212000000000000 | B28: OTROS INGRESOS CORRIENTES | E28: 5990185524 | F28: 5990185524 | G28: 4457329433 | H28: 6965192622 | I28: 1.162767429 | J28: -975007098
A29: 212040000000000 | B29: RENTAS CONTRACTUALES | E29: 5990185524 | F29: 5990185524 | G29: 4457329433 | H29: 6965192622 | I29: 1.162767429 | J29: -975007098
A30: 00000212049900000000 | B30: OTRAS RENTAS CONTRACTUALES | E30: 5990185524 | F30: 5990185524 | G30: 4457329433 | H30: 6965192622 | I30: 1.162767429 | J30: -975007098
A31: 220000000000000 | B31: TRANSFERENCIAS | C31: 224243102000 | F31: 224243102000 | H31: 70925826553 | I31: 0.3162898922 | J31: 153317275447
A32: 223000000000000 | B32: MUNICIPIOS | C32: 1426000000 | F32: 1426000000 | H32: 564136725 | I32: 0.3956078015 | J32: 861863275
A33: 00000223030000000000 | B33: TRANSFERENCIAS SUBSIDIOS SOACHA | C33: 1426000000 | F33: 1426000000 | H33: 564136725 | I33: 0.3956078015 | J33: 861863275
A34: 224000000000000 | B34: DE LA ADMINISTRACION CENTRAL | C34: 222817102000 | F34: 222817102000 | H34: 70361689828 | I34: 0.315782268 | J34: 152455412172
A35: 00000224010000000000 | B35: SECRETARIA DISTRITAL DE HACIENDA - LEY 1176 / 2007 | C35: 69180000000 | F35: 69180000000 | G35: -40790549956 | J35: 69180000000
A36: 00000224140000000000 | B36: SECRETARIA DISTRITAL DE HACIENDA - MINIMO VITAL | C36: 66473000000 | F36: 66473000000 | G36: -29571139872 | J36: 66473000000
A37: 00000224170000000000 | B37: SDH - LEY 99 DE 1993 | C37: 87164102000 | F37: 87164102000 | J37: 87164102000
A38: 00000224190000000000 | B38: LEY 99 DE 1993, SUBSIDIOS Y MÍNIMO VITAL - VIGENCIA ANTERIOR | G38: 70361689828 | H38: 70361689828 | J38: -70361689828
A39: 230000000000000 | B39: RECURSOS DE CAPITAL | C39: 1267029141000 | E39: 54479312145 | F39: 1321508453145 | G39: 8258376028 | H39: 59823197531 | I39: 0.04526887239 | J39: 1261685255614
A40: 231000000000000 | B40: RECURSOS DEL CREDITO | C40: 1150524499000 | F40: 1150524499000 | J40: 1150524499000
A41: 231010000000000 | B41: CREDITO INTERNO | C41: 1150524499000 | F41: 1150524499000 | J41: 1150524499000
A42: 00000231019800000000 | B42: VIGENCIA ANTERIOR | C42: 203276024000 | E42: -95754596540 | F42: 107521427460 | J42: 107521427460
A43: 00000231019900000000 | B43: VIGENCIA | C43: 947248475000 | E43: 95754596540 | F43: 1043003071540 | J43: 1043003071540
A44: 232000000000000 | B44: RENDIMIENTOS OPERACIONES FINANCIERAS | C44: 93893441000 | F44: 93893441000 | G44: 7720203108 | H44: 49330854969 | I44: 0.5253919171 | J44: 44562586031
A45: 232010000000000 | B45: RENDIMIENTO POR OPERACIONES FINANCIERAS | C45: 82160993000 | F45: 82160993000 | G45: 5420755665 | H45: 36129143772 | I45: 0.4397359678 | J45: 46031849228
A46: 00000232010100000000 | B46: INTERESES Y RENDIMIENTOS DEUDORES | G46: 146270805 | H46: 514218755 | J46: -514218755
A47: 00000232010300000000 | B47: INTERESES SOBRE DEPOSITOS | C47: 13360993000 | F47: 13360993000 | G47: 1457271724 | H47: 7820293197 | I47: 0.5853077834 | J47: 5540699803
A48: 00000232010500000000 | B48: INTERESES SOBRE DEPOSITOS FONDO DE VIVIENDA | G48: 63265008 | H48: 342486824 | J48: -342486824
A49: 00000232010700000000 | B49: INGRESOS FINANCIEROS ENCARGO FIDUCIARIO PENSION | C49: 68800000000 | F49: 68800000000 | G49: 3753948128 | H49: 27452144996 | I49: 0.3990137354 | J49: 41347855004
A50: 232020000000000 | B50: RENDIMIENTOS SOBRE PORTAFOLIOS DE INVERSION | C50: 11732448000 | F50: 11732448000 | G50: 2299447443 | H50: 13201711197 | I50: 1.125230744 | J50: -1469263197
A51: 00000232020100000000 | B51: INGRESOS FINANCIEROS DIVIDENDOS | G51: 7462443 | H51: 39700197 | J51: -39700197
A52: 00000232020300000000 | B52: RENTA FIJA SECTOR FINANCIERO | C52: 11732448000 | F52: 11732448000 | G52: 2291985000 | H52: 13162011000 | I52: 1.12184695 | J52: -1429563000
A53: 239000000000000 | B53: OTROS RECURSOS DE CAPITAL | C53: 22611201000 | E53: 54479312145 | F53: 77090513145 | G53: 538172920 | H53: 10492342562 | I53: 0.1361041993 | J53: 66598170583
A54: 00000239010000000000 | B54: RECUPERACION PRESTAMOS DE VIVIENDA | C54: 22000000000 | F54: 22000000000 | G54: 519461260 | H54: 10228973257 | I54: 0.4649533299 | J54: 11771026743
A55: 00000239030000000000 | B55: RECUPERACION PRESTAMOS DE BIENESTAR | C55: 611201000 | F55: 611201000 | G55: 18711660 | H55: 89948311 | I55: 0.1471664984 | J55: 521252689
A56: 00000239040000000000 | B56: INDEMNIZACIONES COMPAÑIAS DE SEGUROS | H56: 173420994 | J56: -173420994
A57: 00000239100000000000 | B57: RECURSOS FIDUCIA | E57: 54479312145 | F57: 54479312145 | J57: 54479312145

Sheet Gastos
A2: EMPRESA DE ACUEDUCTO ALCANTARILLADO DE BOGOTA
A3: EJECUCION PRESUPUESTAL DE GASTOS
A4: A 31 MAYO DE 2018
C5: 1 | D5: 2 | E5: 3 | F5: 4=(1+3) | G5: 5 | H5: 6=(4-5) | I5: 7 | J5: 8 | K5: 9=(8/6) | L5: 11 | M5: 12 | N5: 13=(12/6)
A6: CODIGO SECRETARIA DE HACIENDA | B6: RUBRO | C6: PRESUPUESTO INICIAL | D6: MODIFICACIONES MES | E6: MODIFICACIONES ACUMULADAS | F6: PRESUPUESTO DEFINITIVO | G6: SUSPENSION | H6: APROPIACION DISPONIBLE | I6: COMPROMISOS MES | J6: COMPROMISOS ACUMULADOS | K6: % EJEC PPTAL | L6: AUTORIZACIONES DE GIRO | N6: % EJEC AUT. GIRO
L7: MES | M7: ACUMULADO
A8: TOTAL GASTOS + DISPONIBILIDAD FINAL | C8: 3850633264000 | E8: 103123947963 | F8: 3953757211963 | H8: 3953757211963 | I8: 91871805866 | J8: 1945886816713 | K8: 0.4921614334 | L8: 121791814154 | M8: 689920272748 | N8: 0.1744973795
A9: 300000000000000 | B9: GASTOS | C9: 3738823535000 | E9: 103123947963 | F9: 3841947482963 | H9: 3841947482963 | I9: 91871805866 | J9: 1945886816713 | K9: 0.5064844914 | L9: 121791814154 | M9: 689920272748 | N9: 0.1795756646
A10: 310000000000000 | B10: GASTOS DE FUNCIONAMIENTO | C10: 1236617326000 | E10: 5106678498 | F10: 1241724004498 | H10: 1241724004498 | I10: 95895685957 | J10: 639340659171 | K10: 0.5148814526 | L10: 78868161336 | M10: 371918865173 | N10: 0.2995181408
A11: 311000000000000 | B11: SERVICIOS PERSONALES | C11: 322700565000 | E11: 10615091032 | F11: 333315656032 | H11: 333315656032 | I11: 18629584843 | J11: 142044880407 | K11: 0.4261572412 | L11: 22644417885 | M11: 113881616510 | N11: 0.3416629686
A12: 311010000000000 | B12: SERVICIOS PERSONALES ASOCIADOS A LA NOMINA | C12: 207592274000 | E12: -1624175714 | F12: 205968098286 | H12: 205968098286 | I12: 14054850703 | J12: 70645105293 | K12: 0.3429905208 | L12: 14346404468 | M12: 70633399299 | N12: 0.3429336868
A13: 00000311010100000000 | B13: SUELDOS PERSONAL DE NOMINA | C13: 119153276000 | E13: -1410519691 | F13: 117742756309 | H13: 117742756309 | I13: 9599426975 | J13: 46723623080 | K13: 0.3968280049 | L13: 9597341214 | M13: 46718751833 | N13: 0.396786633
A14: 00000311010200000000 | B14: GASTOS DE REPRESENTACION | C14: 71675000 | F14: 71675000 | H14: 71675000 | I14: 5817190 | J14: 28504231 | K14: 0.3976872131 | L14: 5817190 | M14: 28504231 | N14: 0.3976872131
A15: 00000311010300000000 | B15: HORAS EXTRAS, DOMINICALES, FESTIVOS, RECARGO NOCTURNO Y TRA | C15: 11374267000 | E15: -11429135 | F15: 11362837865 | H15: 11362837865 | I15: 1465987255 | J15: 7323117003 | K15: 0.6444795825 | L15: 1467232476 | M15: 7323117003 | N15: 0.6444795825
A16: 00000311010400000000 | B16: SUBSIDIO DE TRANSPORTE | C16: 1518813000 | E16: -213803 | F16: 1518599197 | H16: 1518599197 | I16: 97825758 | J16: 523188105 | K16: 0.3445202039 | L16: 97890216 | M16: 523188105 | N16: 0.3445202039
A17: 00000311010500000000 | B17: SUBSIDIO DE ALIMENTACION | C17: 8862554000 | E17: 2332021 | F17: 8864886021 | H17: 8864886021 | I17: 707417909 | J17: 3947138759 | K17: 0.4452554437 | L17: 707743434 | M17: 3947138759 | N17: 0.4452554437
A18: 00000311010600000000 | B18: BONIFICACION POR SERVICIOS PRESTADOS | C18: 428970000 | E18: 5201331 | F18: 434171331 | H18: 434171331 | I18: 9376488 | J18: 72039633 | K18: 0.1659244355 | L18: 9376488 | M18: 72039633 | N18: 0.1659244355
A19: 00000311010700000000 | B19: PRIMA SEMESTRAL | C19: 13981393000 | E19: 22564148 | F19: 14003957148 | H19: 14003957148 | J19: 25957399 | K19: 0.001853576009 | L19: 1678777 | M19: 25957399 | N19: 0.001853576009
A20: 00000311010900000000 | B20: PRIMA DE NAVIDAD | C20: 14466954000 | E20: -110423280 | F20: 14356530720 | H20: 14356530720 | J20: 11363857 | K20: 0.0007915461765 | L20: 838888 | M20: 11363857 | N20: 0.0007915461765
A21: 00000311011000000000 | B21: PRIMA DE VACACIONES | C21: 15513705000 | E21: -79703481 | F21: 15434001519 | H21: 15434001519 | I21: 1015156601 | J21: 4341964437 | K21: 0.2813246086 | L21: 1015679946 | M21: 4335129690 | N21: 0.2808817716
A22: 00000311011100000000 | B22: PRIMA TECNICA | C22: 4202843000 | E22: 45594918 | F22: 4248437918 | H22: 4248437918 | I22: 325759721 | J22: 1644014425 | K22: 0.3869691535 | L22: 325759721 | M22: 1644014425 | N22: 0.3869691535
A23: 00000311011200000000 | B23: OTRAS PRIMAS Y BONIFICACIONES | C23: 11618579000 | E23: -87578742 | F23: 11531000258 | H23: 11531000258 | I23: 158137187 | J23: 3284038828 | K23: 0.2848008633 | L23: 432453922 | M23: 3284038828 | N23: 0.2848008633
A24: 00000311011400000000 | B24: QUINQUENIO | C24: 4341645000 | F24: 4341645000 | H24: 4341645000 | I24: 423854119 | J24: 2454948576 | K24: 0.5654420331 | L24: 438500696 | M24: 2454948576 | N24: 0.5654420331
A25: 00000311011500000000 | B25: INDEMNIZACIONES LABORALES | C25: 1512000000 | F25: 1512000000 | H25: 1512000000 | J25: 19115460 | K25: 0.0126425 | M25: 19115460 | N25: 0.0126425
A26: 00000311011600000000 | B26: CONVENCIONES COLECTIVAS O CONVENIOS | C26: 545600000 | F26: 545600000 | H26: 545600000 | I26: 246091500 | J26: 246091500 | K26: 0.4510474707 | L26: 246091500 | M26: 246091500 | N26: 0.4510474707
A27: 311020000000000 | B27: SERVICIOS PERSONALES INDIRECTOS | C27: 52943116000 | E27: 11516114068 | F27: 64459230068 | H27: 64459230068 | I27: 465097468 | J27: 42826386985 | K27: 0.6643949507 | L27: 3623128600 | M27: 18620523880 | N27: 0.2888728869
A28: 00000311020300000000 | B28: HONORARIOS | C28: 43143000000 | E28: 5441561452 | F28: 48584561452 | H28: 48584561452 | I28: 188750141 | J28: 33360727526 | K28: 0.6866528487 | L28: 3290903274 | M28: 9848606645 | N28: 0.2027106215
A29: 00000311020400000000 | B29: REMUNERACION SERVICIOS TECNICOS | C29: 4240000000 | E29: 29831004 | F29: 4269831004 | H29: 4269831004 | I29: 17128868 | J29: 873645091 | K29: 0.2046088218 | L29: 73006867 | M29: 179902867 | N29: 0.04213348651
A30: 00000311029900000000 | B30: OTROS GASTOS DE PERSONAL | C30: 5560116000 | E30: 6044721612 | F30: 11604837612 | H30: 11604837612 | I30: 259218459 | J30: 8592014368 | K30: 0.7403821281 | L30: 259218459 | M30: 8592014368 | N30: 0.7403821281
A31: 311030000000000 | B31: APORTES PATRONALES AL SECTOR PUBLICO Y PRIVADO | C31: 62165175000 | E31: 723152678 | F31: 62888327678 | H31: 62888327678 | I31: 4109636672 | J31: 28573388129 | K31: 0.4543512156 | L31: 4674884817 | M31: 24627693331 | N31: 0.3916099257
A32: 00000311030100000000 | B32: CAJA DE COMPENSACION | C32: 7583715000 | E32: -27358158 | F32: 7556356842 | H32: 7556356842 | I32: 490267732 | J32: 2720231473 | K32: 0.359992458 | L32: 774452229 | M32: 2192647329 | N32: 0.2901725494
A33: 00000311030200000000 | B33: CESANTIAS | C33: 7200812000 | E33: 918571312 | F33: 8119383312 | H33: 8119383312 | J33: 7397909592 | K33: 0.9111418082 | M33: 7397889441 | N33: 0.9111393263
A34: 00000311030300000000 | B34: PENSIONES | C34: 17533115000 | E34: -75857243 | F34: 17457257757 | H34: 17457257757 | I34: 1521458685 | J34: 7657923248 | K34: 0.4386670206 | L34: 1558186578 | M34: 6245347386 | N34: 0.3577507689
A35: 00000311030400000000 | B35: SALUD | C35: 23992277000 | E35: -90862198 | F35: 23901414802 | H35: 23901414802 | I35: 1834035677 | J35: 9423480890 | K35: 0.3942645642 | L35: 1964881817 | M35: 7690326382 | N35: 0.3217519317
A36: 00000311030500000000 | B36: RIESGOS PROFESIONALES | C36: 1334593000 | E36: -6268389 | F36: 1328324611 | H36: 1328324611 | I36: 111049669 | J36: 541845772 | K36: 0.4079166851 | L36: 109887700 | M36: 428254100 | N36: 0.3224016904
A37: 00000311030600000000 | B37: ICBF | C37: 2730824000 | E37: 2540271 | F37: 2733364271 | H37: 2733364271 | I37: 91692846 | J37: 499218852 | K37: 0.1826389762 | L37: 160480396 | M37: 403939296 | N37: 0.1477809966
A38: 00000311030700000000 | B38: SENA | C38: 1789839000 | E38: 2387083 | F38: 1792226083 | H38: 1792226083 | I38: 61132063 | J38: 332778302 | K38: 0.1856787518 | L38: 106996097 | M38: 269289397 | N38: 0.1502541446
A39: 312000000000000 | B39: GASTOS GENERALES | C39: 508410399000 | D39: 1630680456 | E39: -28345083314 | F39: 480065315686 | H39: 480065315686 | I39: 64804701752 | J39: 229405162778 | K39: 0.4778623976 | L39: 33207340910 | M39: 105769954324 | N39: 0.2203240911
A40: 312010000000000 | B40: ADQUISICION DE BIENES Y SERVICIOS | C40: 508410399000 | D40: 1630680456 | E40: -28345083314 | F40: 480065315686 | H40: 480065315686 | I40: 64804701752 | J40: 229405162778 | K40: 0.4778623976 | L40: 33207340910 | M40: 105769954324 | N40: 0.2203240911
A41: 00000312010100000000 | B41: DOTACION | C41: 3462394000 | D41: -47008589 | E41: 55018169 | F41: 3517412169 | H41: 3517412169 | I41: 12120000 | J41: 223614238 | K41: 0.06357351009 | L41: 128064 | M41: 22636134 | N41: 0.006435451097
A42: 00000312010200000000 | B42: MATERIALES Y SUMINISTROS | C42: 14360601000 | D42: -500000000 | E42: -618000000 | F42: 13742601000 | H42: 13742601000 | J42: 8035515494 | K42: 0.5847157677 | L42: 108570758 | M42: 203453494 | N42: 0.01480458423
A43: 00000312010300000000 | B43: ARRENDAMIENTOS | C43: 13288258000 | D43: 35379000 | E43: -80240303 | F43: 13208017697 | H43: 13208017697 | I43: 7679747 | J43: 8646361143 | K43: 0.6546297364 | L43: 269335189 | M43: 781523922 | N43: 0.05917041754
A44: 00000312010400000000 | B44: GASTOS DE COMPUTADOR | C44: 33237587000 | D44: 747750298 | E44: 661897748 | F44: 33899484748 | H44: 33899484748 | J44: 28986784381 | K44: 0.8550803824 | L44: 1606900668 | M44: 6666802075 | N44: 0.1966638173
A45: 00000312010500000000 | B45: VIATICOS Y GASTOS DE VIAJE | C45: 994851000 | F45: 994851000 | H45: 994851000 | I45: 91729879 | J45: 184759863 | K45: 0.1857161153 | L45: 58921606 | M45: 146478988 | N45: 0.1472371119
A46: 00000312010600000000 | B46: GASTOS DE TRANSPORTE Y COMUNICACIÓN | C46: 13130922000 | D46: 44620577 | E46: -210359423 | F46: 12920562577 | H46: 12920562577 | I46: 1582729677 | J46: 4828066384 | K46: 0.3736730777 | L46: 463906009 | M46: 2114083732 | N46: 0.1636216472
A47: 00000312010700000000 | B47: IMPRESOS Y PUBLICACIONES | C47: 527293000 | D47: -8639000 | E47: -12281000 | F47: 515012000 | H47: 515012000 | I47: 823271 | J47: 70312199 | K47: 0.1365253606 | L47: 823271 | M47: 50403949 | N47: 0.09786946518
A48: 00000312010800000000 | B48: SENTENCIAS JUDICIALES | C48: 750000000 | F48: 750000000 | H48: 750000000 | J48: 167983326 | K48: 0.223977768 | M48: 167983326 | N48: 0.223977768
A49: 00000312010900000000 | B49: MANTENIMIENTO Y REPARACIONES | C49: 70962890000 | D49: 405379423 | E49: -66181923 | F49: 70896708077 | H49: 70896708077 | I49: 3138105822 | J49: 27028035152 | K49: 0.3812311726 | L49: 2661473568 | M49: 5484960174 | N49: 0.07736551277
A50: 00000312011000000000 | B50: COMBUSTIBLES, LUBRICANTES Y LLANTAS | C50: 5152897000 | E50: -1500000000 | F50: 3652897000 | H50: 3652897000 | I50: 927478038 | J50: 1001476078 | K50: 0.2741594077 | L50: 3591779 | M50: 3591779 | N50: 0.0009832686221
A51: 00000312011100000000 | B51: SEGUROS | C51: 23885466000 | E51: 263999976 | F51: 24149465976 | H51: 24149465976 | I51: 15336841 | J51: 21925482657 | K51: 0.907907557 | L51: 45641410 | M51: 15680906763 | N51: 0.6493272679
A52: 00000312011200000000 | B52: SUMINISTRO DE ALIMENTOS | C52: 3945800000 | E52: 358399035 | F52: 4304199035 | H52: 4304199035 | J52: 1201230635 | K52: 0.2790834311 | L52: 212012804 | M52: 243209019 | N52: 0.05650505867
A53: 00000312011300000000 | B53: SERVICIOS PUBLICOS | C53: 5773285000 | F53: 5773285000 | H53: 5773285000 | I53: 147868829 | J53: 4910301796 | K53: 0.8505212883 | L53: 446972534 | M53: 1464135656 | N53: 0.2536052968
A54: 00000312011400000000 | B54: CAPACITACION | C54: 885200000 | E54: -3862685 | F54: 881337315 | H54: 881337315 | J54: 151410050 | K54: 0.171795801 | L54: 26047272 | M54: 37815794 | N54: 0.042907288
A55: 00000312011500000000 | B55: BIENESTAR E INCENTIVOS | C55: 4594000000 | F55: 4594000000 | H55: 4594000000
A56: 00000312011600000000 | B56: PROMOCION INSTITUCIONAL | C56: 3115000000 | F56: 3115000000 | H56: 3115000000 | I56: 2345000 | J56: 1111062700 | K56: 0.3566814446 | L56: 123398411 | M56: 167987792 | N56: 0.05392866517
A57: 00000312011700000000 | B57: IMPUESTOS, TASAS, CONTRIBUCIONES, DERECHOS Y MULTAS | C57: 299348017000 | D57: 876190158 | E57: -27900160257 | F57: 271447856743 | H57: 271447856743 | I57: 58333316621 | J57: 116136354529 | K57: 0.4278403813 | L57: 26809870913 | M57: 71408671931 | N57: 0.2630658897
A58: 00000312011800000000 | B58: INTERESES Y COMISIONES | C58: 1843664000 | E58: 65180000 | F58: 1908844000 | H58: 1908844000 | I58: 316500000 | J58: 1800164000 | K58: 0.9430650174 | L58: 6248451 | M58: 7362413 | N58: 0.003857000886
A59: 00000312011900000000 | B59: SALUD OCUPACIONAL | C59: 764775000 | F59: 764775000 | H59: 764775000 | J59: 51505611 | K59: 0.06734740414
A60: 00000312012000000000 | B60: PROGRAMAS Y CONVENIOS INSTITUCIONALES | C60: 142000000 | F60: 142000000 | H60: 142000000 | J60: 64157000 | K60: 0.4518098592 | M60: 64157000 | N60: 0.4518098592
A61: 00000312019900000000 | B61: OTROS GASTOS GENERALES | C61: 8245499000 | D61: 77008589 | E61: 641507349 | F61: 8887006349 | H61: 8887006349 | I61: 228668027 | J61: 2880585542 | K61: 0.3241345205 | L61: 363498203 | M61: 1053790383 | N61: 0.1185765309
A62: 313000000000000 | B62: TRANSFERENCIAS CORRIENTES | C62: 288946579000 | D62: -508523362 | E62: -1544489796 | F62: 287402089204 | H62: 287402089204 | I62: 13695295244 | J62: 135506353302 | K62: 0.4714870156 | L62: 15280080946 | M62: 78533064994 | N62: 0.2732515453
A63: 313030000000000 | B63: TRANSFERENCIAS DE PREVISION Y SEGURIDAD | C63: 266335378000 | D63: -508523362 | E63: -1544489796 | F63: 264790888204 | H63: 264790888204 | I63: 13695295244 | J63: 129233506228 | K63: 0.4880587361 | L63: 15280080946 | M63: 78429836804 | N63: 0.2961953764
A64: 00000313030100000000 | B64: PENSIONES Y JUBILACIONES | C64: 190660263000 | E64: -536848830 | F64: 190123414170 | H64: 190123414170 | I64: 12897164969 | J64: 65240722348 | K64: 0.3431493308 | L64: 12897164969 | M64: 65144722348 | N64: 0.3426443957
A65: 00000313030200000000 | B65: CESANTIAS | C65: 14141377000 | E65: -499117604 | F65: 13642259396 | H65: 13642259396 | I65: 704635775 | J65: 4071914522 | K65: 0.2984780163 | L65: 766782940 | M65: 4071914522 | N65: 0.2984780163
A66: 00000313030300000000 | B66: OTRAS TRANSFERENCIAS DE PREVISION Y SEGURIDAD SOCIAL | C66: 61533738000 | D66: -508523362 | E66: -508523362 | F66: 61025214638 | H66: 61025214638 | I66: 93494500 | J66: 59920869358 | K66: 0.9819034593 | L66: 1616133037 | M66: 9213199934 | N66: 0.1509736588
A67: 313040000000000 | B67: OTRAS TRANSFERENCIAS | C67: 22611201000 | F67: 22611201000 | H67: 22611201000 | J67: 6272847074 | K67: 0.2774221092 | M67: 103228190 | N67: 0.004565356347
A68: 00000313040200000000 | B68: PRESTAMOS DE BIENESTAR | C68: 611201000 | F68: 611201000 | H68: 611201000 | J68: 103228190 | K68: 0.1688940136 | M68: 103228190 | N68: 0.1688940136
A69: 00000313040300000000 | B69: PRESTAMOS FONDO DE VIVIENDA | C69: 22000000000 | F69: 22000000000 | H69: 22000000000 | J69: 6169618884 | K69: 0.280437222
A70: 314000000000000 | B70: CUENTAS POR PAGAR | C70: 116559783000 | D70: -1122157094 | E70: 24381160576 | F70: 140940943576 | H70: 140940943576 | I70: -1233895882 | J70: 132384262684 | K70: 0.9392888917 | L70: 7736321595 | M70: 73734229345 | N70: 0.5231569158
A71: 00000314000000000000 | B71: CUENTAS POR PAGAR | C71: 116559783000 | D71: -1122157094 | E71: 24381160576 | F71: 140940943576 | H71: 140940943576 | I71: -1233895882 | J71: 132384262684 | K71: 0.9392888917 | L71: 7736321595 | M71: 73734229345 | N71: 0.5231569158
A72: 320000000000000 | B72: GASTOS DE OPERACIÓN | C72: 320996098000 | E72: 23210171796 | F72: 344206269796 | H72: 344206269796 | I72: -2864058968 | J72: 249672106079 | K72: 0.725356067 | L72: 13602888795 | M72: 105277806492 | N72: 0.3058567369
A73: 321000000000000 | B73: GASTOS DE COMERCIALIZACION | C73: 121536854000 | E73: 28468959480 | F73: 150005813480 | H73: 150005813480 | I73: 1044456 | J73: 77519326859 | K73: 0.516775484 | L73: 1737272556 | M73: 21779102038 | N73: 0.1451883866
A74: 321010000000000 | B74: COMPRA DE BIENES PARA LA VENTA | C74: 14000000000 | F74: 14000000000 | H74: 14000000000 | J74: 13999992223 | K74: 0.9999994445
A75: 00000321010100000000 | B75: MEDIDORES | C75: 14000000000 | F75: 14000000000 | H75: 14000000000 | J75: 13999992223 | K75: 0.9999994445
A76: 321020000000000 | B76: COMPRA DE SERVICIOS PARA LA VENTA | C76: 12817034000 | E76: 20254171796 | F76: 33071205796 | H76: 33071205796 | J76: 28124373051 | K76: 0.8504187366 | L76: 50916120 | M76: 16831504362 | N76: 0.5089474048
A77: 00000321020100000000 | B77: GESTION COMERCIAL | C77: 12817034000 | E77: 450000000 | F77: 13267034000 | H77: 13267034000 | J77: 9862267757 | K77: 0.7433664342 | L77: 50916120 | M77: 100757649 | N77: 0.007594587381
A78: 00000321020400000000 | B78: PROCESO ASEO | E78: 19804171796 | F78: 19804171796 | H78: 19804171796 | J78: 18262105294 | K78: 0.9221342595 | M78: 16730746713 | N78: 0.8448092092
A79: 321030000000000 | B79: OTROS GASTOS DE COMERCIALIZACION | C79: 94719820000 | E79: 8214787684 | F79: 102934607684 | H79: 102934607684 | I79: 1044456 | J79: 35394961585 | K79: 0.3438587117 | L79: 1686356436 | M79: 4947597676 | N79: 0.04806544453
A80: 00000321030100000000 | B80: MANTENIMIENTO Y MATERIALES OPERACION INF AC Y AL | C80: 88789820000 | E80: 2960000000 | F80: 91749820000 | H80: 91749820000 | I80: 1044456 | J80: 35394961585 | K80: 0.3857769049 | L80: 1686356436 | M80: 4947597676 | N80: 0.0539248761
A81: 00000321030200000000 | B81: COMERCIALIZACION DE ENERGIA - CHSA | C81: 150000000 | F81: 150000000 | H81: 150000000
A82: 00000321030400000000 | B82: FONDO ATENCION DE EMERGENCIAS | C82: 4280000000 | E82: -97707731 | F82: 4182292269 | H82: 4182292269
A83: 00000321030600000000 | B83: FONDO OBLIGACIONES CONTINGENTES | C83: 1500000000 | E83: 5352495415 | F83: 6852495415 | H83: 6852495415
A84: 322000000000000 | B84: GASTOS DE PRODUCCION | C84: 99780483000 | E84: -5352495415 | F84: 94427987585 | H84: 94427987585 | I84: 758943486 | J84: 77024101166 | K84: 0.81569144 | L84: 4934031548 | M84: 17645562718 | N84: 0.1868679315
A85: 322010000000000 | B85: INDUSTRIAL | C85: 99780483000 | E85: -5352495415 | F85: 94427987585 | H85: 94427987585 | I85: 758943486 | J85: 77024101166 | K85: 0.81569144 | L85: 4934031548 | M85: 17645562718 | N85: 0.1868679315
A86: 00000322010200000000 | B86: PRODUCTOS QUIMICOS | C86: 18831920000 | E86: 5791793667 | F86: 24623713667 | H86: 24623713667 | J86: 21763772834 | K86: 0.8838542036 | L86: 1104653044 | M86: 2458348941 | N86: 0.09983664423
A87: 00000322010300000000 | B87: ENERGIA PARA BOMBEO | C87: 54142290000 | F87: 54142290000 | H87: 54142290000 | J87: 54142290000 | K87: 1 | L87: 3070435018 | M87: 14069175445 | N87: 0.2598555666
A88: 00000322010400000000 | B88: TASA POR USO DE AGUA | C88: 4306273000 | F88: 4306273000 | H88: 4306273000 | I88: 758943486 | J88: 1118038332 | K88: 0.2596301563 | L88: 758943486 | M88: 1118038332 | N88: 0.2596301563
A89: 00000322011000000000 | B89: ASISTENCIA OPERACIÓN | C89: 22500000000 | E89: -11144289082 | F89: 11355710918 | H89: 11355710918
A90: 324000000000000 | B90: CUENTAS POR PAGAR | C90: 99678761000 | E90: 93707731 | F90: 99772468731 | H90: 99772468731 | I90: -3624046910 | J90: 95128678054 | K90: 0.9534561915 | L90: 6931584691 | M90: 65853141736 | N90: 0.6600331993
A91: 00000324000000000000 | B91: CUENTAS POR PAGAR | C91: 99678761000 | E91: 93707731 | F91: 99772468731 | H91: 99772468731 | I91: -3624046910 | J91: 95128678054 | K91: 0.9534561915 | L91: 6931584691 | M91: 65853141736 | N91: 0.6600331993
A92: 330000000000000 | B92: SERVICIO DE LA DEUDA | C92: 94315746000 | F92: 94315746000 | H92: 94315746000 | J92: 57201187541 | K92: 0.606486085 | L92: 4893699 | M92: 23362540355 | N92: 0.2477056202
A93: 331000000000000 | B93: DEUDA INTERNA | C93: 78014332000 | F93: 78014332000 | H93: 78014332000 | J93: 56472715561 | K93: 0.7238761663 | M93: 22665801139 | N93: 0.2905338104
A94: 00000331010000000000 | B94: AMORTIZACION CAPITAL | C94: 31446890000 | F94: 31446890000 | H94: 31446890000 | J94: 31446888900 | K94: 0.999999965 | M94: 13701444444 | N94: 0.4357010962
A95: 00000331020000000000 | B95: INTERESES | C95: 44449342000 | F95: 44449342000 | H95: 44449342000 | J95: 25025826661 | K95: 0.563019058 | M95: 8964356695 | N95: 0.201675802
A96: 00000331030000000000 | B96: COMISIONES Y OTROS | C96: 2118100000 | F96: 2118100000 | H96: 2118100000
A97: 332000000000000 | B97: DEUDA EXTERNA | C97: 200000000 | F97: 200000000 | H97: 200000000
A98: 00000332030000000000 | B98: COMISIONES Y OTROS | C98: 200000000 | F98: 200000000 | H98: 200000000
A99: 333000000000000 | B99: BONOS PENSIONALES | C99: 3203150000 | F99: 3203150000 | H99: 3203150000 | J99: 672543359 | K99: 0.2099631172 | M99: 672543359 | N99: 0.2099631172
A100: 00000333010000000000 | B100: BONOS PENSIONALES | C100: 3203150000 | F100: 3203150000 | H100: 3203150000 | J100: 672543359 | K100: 0.2099631172 | M100: 672543359 | N100: 0.2099631172
A101: 334000000000000 | B101: CUENTAS POR PAGAR | C101: 55929000 | F101: 55929000 | H101: 55929000 | J101: 55928621 | K101: 0.9999932236 | L101: 4893699 | M101: 24195857 | N101: 0.432617372
A102: 00000334000000000000 | B102: CUENTAS POR PAGAR | C102: 55929000 | F102: 55929000 | H102: 55929000 | J102: 55928621 | K102: 0.9999932236 | L102: 4893699 | M102: 24195857 | N102: 0.432617372
A103: 338000000000000 | B103: FONDO OBLIGACIONES CONTINGENTES | C103: 12842335000 | F103: 12842335000 | H103: 12842335000
A104: 00000338000000000000 | B104: FONDO OBLIGACIONES CONTINGENTES | C104: 12842335000 | F104: 12842335000 | H104: 12842335000
A105: 340000000000000 | B105: GASTOS DE INVERSION | C105: 2086894365000 | E105: 74807097669 | F105: 2161701462669 | H105: 2161701462669 | I105: -1159821123 | J105: 999672863922 | K105: 0.4624472348 | L105: 29315870324 | M105: 189361060728 | N105: 0.08759815543
A106: 341000000000000 | B106: DIRECTA | C106: 1115022286000 | D106: 1717810411 | E106: -50358439600 | F106: 1064663846400 | H106: 1064663846400 | I106: 2795888317 | J106: 516029826044 | K106: 0.4846880335 | L106: 6860723827 | M106: 26267844800 | N106: 0.02467243054
A107: 3411500000000000 | B107: BOGOTA MEJOR PARA TODOS | C107: 1115022286000 | D107: 1717810411 | E107: -50358439600 | F107: 1064663846400 | H107: 1064663846400 | I107: 2795888317 | J107: 516029826044 | K107: 0.4846880335 | L107: 6860723827 | M107: 26267844800 | N107: 0.02467243054
A108: 3411502000000000 | B108: DEMOCRACIA URBANA | C108: 1021237719000 | D108: 1212207355 | E108: -48213671187 | F108: 973024047813 | H108: 973024047813 | I108: 2646687726 | J108: 478422619188 | K108: 0.491686326 | L108: 6398231731 | M108: 24903015852 | N108: 0.0255934228
A109: 3411502130000000 | B109: INFRAESTRUCTURA PARA EL DESARROLLO DEL HÁBITAT | C109: 1021237719000 | D109: 1212207355 | E109: -48213671187 | F109: 973024047813 | H109: 973024047813 | I109: 2646687726 | J109: 478422619188 | K109: 0.491686326 | L109: 6398231731 | M109: 24903015852 | N109: 0.0255934228
A110: 3411502130019000 | B110: CONST.REDES LOCALES PARA EL SERVICIO ALCANTARILLADO PLUVIAL | C110: 39310965000 | D110: -5528009 | E110: -9478286938 | F110: 29832678062 | H110: 29832678062 | J110: 16883409630 | K110: 0.5659367756 | L110: 647938770 | M110: 2637739448 | N110: 0.08841778946
A111: 00003411502130019133 | B111: INFRAESTRUCTURA PARA EL DESARROLLO DEL HÁBITAT | C111: 39310965000 | D111: -5528009 | E111: -9478286938 | F111: 29832678062 | H111: 29832678062 | J111: 16883409630 | K111: 0.5659367756 | L111: 647938770 | M111: 2637739448 | N111: 0.08841778946
A112: 3411502130020000 | B112: CONST.REDES LOCALES SERVICIO DE ALCANTARILLADO SANITARIO | C112: 27526040000 | D112: 78040100 | E112: -11131218264 | F112: 16394821736 | H112: 16394821736 | J112: 6237906783 | K112: 0.3804803055 | L112: 29846409 | M112: 416011566 | N112: 0.02537457087
A113: 00003411502130020133 | B113: INFRAESTRUCTURA PARA EL DESARROLLO DEL HÁBITAT | C113: 27526040000 | D113: 78040100 | E113: -11131218264 | F113: 16394821736 | H113: 16394821736 | J113: 6237906783 | K113: 0.3804803055 | L113: 29846409 | M113: 416011566 | N113: 0.02537457087
A114: 3411502130021000 | B114: CONST.SISTEMA TRONCAL Y SECUNDARIO ALCANTARILLADO SANITARIO | C114: 14273960000 | E114: 67227578 | F114: 14341187578 | H114: 14341187578 | I114: 72066415 | J114: 13934955212 | K114: 0.971673729 | M114: 661068091 | N114: 0.04609577048
A115: 00003411502130021133 | B115: INFRAESTRUCTURA PARA EL DESARROLLO DEL HÁBITAT | C115: 14273960000 | E115: 67227578 | F115: 14341187578 | H115: 14341187578 | I115: 72066415 | J115: 13934955212 | K115: 0.971673729 | M115: 661068091 | N115: 0.04609577048
A116: 3411502130022000 | B116: CONST.SISTEMA TRONCAL Y SECUNDARIO DE ALCANTARILLADO PLUVIAL | C116: 38391669000 | D116: 1056930295 | E116: -646067367 | F116: 37745601633 | H116: 37745601633 | I116: 2497674 | J116: 32530634584 | K116: 0.86183908 | L116: 391196000 | M116: 527878673 | N116: 0.01398517046
A117: 00003411502130022133 | B117: INFRAESTRUCTURA PARA EL DESARROLLO DEL HÁBITAT | C117: 38391669000 | D117: 1056930295 | E117: -646067367 | F117: 37745601633 | H117: 37745601633 | I117: 2497674 | J117: 32530634584 | K117: 0.86183908 | L117: 391196000 | M117: 527878673 | N117: 0.01398517046
A118: 3411502130050000 | B118: RENOV,REHAB.O REPOS. SIST.ABAST. Y DISTRIB. MATRIZ ACUEDUCTO | C118: 155544351000 | D118: 407939405 | E118: -11389815028 | F118: 144154535972 | H118: 144154535972 | I118: 73477234 | J118: 69290580807 | K118: 0.4806687513 | L118: 1725345917 | M118: 5632200030 | N118: 0.03907057098
A119: 00003411502130050133 | B119: INFRAESTRUCTURA PARA EL DESARROLLO DEL HÁBITAT | C119: 155544351000 | D119: 407939405 | E119: -11389815028 | F119: 144154535972 | H119: 144154535972 | I119: 73477234 | J119: 69290580807 | K119: 0.4806687513 | L119: 1725345917 | M119: 5632200030 | N119: 0.03907057098
A120: 3411502130051000 | B120: RENOV,REHAB.O REPOS.SIST.TRONCAL,SEC. Y LOCAL ALC.SANITARIO | C120: 147614727000 | D120: 3061013983 | E120: 4684846594 | F120: 152299573594 | H120: 152299573594 | I120: 2249846256 | J120: 98246547230 | K120: 0.6450874741 | L120: 497570300 | M120: 4963770325 | N120: 0.03259214854
A121: 00003411502130051133 | B121: INFRAESTRUCTURA PARA EL DESARROLLO DEL HÁBITAT | C121: 147614727000 | D121: 3061013983 | E121: 4684846594 | F121: 152299573594 | H121: 152299573594 | I121: 2249846256 | J121: 98246547230 | K121: 0.6450874741 | L121: 497570300 | M121: 4963770325 | N121: 0.03259214854
A122: 3411502130052000 | B122: RENOV,REHAB.O REPOS.SIST.TRONCAL, SEC. Y LOCAL ALC. PLUVIAL | C122: 137242908000 | E122: -18597139855 | F122: 118645768145 | H122: 118645768145 | J122: 101231726352 | K122: 0.8532266084 | M122: 1196031452 | N122: 0.01008069205
A123: 00003411502130052133 | B123: INFRAESTRUCTURA PARA EL DESARROLLO DEL HÁBITAT | C123: 137242908000 | E123: -18597139855 | F123: 118645768145 | H123: 118645768145 | J123: 101231726352 | K123: 0.8532266084 | M123: 1196031452 | N123: 0.01008069205
A124: 3411502130053000 | B124: RENOV,REHAB.O REPOS.SIST.TRONCAL, SEC. Y LOCAL ALC. COMBIN | C124: 14605692000 | E124: 334982531 | F124: 14940674531 | H124: 14940674531 | I124: 227173548 | J124: 302103597 | K124: 0.02022021137
A125: 00003411502130053133 | B125: INFRAESTRUCTURA PARA EL DESARROLLO DEL HÁBITAT | C125: 14605692000 | E125: 334982531 | F125: 14940674531 | H125: 14940674531 | I125: 227173548 | J125: 302103597 | K125: 0.02022021137
A126: 3411502130054000 | B126: ACCIONES PARA EL SANEAMIENTO DEL RÍO BOGOTÁ | C126: 14225533000 | E126: 74807097669 | F126: 89032630669 | H126: 89032630669 | I126: 2497674 | J126: 12299497674 | K126: 0.1381459537 | L126: 2497674 | M126: 2497674 | N126: 2.805346738e-05
A127: 00003411502130054133 | B127: INFRAESTRUCTURA PARA EL DESARROLLO DEL HÁBITAT | C127: 14225533000 | E127: 74807097669 | F127: 89032630669 | H127: 89032630669 | I127: 2497674 | J127: 12299497674 | K127: 0.1381459537 | L127: 2497674 | M127: 2497674 | N127: 2.805346738e-05
A128: 3411502130068000 | B128: CONST,RENOV,REHAB.O REPOS.REDES ASOC.A INFRAESTRUCTURA VIAL | C128: 46457000000 | E128: -46386466521 | F128: 70533479 | H128: 70533479
A129: 00003411502130068133 | B129: INFRAESTRUCTURA PARA EL DESARROLLO DEL HÁBITAT | C129: 46457000000 | E129: -46386466521 | F129: 70533479 | H129: 70533479
A130: 3411502130081000 | B130: CORREDORES AMBIENTALES | C130: 121046203000 | E130: -13762295878 | F130: 107283907122 | H130: 107283907122 | I130: 1799981 | J130: 2079196216 | K130: 0.01938031781 | L130: 1648420 | M130: 1648420 | N130: 1.536502579e-05
A131: 00003411502130081133 | B131: INFRAESTRUCTURA PARA EL DESARROLLO DEL HÁBITAT | C131: 121046203000 | E131: -13762295878 | F131: 107283907122 | H131: 107283907122 | I131: 1799981 | J131: 2079196216 | K131: 0.01938031781 | L131: 1648420 | M131: 1648420 | N131: 1.536502579e-05
A132: 3411502137334000 | B132: CONST.Y EXPANSIÓN SISTEMA ABASTECIMIENTO Y MATRIZ ACUEDUCTO | C132: 249776117000 | D132: -3386605934 | E132: -12704464860 | F132: 237071652140 | H132: 237071652140 | I132: 17328944 | J132: 121685036258 | K132: 0.5132837906 | L132: 3102188241 | M132: 8720334207 | N132: 0.03678353834
A133: 00003411502137334133 | B133: INFRAESTRUCTURA PARA EL DESARROLLO DEL HÁBITAT | C133: 249776117000 | D133: -3386605934 | E133: -12704464860 | F133: 237071652140 | H133: 237071652140 | I133: 17328944 | J133: 121685036258 | K133: 0.5132837906 | L133: 3102188241 | M133: 8720334207 | N133: 0.03678353834
A134: 3411502137338000 | B134: CONSTRUCCIÓN DE REDES LOCALES PARA EL SERVICIO DE ACUEDUCTO | C134: 15222554000 | D134: 417515 | E134: -4012070848 | F134: 11210483152 | H134: 11210483152 | J134: 3701024845 | K134: 0.3301396376 | M134: 143835966 | N134: 0.01283048768
A135: 00003411502137338133 | B135: INFRAESTRUCTURA PARA EL DESARROLLO DEL HÁBITAT | C135: 15222554000 | D135: 417515 | E135: -4012070848 | F135: 11210483152 | H135: 11210483152 | J135: 3701024845 | K135: 0.3301396376 | M135: 143835966 | N135: 0.01283048768
A136: 3411506000000000 | B136: EJE TRANSV. SOST. AMBIENTAL BASADA EFICIENCIA ENERGÉTICA | C136: 61193149000 | D136: 124174735 | E136: -2566636817 | F136: 58626512183 | H136: 58626512183 | I136: 149200591 | J136: 35282370834 | K136: 0.6018159621 | L136: 462492096 | M136: 1344142710 | N136: 0.02292721603
A137: 3411506380000000 | B137: RECUPERACIÓN Y MANEJO DE LA ESTRUCTURA ECOLÓGICA PRINCIPAL | D137: 124174735 | E137: 427224516 | F137: 427224516 | H137: 427224516 | I137: 149200591 | J137: 426420372 | K137: 0.9981177485 | L137: 258246611 | M137: 264363002 | N137: 0.6187917409
A138: 3411506387341000 | B138: ADEC.HIDRÁULICA RECUP.AMB.HUMED,QUEBRADAS,RÍOS CUENCAS ABAST | D138: 124174735 | E138: 427224516 | F138: 427224516 | H138: 427224516 | I138: 149200591 | J138: 426420372 | K138: 0.9981177485 | L138: 258246611 | M138: 264363002 | N138: 0.6187917409
A139: 00003411506387341177 | B139: CONSOLIDACIÓN DE LA ESTRUCTURA ECOLÓGICA PRINCIPAL | D139: 124174735 | E139: 427224516 | F139: 427224516 | H139: 427224516 | I139: 149200591 | J139: 426420372 | K139: 0.9981177485 | L139: 258246611 | M139: 264363002 | N139: 0.6187917409
A140: 3411506390000000 | B140: AMBIENTE SANO PARA LA EQUIDAD Y DISFRUTE DEL CIUDADANO | C140: 61193149000 | E140: -2993861333 | F140: 58199287667 | H140: 58199287667 | J140: 34855950462 | K140: 0.5989068227 | L140: 204245485 | M140: 1079779708 | N140: 0.01855314302
A141: 3411506390082000 | B141: PLAN DE SANEAMIENTO Y MANEJO DE VERTIMIENTOS | C141: 61193149000 | E141: -2993861333 | F141: 58199287667 | H141: 58199287667 | J141: 34855950462 | K141: 0.5989068227 | L141: 204245485 | M141: 1079779708 | N141: 0.01855314302
A142: 00003411506390082179 | B142: AMBIENTE SANO | C142: 61193149000 | E142: -2993861333 | F142: 58199287667 | H142: 58199287667 | J142: 34855950462 | K142: 0.5989068227 | L142: 204245485 | M142: 1079779708 | N142: 0.01855314302
A143: 3411507000000000 | B143: EJE TRANSVERSAL GOBIERNO LEGÍTIMO, FORT. LOCAL Y EFICIENTE | C143: 32591418000 | D143: 381428321 | E143: 421868404 | F143: 33013286404 | H143: 33013286404 | J143: 2324836022 | K143: 0.07042122355 | M143: 20686238 | N143: 0.000626603415
A144: 3411507420000000 | B144: TRANSPARENCIA, GESTIÓN PÚBLICA Y SERVICIO A LA CIUDADANÍA | C144: 32591418000 | D144: 381428321 | E144: 421868404 | F144: 33013286404 | H144: 33013286404 | J144: 2324836022 | K144: 0.07042122355 | M144: 20686238 | N144: 0.000626603415
A145: 3411507420055000 | B145: FORTALECIMIENTO ADMINISTRATIVO Y OPERATIVO EMPRESARIAL | C145: 32591418000 | D145: 381428321 | E145: 421868404 | F145: 33013286404 | H145: 33013286404 | J145: 2324836022 | K145: 0.07042122355 | M145: 20686238 | N145: 0.000626603415
A146: 00003411507420055185 | B146: FORTALECIMIENTO ADMINISTRATIVO Y OPERATIVO EMPRESARIAL | C146: 32591418000 | D146: 381428321 | E146: 421868404 | F146: 33013286404 | H146: 33013286404 | J146: 2324836022 | K146: 0.07042122355 | M146: 20686238 | N146: 0.000626603415
A147: 342000000000000 | B147: TRANSFERENCIAS PARA INVERSION | C147: 406848694000 | D147: 125770953 | E147: 113858205066 | F147: 520706899066 | H147: 520706899066 | I147: 119512134 | J147: 5499091084 | K147: 0.01056081856 | L147: 119512134 | M147: 5499091084 | N147: 0.01056081856
A148: 00000342030000000000 | B148: PATRIMONIO AUTONOMO PENSIONAL | C148: 73800000000 | E148: 14560885000 | F148: 88360885000 | H148: 88360885000 | J148: 5000000000 | K148: 0.05658612405 | M148: 5000000000 | N148: 0.05658612405
A149: 00000342040000000000 | B149: FONDO PLAN DE EXPANSION | C149: 318975936000 | D149: 128924053 | E149: 99302096166 | F149: 418278032166 | H149: 418278032166
A150: 00000342060000000000 | B150: FONDO CUENTAS POR PAGAR LIBERADAS | C150: 4000000000 | D150: -3153100 | E150: -4776100 | F150: 3995223900 | H150: 3995223900
A151: 00000342090000000000 | B151: TRANFERENCIAS ADMINISTRACION CENTRAL - RIO BOGOTA | C151: 2795000000 | F151: 2795000000 | H151: 2795000000
A152: 00000342100000000000 | B152: FONDO EQUIPOS SINIESTRADOS | C152: 2000000000 | F152: 2000000000 | H152: 2000000000
A153: 00000342120000000000 | B153: FONDO REPOSICION EQUIPOS ASEO | C153: 3782557000 | F153: 3782557000 | H153: 3782557000 | I153: 119512134 | J153: 499091084 | K153: 0.1319454232 | L153: 119512134 | M153: 499091084 | N153: 0.1319454232
A154: 00000342160000000000 | B154: FONDO OBLIGACIONES CONTINGENTES | C154: 1495201000 | F154: 1495201000 | H154: 1495201000
A155: 343000000000000 | B155: CUENTAS POR PAGAR | C155: 565023385000 | D155: -1843581364 | E155: 11307332203 | F155: 576330717203 | H155: 576330717203 | I155: -4075221574 | J155: 478143946794 | K155: 0.8296346742 | L155: 22335634363 | M155: 157594124844 | N155: 0.2734439101
A156: 00000343000000000000 | B156: CUENTAS POR PAGAR | C156: 565023385000 | D156: -1843581364 | E156: 11307332203 | F156: 576330717203 | H156: 576330717203 | I156: -4075221574 | J156: 478143946794 | K156: 0.8296346742 | L156: 22335634363 | M156: 157594124844 | N156: 0.2734439101
A157: 400000000000000 | B157: DISPONIBILIDAD FINAL | C157: 111809729000 | F157: 111809729000 | H157: 111809729000
A158: 00000400000000000000 | B158: DISPONIBILIDAD FINAL | C158: 111809729000 | F158: 111809729000 | H158: 111809729000
B163: JULIANA CASTRO BUITRAGO | F163: ALEXIS JAVIER BLANCO RIVEIRA
B164: Directora Presupuesto | F164: Gerente Corporativo Financiero

Sheet Graph (hidden)
G1: FEP8Qry3
F2: Dir. SIE - BI Rev 2014.01
F5: Information
F6: Autor | G6: RAGARCIA | I6: Últ.actual.pantalla | J6: 02/07/2014 09:16:31
F7: Usuario actual | G7: AOCAMPOR | I7: Fe.clave | J7: 02/07/2014
F8: Modificado por | G8: RAGARCIA | I8: Hora de modificación | J8: 12/06/2014 15:20:31
F9: InfoSitio | G9: 0PU_C02 | I9: Actualidad de datos | J9: 02/07/2014 00:39:33
F10: Nombre técnico query | G10: ZPU_C02_Q4001 | I10: Actualidad de datos (fecha) | J10: 02/07/2014
F11: Descripción query | G11: EJECUCION PRESUPUESTAL DE GASTOS - SECRETARIA DE HACIENDA | I11: Actualidad de los datos (hora) | J11: 00:39:33
C14: Filter
C15: Cta Entidades PSM | D15: GASTOS, DISPONIBILIDAD FINAL
C16: Ratios

Sheet V_Futuras_2019-2021
A2: EMPRESA DE ACUEDUCTO ALCANTARILLADO DE BOGOTA | M2: EMPRESA DE ACUEDUCTO ALCANTARILLADO Y ASEO DE BOGOTA | Y2: EMPRESA DE ACUEDUCTO ALCANTARILLADO Y ASEO DE BOGOTA | AK2: EMPRESA DE ACUEDUCTO ALCANTARILLADO Y ASEO DE BOGOTA
A3: EJECUCION PRESUPUESTAL DE VIGENCIAS FUTURAS | M3: EJECUCION PRESUPUESTAL DE VIGENCIAS FUTURAS | Y3: EJECUCION PRESUPUESTAL DE VIGENCIAS FUTURAS | AK3: EJECUCION PRESUPUESTAL DE VIGENCIAS FUTURAS
A4: A 31 DE MAYO DE 2018 | M4: A 31 DE MAYO DE 2018 | Y4: A 31 DE MAYO DE 2018 | AK4: A 31 DE MAYO DE 2018
A6: 2019 | M6: 2020 | Q6: 2020 | Y6: 2021 | AK6: 2019-2021
A7: CODIGO SECRETARIA DE HACIENDA | B7: CONCEPTO | C7: PRESUPUESTO INICIAL | D7: MODIFICACIONES MES | E7: MODIFICACIONES ACUMULADAS | F7: PRESUPUESTO DEFINITIVO | G7: COMPROMISOS MES | H7: COMPROMISOS ACUMULADOS | I7: % EJEC PPTAL | J7: DISPONIBILIDADES MES | K7: DISPONIBILIDADES ACUMULADAS | L7: SALDO DISPONIBLE | M7: CODIGO SECRETARIA DE HACIENDA | N7: CONCEPTO | O7: PRESUPUESTO INICIAL | P7: MODIFICACIONES MES | Q7: MODIFICACIONES ACUMULADAS | R7: PRESUPUESTO DEFINITIVO | S7: COMPROMISOS MES | T7: COMPROMISOS ACUMULADOS | U7: % EJEC PPTAL | V7: DISPONIBILIDADES MES | W7: DISPONIBILIDADES ACUMULADAS | X7: SALDO DISPONIBLE | Y7: CODIGO SECRETARIA DE HACIENDA | Z7: CONCEPTO | AA7: PRESUPUESTO INICIAL | AB7: MODIFICACIONES MES | AC7: MODIFICACIONES ACUMULADAS | AD7: PRESUPUESTO DEFINITIVO | AE7: COMPROMISOS MES | AF7: COMPROMISOS ACUMULADOS | AG7: % EJEC PPTAL | AH7: DISPONIBILIDADES MES | AI7: DISPONIBILIDADES ACUMULADAS | AJ7: SALDO DISPONIBLE | AK7: CODIGO SECRETARIA DE HACIENDA | AL7: CONCEPTO | AM7: Presupuesto Inicial VF Total | AN7: Modificaciones mes VF Total | AO7: Modificaciones Acumuladas VF Total | AP7: Presupuesto Definitivo VF Total | AQ7: Compromisos mes Total | AR7: Compromisos Acumulados Total | AS7: % Ejecución Presupuestal Total | AT7: Disponibilidades mes Total | AU7: Disponibilidades Acumuladas Total | AV7: Saldo Disponible Total
A8: 300000000000000 | B8: GASTOS | C8: 405102089837 | E8: 446109936648 | F8: 851212026485 | H8: 404568140307 | I8: 0.475284803 | J8: 70263744946 | K8: 110561779315 | L8: 336082106863 | M8: 300000000000000 | N8: GASTOS | Q8: 196145671417 | R8: 196145671417 | V8: 180018449666 | W8: 180018449666 | X8: 16127221751 | Y8: 300000000000000 | Z8: GASTOS | AC8: 65840376580 | AD8: 65840376580 | AH8: 61664901042 | AI8: 61664901042 | AJ8: 4175475538 | AK8: 300000000000000 | AL8: GASTOS | AM8: 405102089837 | AO8: 708095984645 | AP8: 1113198074482 | AR8: 404568140307 | AS8: 0.3634287101 | AT8: 311947095654 | AU8: 352245130023 | AV8: 356384804152
A9: 310000000000000 | B9: GASTOS DE FUNCIONAMIENTO | C9: 101637204526 | E9: 39095593069 | F9: 140732797595 | H9: 101103254996 | I9: 0.7184057784 | K9: 33928964672 | L9: 5700577927 | M9: 340000000000000 | N9: GASTOS DE INVERSION | Q9: 196145671417 | R9: 196145671417 | V9: 180018449666 | W9: 180018449666 | X9: 16127221751 | Y9: 340000000000000 | Z9: GASTOS DE INVERSION | AC9: 65840376580 | AD9: 65840376580 | AH9: 61664901042 | AI9: 61664901042 | AJ9: 4175475538 | AK9: 310000000000000 | AL9: GASTOS DE FUNCIONAMIENTO | AM9: 101637204526 | AO9: 39095593069 | AP9: 140732797595 | AR9: 101103254996 | AS9: 0.7184057784 | AU9: 33928964672 | AV9: 5700577927
A10: 311000000000000 | B10: SERVICIOS PERSONALES | E10: 2923500000 | F10: 2923500000 | L10: 2923500000 | M10: 341000000000000 | N10: DIRECTA | Q10: 196145671417 | R10: 196145671417 | V10: 180018449666 | W10: 180018449666 | X10: 16127221751 | Y10: 341000000000000 | Z10: DIRECTA | AC10: 65840376580 | AD10: 65840376580 | AH10: 61664901042 | AI10: 61664901042 | AJ10: 4175475538 | AK10: 311000000000000 | AL10: SERVICIOS PERSONALES | AO10: 2923500000 | AP10: 2923500000 | AV10: 2923500000
A11: 311020000000000 | B11: SERVICIOS PERSONALES INDIRECTOS | E11: 2923500000 | F11: 2923500000 | L11: 2923500000 | M11: 3411500000000000 | N11: BOGOTA MEJOR PARA TODOS | Q11: 196145671417 | R11: 196145671417 | V11: 180018449666 | W11: 180018449666 | X11: 16127221751 | Y11: 3411500000000000 | Z11: BOGOTA MEJOR PARA TODOS | AC11: 65840376580 | AD11: 65840376580 | AH11: 61664901042 | AI11: 61664901042 | AJ11: 4175475538 | AK11: 311020000000000 | AL11: SERVICIOS PERSONALES INDIRECTOS | AO11: 2923500000 | AP11: 2923500000 | AV11: 2923500000
A12: 00000311020300000000 | B12: HONORARIOS | E12: 2923500000 | F12: 2923500000 | L12: 2923500000 | M12: 3411502000000000 | N12: DEMOCRACIA URBANA | Q12: 196145671417 | R12: 196145671417 | V12: 180018449666 | W12: 180018449666 | X12: 16127221751 | Y12: 3411502000000000 | Z12: DEMOCRACIA URBANA | AC12: 65840376580 | AD12: 65840376580 | AH12: 61664901042 | AI12: 61664901042 | AJ12: 4175475538 | AK12: 00000311020300000000 | AL12: HONORARIOS | AO12: 2923500000 | AP12: 2923500000 | AV12: 2923500000
A13: 312000000000000 | B13: GASTOS GENERALES | C13: 38736265442 | E13: 36172093069 | F13: 74908358511 | H13: 38736265442 | I13: 0.5171153956 | K13: 33928964672 | L13: 2243128397 | M13: 3411502130000000 | N13: INFRAESTRUCTURA PARA EL DESARROLLO DEL HÁBITAT | Q13: 196145671417 | R13: 196145671417 | V13: 180018449666 | W13: 180018449666 | X13: 16127221751 | Y13: 3411502130000000 | Z13: INFRAESTRUCTURA PARA EL DESARROLLO DEL HÁBITAT | AC13: 65840376580 | AD13: 65840376580 | AH13: 61664901042 | AI13: 61664901042 | AJ13: 4175475538 | AK13: 312000000000000 | AL13: GASTOS GENERALES | AM13: 38736265442 | AO13: 36172093069 | AP13: 74908358511 | AR13: 38736265442 | AS13: 0.5171153956 | AU13: 33928964672 | AV13: 2243128397
A14: 312010000000000 | B14: ADQUISICION DE BIENES Y SERVICIOS | C14: 38736265442 | E14: 36172093069 | F14: 74908358511 | H14: 38736265442 | I14: 0.5171153956 | K14: 33928964672 | L14: 2243128397 | M14: 3411502130053000 | N14: RENOV,REHAB.O REPOS.SIST.TRONCAL, SEC. Y LOCAL ALC. COMBIN | Q14: 2893431652 | R14: 2893431652 | X14: 2893431652 | Y14: 3411502130054000 | Z14: ACCIONES PARA EL SANEAMIENTO DEL RÍO BOGOTÁ | AC14: 65840376580 | AD14: 65840376580 | AH14: 61664901042 | AI14: 61664901042 | AJ14: 4175475538 | AK14: 312010000000000 | AL14: ADQUISICION DE BIENES Y SERVICIOS | AM14: 38736265442 | AO14: 36172093069 | AP14: 74908358511 | AR14: 38736265442 | AS14: 0.5171153956 | AU14: 33928964672 | AV14: 2243128397
A15: 00000312010200000000 | B15: MATERIALES Y SUMINISTROS | C15: 3091427891 | F15: 3091427891 | H15: 3091427891 | I15: 1 | M15: 00003411502130053133 | N15: INFRAESTRUCTURA PARA EL DESARROLLO DEL HÁBITAT | Q15: 2893431652 | R15: 2893431652 | X15: 2893431652 | Y15: 00003411502130054133 | Z15: INFRAESTRUCTURA PARA EL DESARROLLO DEL HÁBITAT | AC15: 65840376580 | AD15: 65840376580 | AH15: 61664901042 | AI15: 61664901042 | AJ15: 4175475538 | AK15: 00000312010200000000 | AL15: MATERIALES Y SUMINISTROS | AM15: 3091427891 | AP15: 3091427891 | AR15: 3091427891 | AS15: 1
A16: 00000312010300000000 | B16: ARRENDAMIENTOS | C16: 8778852792 | F16: 8778852792 | H16: 8778852792 | I16: 1 | M16: 3411502130054000 | N16: ACCIONES PARA EL SANEAMIENTO DEL RÍO BOGOTÁ | Q16: 192418830544 | R16: 192418830544 | V16: 180018449666 | W16: 180018449666 | X16: 12400380878 | AK16: 00000312010300000000 | AL16: ARRENDAMIENTOS | AM16: 8778852792 | AP16: 8778852792 | AR16: 8778852792 | AS16: 1
A17: 00000312010400000000 | B17: GASTOS DE COMPUTADOR | C17: 643062675 | E17: 1204097997 | F17: 1847160672 | H17: 643062675 | I17: 0.3481357549 | L17: 1204097997 | M17: 00003411502130054133 | N17: INFRAESTRUCTURA PARA EL DESARROLLO DEL HÁBITAT | Q17: 192418830544 | R17: 192418830544 | V17: 180018449666 | W17: 180018449666 | X17: 12400380878 | AK17: 00000312010400000000 | AL17: GASTOS DE COMPUTADOR | AM17: 643062675 | AO17: 1204097997 | AP17: 1847160672 | AR17: 643062675 | AS17: 0.3481357549 | AV17: 1204097997
A18: 00000312010600000000 | B18: GASTOS DE TRANSPORTE Y COMUNICACIÓN | E18: 4446000000 | F18: 4446000000 | K18: 4445969600 | L18: 30400 | M18: 3411502137338000 | N18: CONSTRUCCIÓN DE REDES LOCALES PARA EL SERVICIO DE ACUEDUCTO | Q18: 833409221 | R18: 833409221 | X18: 833409221 | AK18: 00000312010600000000 | AL18: GASTOS DE TRANSPORTE Y COMUNICACIÓN | AO18: 4446000000 | AP18: 4446000000 | AU18: 4445969600 | AV18: 30400
A19: 00000312010900000000 | B19: MANTENIMIENTO Y REPARACIONES | C19: 2978784680 | E19: 30521995072 | F19: 33500779752 | H19: 2978784680 | I19: 0.08891687603 | K19: 29482995072 | L19: 1039000000 | M19: 00003411502137338133 | N19: INFRAESTRUCTURA PARA EL DESARROLLO DEL HÁBITAT | Q19: 833409221 | R19: 833409221 | X19: 833409221 | AK19: 00000312010900000000 | AL19: MANTENIMIENTO Y REPARACIONES | AM19: 2978784680 | AO19: 30521995072 | AP19: 33500779752 | AR19: 2978784680 | AS19: 0.08891687603 | AU19: 29482995072 | AV19: 1039000000
A20: 00000312011100000000 | B20: SEGUROS | C20: 19735867974 | F20: 19735867974 | H20: 19735867974 | I20: 1 | AK20: 00000312011100000000 | AL20: SEGUROS | AM20: 19735867974 | AP20: 19735867974 | AR20: 19735867974 | AS20: 1
A21: 00000312011300000000 | B21: SERVICIOS PUBLICOS | C21: 1227760013 | F21: 1227760013 | H21: 1227760013 | I21: 1 | AK21: 00000312011300000000 | AL21: SERVICIOS PUBLICOS | AM21: 1227760013 | AP21: 1227760013 | AR21: 1227760013 | AS21: 1
A22: 00000312011800000000 | B22: INTERESES Y COMISIONES | C22: 2280509417 | F22: 2280509417 | H22: 2280509417 | I22: 1 | AK22: 00000312011800000000 | AL22: INTERESES Y COMISIONES | AM22: 2280509417 | AP22: 2280509417 | AR22: 2280509417 | AS22: 1
A23: 313000000000000 | B23: TRANSFERENCIAS CORRIENTES | C23: 62900939084 | F23: 62900939084 | H23: 62366989554 | I23: 0.991511263 | L23: 533949530 | AK23: 313000000000000 | AL23: TRANSFERENCIAS CORRIENTES | AM23: 62900939084 | AP23: 62900939084 | AR23: 62366989554 | AS23: 0.991511263 | AV23: 533949530
A24: 313030000000000 | B24: TRANSFERENCIAS DE PREVISION Y SEGURIDAD | C24: 62900939084 | F24: 62900939084 | H24: 62366989554 | I24: 0.991511263 | L24: 533949530 | AK24: 313030000000000 | AL24: TRANSFERENCIAS DE PREVISION Y SEGURIDAD | AM24: 62900939084 | AP24: 62900939084 | AR24: 62366989554 | AS24: 0.991511263 | AV24: 533949530
A25: 00000313030300000000 | B25: OTRAS TRANSFERENCIAS DE PREVISION Y SEGURIDAD SOCIAL | C25: 62900939084 | F25: 62900939084 | H25: 62366989554 | I25: 0.991511263 | L25: 533949530 | AK25: 00000313030300000000 | AL25: OTRAS TRANSFERENCIAS DE PREVISION Y SEGURIDAD SOCIAL | AM25: 62900939084 | AP25: 62900939084 | AR25: 62366989554 | AS25: 0.991511263 | AV25: 533949530
A26: 320000000000000 | B26: GASTOS DE OPERACIÓN | C26: 79647892709 | F26: 79647892709 | H26: 79647892709 | I26: 1 | AK26: 320000000000000 | AL26: GASTOS DE OPERACIÓN | AM26: 79647892709 | AP26: 79647892709 | AR26: 79647892709 | AS26: 1
A27: 321000000000000 | B27: GASTOS DE COMERCIALIZACION | C27: 11125136277 | F27: 11125136277 | H27: 11125136277 | I27: 1 | AK27: 321000000000000 | AL27: GASTOS DE COMERCIALIZACION | AM27: 11125136277 | AP27: 11125136277 | AR27: 11125136277 | AS27: 1
A28: 321010000000000 | B28: COMPRA DE BIENES PARA LA VENTA | C28: 3999999580 | F28: 3999999580 | H28: 3999999580 | I28: 1 | AK28: 321010000000000 | AL28: COMPRA DE BIENES PARA LA VENTA | AM28: 3999999580 | AP28: 3999999580 | AR28: 3999999580 | AS28: 1
A29: 00000321010100000000 | B29: MEDIDORES | C29: 3999999580 | F29: 3999999580 | H29: 3999999580 | I29: 1 | AK29: 00000321010100000000 | AL29: MEDIDORES | AM29: 3999999580 | AP29: 3999999580 | AR29: 3999999580 | AS29: 1
A30: 321030000000000 | B30: OTROS GASTOS DE COMERCIALIZACION | C30: 7125136697 | F30: 7125136697 | H30: 7125136697 | I30: 1 | AK30: 321030000000000 | AL30: OTROS GASTOS DE COMERCIALIZACION | AM30: 7125136697 | AP30: 7125136697 | AR30: 7125136697 | AS30: 1
A31: 00000321030100000000 | B31: MANTENIMIENTO Y MATERIALES OPERACION INF AC Y AL | C31: 7125136697 | F31: 7125136697 | H31: 7125136697 | I31: 1 | AK31: 00000321030100000000 | AL31: MANTENIMIENTO Y MATERIALES OPERACION INF AC Y AL | AM31: 7125136697 | AP31: 7125136697 | AR31: 7125136697 | AS31: 1
A32: 322000000000000 | B32: GASTOS DE PRODUCCION | C32: 68522756432 | F32: 68522756432 | H32: 68522756432 | I32: 1 | AK32: 322000000000000 | AL32: GASTOS DE PRODUCCION | AM32: 68522756432 | AP32: 68522756432 | AR32: 68522756432 | AS32: 1
A33: 322010000000000 | B33: INDUSTRIAL | C33: 68522756432 | F33: 68522756432 | H33: 68522756432 | I33: 1 | AK33: 322010000000000 | AL33: INDUSTRIAL | AM33: 68522756432 | AP33: 68522756432 | AR33: 68522756432 | AS33: 1
A34: 00000322010200000000 | B34: PRODUCTOS QUIMICOS | C34: 11315352596 | F34: 11315352596 | H34: 11315352596 | I34: 1 | AK34: 00000322010200000000 | AL34: PRODUCTOS QUIMICOS | AM34: 11315352596 | AP34: 11315352596 | AR34: 11315352596 | AS34: 1
A35: 00000322010300000000 | B35: ENERGIA PARA BOMBEO | C35: 57207403836 | F35: 57207403836 | H35: 57207403836 | I35: 1 | AK35: 00000322010300000000 | AL35: ENERGIA PARA BOMBEO | AM35: 57207403836 | AP35: 57207403836 | AR35: 57207403836 | AS35: 1
A36: 340000000000000 | B36: GASTOS DE INVERSION | C36: 223816992602 | E36: 407014343579 | F36: 630831336181 | H36: 223816992602 | I36: 0.3547968843 | J36: 70263744946 | K36: 76632814643 | L36: 330381528936 | AK36: 340000000000000 | AL36: GASTOS DE INVERSION | AM36: 223816992602 | AO36: 669000391576 | AP36: 892817384178 | AR36: 223816992602 | AS36: 0.2506861947 | AT36: 311947095654 | AU36: 318316165351 | AV36: 350684226225
A37: 341000000000000 | B37: DIRECTA | C37: 223816992602 | E37: 407014343579 | F37: 630831336181 | H37: 223816992602 | I37: 0.3547968843 | J37: 70263744946 | K37: 76632814643 | L37: 330381528936 | AK37: 341000000000000 | AL37: DIRECTA | AM37: 223816992602 | AO37: 669000391576 | AP37: 892817384178 | AR37: 223816992602 | AS37: 0.2506861947 | AT37: 311947095654 | AU37: 318316165351 | AV37: 350684226225
A38: 3411500000000000 | B38: BOGOTA MEJOR PARA TODOS | C38: 223816992602 | E38: 407014343579 | F38: 630831336181 | H38: 223816992602 | I38: 0.3547968843 | J38: 70263744946 | K38: 76632814643 | L38: 330381528936 | AK38: 3411500000000000 | AL38: BOGOTA MEJOR PARA TODOS | AM38: 223816992602 | AO38: 669000391576 | AP38: 892817384178 | AR38: 223816992602 | AS38: 0.2506861947 | AT38: 311947095654 | AU38: 318316165351 | AV38: 350684226225
A39: 3411502000000000 | B39: DEMOCRACIA URBANA | C39: 216805514771 | E39: 380457174962 | F39: 597262689733 | H39: 216805514771 | I39: 0.3629985909 | J39: 70263744946 | K39: 76632814643 | L39: 303824360319 | AK39: 3411502000000000 | AL39: DEMOCRACIA URBANA | AM39: 216805514771 | AO39: 642443222959 | AP39: 859248737730 | AR39: 216805514771 | AS39: 0.2523198525 | AT39: 311947095654 | AU39: 318316165351 | AV39: 324127057608
A40: 3411502130000000 | B40: INFRAESTRUCTURA PARA EL DESARROLLO DEL HÁBITAT | C40: 216805514771 | E40: 380457174962 | F40: 597262689733 | H40: 216805514771 | I40: 0.3629985909 | J40: 70263744946 | K40: 76632814643 | L40: 303824360319 | AK40: 3411502130000000 | AL40: INFRAESTRUCTURA PARA EL DESARROLLO DEL HÁBITAT | AM40: 216805514771 | AO40: 642443222959 | AP40: 859248737730 | AR40: 216805514771 | AS40: 0.2523198525 | AT40: 311947095654 | AU40: 318316165351 | AV40: 324127057608
A41: 3411502130019000 | B41: CONST.REDES LOCALES PARA EL SERVICIO ALCANTARILLADO PLUVIAL | C41: 2409642109 | E41: 17224556565 | F41: 19634198674 | H41: 2409642109 | I41: 0.1227267865 | L41: 17224556565 | AK41: 3411502130019000 | AL41: CONST.REDES LOCALES PARA EL SERVICIO ALCANTARILLADO PLUVIAL | AM41: 2409642109 | AO41: 17224556565 | AP41: 19634198674 | AR41: 2409642109 | AS41: 0.1227267865 | AV41: 17224556565
A42: 00003411502130019133 | B42: INFRAESTRUCTURA PARA EL DESARROLLO DEL HÁBITAT | C42: 2409642109 | E42: 17224556565 | F42: 19634198674 | H42: 2409642109 | I42: 0.1227267865 | L42: 17224556565 | AK42: 00003411502130019133 | AL42: INFRAESTRUCTURA PARA EL DESARROLLO DEL HÁBITAT | AM42: 2409642109 | AO42: 17224556565 | AP42: 19634198674 | AR42: 2409642109 | AS42: 0.1227267865 | AV42: 17224556565
A43: 3411502130020000 | B43: CONST.REDES LOCALES SERVICIO DE ALCANTARILLADO SANITARIO | C43: 2330123523 | E43: 18327735845 | F43: 20657859368 | H43: 2330123523 | I43: 0.1127959815 | L43: 18327735845 | AK43: 3411502130020000 | AL43: CONST.REDES LOCALES SERVICIO DE ALCANTARILLADO SANITARIO | AM43: 2330123523 | AO43: 18327735845 | AP43: 20657859368 | AR43: 2330123523 | AS43: 0.1127959815 | AV43: 18327735845
A44: 00003411502130020133 | B44: INFRAESTRUCTURA PARA EL DESARROLLO DEL HÁBITAT | C44: 2330123523 | E44: 18327735845 | F44: 20657859368 | H44: 2330123523 | I44: 0.1127959815 | L44: 18327735845 | AK44: 00003411502130020133 | AL44: INFRAESTRUCTURA PARA EL DESARROLLO DEL HÁBITAT | AM44: 2330123523 | AO44: 18327735845 | AP44: 20657859368 | AR44: 2330123523 | AS44: 0.1127959815 | AV44: 18327735845
A45: 3411502130021000 | B45: CONST.SISTEMA TRONCAL Y SECUNDARIO ALCANTARILLADO SANITARIO | C45: 2735291930 | E45: 21266395 | F45: 2756558325 | H45: 2735291930 | I45: 0.9922851641 | K45: 21266395 | AK45: 3411502130021000 | AL45: CONST.SISTEMA TRONCAL Y SECUNDARIO ALCANTARILLADO SANITARIO | AM45: 2735291930 | AO45: 21266395 | AP45: 2756558325 | AR45: 2735291930 | AS45: 0.9922851641 | AU45: 21266395
A46: 00003411502130021133 | B46: INFRAESTRUCTURA PARA EL DESARROLLO DEL HÁBITAT | C46: 2735291930 | E46: 21266395 | F46: 2756558325 | H46: 2735291930 | I46: 0.9922851641 | K46: 21266395 | AK46: 00003411502130021133 | AL46: INFRAESTRUCTURA PARA EL DESARROLLO DEL HÁBITAT | AM46: 2735291930 | AO46: 21266395 | AP46: 2756558325 | AR46: 2735291930 | AS46: 0.9922851641 | AU46: 21266395
A47: 3411502130022000 | B47: CONST.SISTEMA TRONCAL Y SECUNDARIO DE ALCANTARILLADO PLUVIAL | C47: 13577018782 | F47: 13577018782 | H47: 13577018782 | I47: 1 | AK47: 3411502130022000 | AL47: CONST.SISTEMA TRONCAL Y SECUNDARIO DE ALCANTARILLADO PLUVIAL | AM47: 13577018782 | AP47: 13577018782 | AR47: 13577018782 | AS47: 1
A48: 00003411502130022133 | B48: INFRAESTRUCTURA PARA EL DESARROLLO DEL HÁBITAT | C48: 13577018782 | F48: 13577018782 | H48: 13577018782 | I48: 1 | AK48: 00003411502130022133 | AL48: INFRAESTRUCTURA PARA EL DESARROLLO DEL HÁBITAT | AM48: 13577018782 | AP48: 13577018782 | AR48: 13577018782 | AS48: 1
A49: 3411502130050000 | B49: RENOV,REHAB.O REPOS. SIST.ABAST. Y DISTRIB. MATRIZ ACUEDUCTO | C49: 5221146125 | E49: 13959952031 | F49: 19181098156 | H49: 5221146125 | I49: 0.2722026697 | L49: 13959952031 | AK49: 3411502130050000 | AL49: RENOV,REHAB.O REPOS. SIST.ABAST. Y DISTRIB. MATRIZ ACUEDUCTO | AM49: 5221146125 | AO49: 13959952031 | AP49: 19181098156 | AR49: 5221146125 | AS49: 0.2722026697 | AV49: 13959952031
A50: 00003411502130050133 | B50: INFRAESTRUCTURA PARA EL DESARROLLO DEL HÁBITAT | C50: 5221146125 | E50: 13959952031 | F50: 19181098156 | H50: 5221146125 | I50: 0.2722026697 | L50: 13959952031 | AK50: 00003411502130050133 | AL50: INFRAESTRUCTURA PARA EL DESARROLLO DEL HÁBITAT | AM50: 5221146125 | AO50: 13959952031 | AP50: 19181098156 | AR50: 5221146125 | AS50: 0.2722026697 | AV50: 13959952031
A51: 3411502130051000 | B51: RENOV,REHAB.O REPOS.SIST.TRONCAL,SEC. Y LOCAL ALC.SANITARIO | C51: 49369100622 | E51: 16184926171 | F51: 65554026793 | H51: 49369100622 | I51: 0.7531055381 | K51: 5496500157 | L51: 10688426014 | AK51: 3411502130051000 | AL51: RENOV,REHAB.O REPOS.SIST.TRONCAL,SEC. Y LOCAL ALC.SANITARIO | AM51: 49369100622 | AO51: 16184926171 | AP51: 65554026793 | AR51: 49369100622 | AS51: 0.7531055381 | AU51: 5496500157 | AV51: 10688426014
A52: 00003411502130051133 | B52: INFRAESTRUCTURA PARA EL DESARROLLO DEL HÁBITAT | C52: 49369100622 | E52: 16184926171 | F52: 65554026793 | H52: 49369100622 | I52: 0.7531055381 | K52: 5496500157 | L52: 10688426014 | AK52: 00003411502130051133 | AL52: INFRAESTRUCTURA PARA EL DESARROLLO DEL HÁBITAT | AM52: 49369100622 | AO52: 16184926171 | AP52: 65554026793 | AR52: 49369100622 | AS52: 0.7531055381 | AU52: 5496500157 | AV52: 10688426014
A53: 3411502130052000 | B53: RENOV,REHAB.O REPOS.SIST.TRONCAL, SEC. Y LOCAL ALC. PLUVIAL | C53: 48194799785 | E53: 11525504019 | F53: 59720303804 | H53: 48194799785 | I53: 0.8070086171 | L53: 11525504019 | AK53: 3411502130052000 | AL53: RENOV,REHAB.O REPOS.SIST.TRONCAL, SEC. Y LOCAL ALC. PLUVIAL | AM53: 48194799785 | AO53: 11525504019 | AP53: 59720303804 | AR53: 48194799785 | AS53: 0.8070086171 | AV53: 11525504019
A54: 00003411502130052133 | B54: INFRAESTRUCTURA PARA EL DESARROLLO DEL HÁBITAT | C54: 48194799785 | E54: 11525504019 | F54: 59720303804 | H54: 48194799785 | I54: 0.8070086171 | L54: 11525504019 | AK54: 00003411502130052133 | AL54: INFRAESTRUCTURA PARA EL DESARROLLO DEL HÁBITAT | AM54: 48194799785 | AO54: 11525504019 | AP54: 59720303804 | AR54: 48194799785 | AS54: 0.8070086171 | AV54: 11525504019
A55: 3411502130053000 | B55: RENOV,REHAB.O REPOS.SIST.TRONCAL, SEC. Y LOCAL ALC. COMBIN | E55: 18806575911 | F55: 18806575911 | L55: 18806575911 | AK55: 3411502130053000 | AL55: RENOV,REHAB.O REPOS.SIST.TRONCAL, SEC. Y LOCAL ALC. COMBIN | AO55: 21700007563 | AP55: 21700007563 | AV55: 21700007563
A56: 00003411502130053133 | B56: INFRAESTRUCTURA PARA EL DESARROLLO DEL HÁBITAT | E56: 18806575911 | F56: 18806575911 | L56: 18806575911 | AK56: 00003411502130053133 | AL56: INFRAESTRUCTURA PARA EL DESARROLLO DEL HÁBITAT | AO56: 21700007563 | AP56: 21700007563 | AV56: 21700007563
A57: 3411502130054000 | B57: ACCIONES PARA EL SANEAMIENTO DEL RÍO BOGOTÁ | C57: 10258608154 | E57: 75281703275 | F57: 85540311429 | H57: 10258608154 | I57: 0.119927178 | J57: 69806584928 | K57: 70657888073 | L57: 4623815202 | AK57: 3411502130054000 | AL57: ACCIONES PARA EL SANEAMIENTO DEL RÍO BOGOTÁ | AM57: 10258608154 | AO57: 333540910399 | AP57: 343799518553 | AR57: 10258608154 | AS57: 0.02983892531 | AT57: 311489935636 | AU57: 312341238781 | AV57: 21199671618
A58: 00003411502130054133 | B58: INFRAESTRUCTURA PARA EL DESARROLLO DEL HÁBITAT | C58: 10258608154 | E58: 75281703275 | F58: 85540311429 | H58: 10258608154 | I58: 0.119927178 | J58: 69806584928 | K58: 70657888073 | L58: 4623815202 | AK58: 00003411502130054133 | AL58: INFRAESTRUCTURA PARA EL DESARROLLO DEL HÁBITAT | AM58: 10258608154 | AO58: 333540910399 | AP58: 343799518553 | AR58: 10258608154 | AS58: 0.02983892531 | AT58: 311489935636 | AU58: 312341238781 | AV58: 21199671618
A59: 3411502130081000 | B59: CORREDORES AMBIENTALES | E59: 145820570644 | F59: 145820570644 | L59: 145820570644 | AK59: 3411502130081000 | AL59: CORREDORES AMBIENTALES | AO59: 145820570644 | AP59: 145820570644 | AV59: 145820570644
A60: 00003411502130081133 | B60: INFRAESTRUCTURA PARA EL DESARROLLO DEL HÁBITAT | E60: 145820570644 | F60: 145820570644 | L60: 145820570644 | AK60: 00003411502130081133 | AL60: INFRAESTRUCTURA PARA EL DESARROLLO DEL HÁBITAT | AO60: 145820570644 | AP60: 145820570644 | AV60: 145820570644
A61: 3411502137334000 | B61: CONST.Y EXPANSIÓN SISTEMA ABASTECIMIENTO Y MATRIZ ACUEDUCTO | C61: 81135173091 | E61: 53004750605 | F61: 134139923696 | H61: 81135173091 | I61: 0.604854773 | J61: 457160018 | K61: 457160018 | L61: 52547590587 | AK61: 3411502137334000 | AL61: CONST.Y EXPANSIÓN SISTEMA ABASTECIMIENTO Y MATRIZ ACUEDUCTO | AM61: 81135173091 | AO61: 53004750605 | AP61: 134139923696 | AR61: 81135173091 | AS61: 0.604854773 | AT61: 457160018 | AU61: 457160018 | AV61: 52547590587
A62: 00003411502137334133 | B62: INFRAESTRUCTURA PARA EL DESARROLLO DEL HÁBITAT | C62: 81135173091 | E62: 53004750605 | F62: 134139923696 | H62: 81135173091 | I62: 0.604854773 | J62: 457160018 | K62: 457160018 | L62: 52547590587 | AK62: 00003411502137334133 | AL62: INFRAESTRUCTURA PARA EL DESARROLLO DEL HÁBITAT | AM62: 81135173091 | AO62: 53004750605 | AP62: 134139923696 | AR62: 81135173091 | AS62: 0.604854773 | AT62: 457160018 | AU62: 457160018 | AV62: 52547590587
A63: 3411502137338000 | B63: CONSTRUCCIÓN DE REDES LOCALES PARA EL SERVICIO DE ACUEDUCTO | C63: 1574610650 | E63: 10299633501 | F63: 11874244151 | H63: 1574610650 | I63: 0.1326072321 | L63: 10299633501 | AK63: 3411502137338000 | AL63: CONSTRUCCIÓN DE REDES LOCALES PARA EL SERVICIO DE ACUEDUCTO | AM63: 1574610650 | AO63: 11133042722 | AP63: 12707653372 | AR63: 1574610650 | AS63: 0.1239104187 | AV63: 11133042722
A64: 00003411502137338133 | B64: INFRAESTRUCTURA PARA EL DESARROLLO DEL HÁBITAT | C64: 1574610650 | E64: 10299633501 | F64: 11874244151 | H64: 1574610650 | I64: 0.1326072321 | L64: 10299633501 | AK64: 00003411502137338133 | AL64: INFRAESTRUCTURA PARA EL DESARROLLO DEL HÁBITAT | AM64: 1574610650 | AO64: 11133042722 | AP64: 12707653372 | AR64: 1574610650 | AS64: 0.1239104187 | AV64: 11133042722
A65: 3411506000000000 | B65: EJE TRANSV. SOST. AMBIENTAL BASADA EFICIENCIA ENERGÉTICA | C65: 7011477831 | E65: 22516368617 | F65: 29527846448 | H65: 7011477831 | I65: 0.2374530714 | L65: 22516368617 | AK65: 3411506000000000 | AL65: EJE TRANSV. SOST. AMBIENTAL BASADA EFICIENCIA ENERGÉTICA | AM65: 7011477831 | AO65: 22516368617 | AP65: 29527846448 | AR65: 7011477831 | AS65: 0.2374530714 | AV65: 22516368617
A66: 3411506390000000 | B66: AMBIENTE SANO PARA LA EQUIDAD Y DISFRUTE DEL CIUDADANO | C66: 7011477831 | E66: 22516368617 | F66: 29527846448 | H66: 7011477831 | I66: 0.2374530714 | L66: 22516368617 | AK66: 3411506390000000 | AL66: AMBIENTE SANO PARA LA EQUIDAD Y DISFRUTE DEL CIUDADANO | AM66: 7011477831 | AO66: 22516368617 | AP66: 29527846448 | AR66: 7011477831 | AS66: 0.2374530714 | AV66: 22516368617
A67: 3411506390082000 | B67: PLAN DE SANEAMIENTO Y MANEJO DE VERTIMIENTOS | C67: 7011477831 | E67: 22516368617 | F67: 29527846448 | H67: 7011477831 | I67: 0.2374530714 | L67: 22516368617 | AK67: 3411506390082000 | AL67: PLAN DE SANEAMIENTO Y MANEJO DE VERTIMIENTOS | AM67: 7011477831 | AO67: 22516368617 | AP67: 29527846448 | AR67: 7011477831 | AS67: 0.2374530714 | AV67: 22516368617
A68: 00003411506390082179 | B68: AMBIENTE SANO | C68: 7011477831 | E68: 22516368617 | F68: 29527846448 | H68: 7011477831 | I68: 0.2374530714 | L68: 22516368617 | AK68: 00003411506390082179 | AL68: AMBIENTE SANO | AM68: 7011477831 | AO68: 22516368617 | AP68: 29527846448 | AR68: 7011477831 | AS68: 0.2374530714 | AV68: 22516368617
A69: 3411507000000000 | B69: EJE TRANSVERSAL GOBIERNO LEGÍTIMO, FORT. LOCAL Y EFICIENTE | E69: 4040800000 | F69: 4040800000 | L69: 4040800000 | AK69: 3411507000000000 | AL69: EJE TRANSVERSAL GOBIERNO LEGÍTIMO, FORT. LOCAL Y EFICIENTE | AO69: 4040800000 | AP69: 4040800000 | AV69: 4040800000
A70: 3411507420000000 | B70: TRANSPARENCIA, GESTIÓN PÚBLICA Y SERVICIO A LA CIUDADANÍA | E70: 4040800000 | F70: 4040800000 | L70: 4040800000 | AK70: 3411507420000000 | AL70: TRANSPARENCIA, GESTIÓN PÚBLICA Y SERVICIO A LA CIUDADANÍA | AO70: 4040800000 | AP70: 4040800000 | AV70: 4040800000
A71: 3411507420055000 | B71: FORTALECIMIENTO ADMINISTRATIVO Y OPERATIVO EMPRESARIAL | E71: 4040800000 | F71: 4040800000 | L71: 4040800000 | AK71: 3411507420055000 | AL71: FORTALECIMIENTO ADMINISTRATIVO Y OPERATIVO EMPRESARIAL | AO71: 4040800000 | AP71: 4040800000 | AV71: 4040800000
A72: 00003411507420055185 | B72: FORTALECIMIENTO ADMINISTRATIVO Y OPERATIVO EMPRESARIAL | E72: 4040800000 | F72: 4040800000 | L72: 4040800000 | AK72: 00003411507420055185 | AL72: FORTALECIMIENTO ADMINISTRATIVO Y OPERATIVO EMPRESARIAL | AO72: 4040800000 | AP72: 4040800000 | AV72: 4040800000

Sheet Gastos P
A2: EMPRESA DE ACUEDUCTO ALCANTARILLADO DE BOGOTA
A3: EJECUCION PRESUPUESTAL DE GASTOS PERSONERIA
A4: A 31 DE MAYO DE 2018
C5: 1 | D5: 2 | E5: 3 | F5: 4=(1+3) | G5: 5 | H5: 6=(4-5) | I5: 7 | J5: 8 | K5: 9=(8/6) | L5: 10 | M5: 11 | N5: 12 | O5: 13=(12/6) | P5: 14=(12/10)
A6: CODIGO SECRETARIA DE HACIENDA | B6: RUBRO | C6: PRESUPUESTO INICIAL | D6: MODIFICACIONES MES | E6: MODIFICACIONES ACUMULADAS | F6: PRESUPUESTO DEFINITIVO | G6: SUSPENSION | H6: APROPIACION DISPONIBLE | I6: COMPROMISOS MES | J6: COMPROMISOS ACUMULADOS | K6: % EJEC PPTAL | L6: PAC ACUMULADO | M6: AUTORIZACIONES DE GIRO | O6: % EJEC AUT. GIRO | P6: % EJEC GIROS PAC | Q6: CODIGO SECRETARIA DE HACIENDA | R6: RUBRO | S6: PRESUPUESTO INICIAL | T6: MODIFICACIONES MES | U6: MODIFICACIONES ACUMULADAS | V6: PRESUPUESTO DEFINITIVO | W6: SUSPENSION | X6: APROPIACION DISPONIBLE | Y6: COMPROMISOS MES | Z6: COMPROMISOS ACUMULADOS | AA6: % EJEC PPTAL | AB6: PAC ACUMULADO | AC6: AUTORIZACIONES DE GIRO | AE6: % EJEC AUT. GIRO | AF6: % EJEC GIROS PAC
M7: MES | N7: ACUMULADO | AC7: MES | AD7: ACUMULADO
A8: TOTAL GASTOS + DISPONIBILIDAD FINAL | C8: 3850633264000 | D8: 0 | E8: 103123947963 | F8: 3953757211963 | H8: 3953757211963 | I8: 91871805866 | J8: 1945886816713 | K8: 0.4921614334 | L8: 975796530102 | M8: 121791814154 | N8: 689920272748 | O8: 0.1744973795 | P8: 0.7070329228 | Q8: TOTAL GASTOS + DISPONIBILIDAD FINAL | S8: 3850633264000 | T8: 0 | U8: 0 | V8: 3850633264000 | X8: 3850633264000 | Y8: 1669716571939 | Z8: 1669716571939 | AA8: 0.4336212923 | AB8: 319089843356 | AC8: 91962455314 | AD8: 91962455314 | AE8: 0.02388242375 | AF8: 0.2882023895 | AG8: =F8-V8 -> 103123947963 | AH8: =AG8-D8 -> 103123947963 | AI8: =J8-Z8 -> 276170244774 | AJ8: =AI8-I8 -> 184298438908 | AK8: =N8-AD8 -> 597957817434 | AL8: =AK8-M8 -> 476166003280
A9: 300000000000000 | B9: GASTOS | C9: 3738823535000 | D9: 0 | E9: 103123947963 | F9: 3841947482963 | H9: 3841947482963 | I9: 91871805866 | J9: 1945886816713 | K9: 0.5064844914 | L9: 975796530102 | M9: 121791814154 | N9: 689920272748 | O9: 0.1795756646 | P9: 0.7070329228 | Q9: 300000000000000 | R9: GASTOS | S9: 3738823535000 | T9: 0 | U9: 0 | V9: 3738823535000 | X9: 3738823535000 | Y9: 1669716571939 | Z9: 1669716571939 | AA9: 0.4465887615 | AB9: 319089843356 | AC9: 91962455314 | AD9: 91962455314 | AE9: 0.02459662898 | AF9: 0.2882023895 | AG9: =F9-V9 -> 103123947963 | AH9: =AG9-D9 -> 103123947963 | AI9: =J9-Z9 -> 276170244774 | AJ9: =AI9-I9 -> 184298438908 | AK9: =N9-AD9 -> 597957817434 | AL9: =AK9-M9 -> 476166003280
A10: 310000000000000 | B10: GASTOS DE FUNCIONAMIENTO | C10: 1236617326000 | D10: 0 | E10: 5106678498 | F10: 1241724004498 | H10: 1241724004498 | I10: 95895685957 | J10: 639340659171 | K10: 0.5148814526 | L10: 573487225206 | M10: 78868161336 | N10: 371918865173 | O10: 0.2995181408 | P10: 0.6485216215 | Q10: 310000000000000 | R10: GASTOS DE FUNCIONAMIENTO | S10: 1236617326000 | T10: 0 | U10: 0 | V10: 1236617326000 | X10: 1236617326000 | Y10: 377880174162 | Z10: 377880174162 | AA10: 0.305575675 | AB10: 132299632374 | AC10: 69460692751 | AD10: 69460692751 | AE10: 0.05616991715 | AF10: 0.5250255916 | AG10: 5106678498 | AH10: 5106678498 | AI10: 261460485009 | AJ10: 165564799052 | AK10: 302458172422 | AL10: 223590011086
A11: 311000000000000 | B11: SERVICIOS PERSONALES | C11: 322700565000 | D11: 0 | E11: 10615091032 | F11: 333315656032 | H11: 333315656032 | I11: 18629584843 | J11: 142044880407 | K11: 0.4261572412 | L11: 145568875135 | M11: 22644417885 | N11: 113881616510 | O11: 0.3416629686 | P11: 0.7823211961 | Q11: 311000000000000 | R11: SERVICIOS PERSONALES | S11: 322700565000 | T11: 3615038405 | U11: 3615038405 | V11: 326315603405 | X11: 326315603405 | Y11: 60083800098 | Z11: 60083800098 | AA11: 0.1841278795 | AB11: 35391744628 | AC11: 23255279004 | AD11: 23255279004 | AE11: 0.07126621823 | AF11: 0.6570820187 | AG11: 7000052627 | AH11: 7000052627 | AI11: 81961080309 | AJ11: 63331495466 | AK11: 90626337506 | AL11: 67981919621
A12: 311010000000000 | B12: SERVICIOS PERSONALES ASOCIADOS A LA NOMINA | C12: 207592274000 | D12: 0 | E12: -1624175714 | F12: 205968098286 | H12: 205968098286 | I12: 14054850703 | J12: 70645105293 | K12: 0.3429905208 | L12: 92087048141 | M12: 14346404468 | N12: 70633399299 | O12: 0.3429336868 | P12: 0.7670285966 | Q12: 311010000000000 | R12: SERVICIOS PERSONALES ASOCIADOS A LA NOMINA | S12: 207592274000 | T12: -1536198850 | U12: -1536198850 | V12: 206056075150 | X12: 206056075150 | Y12: 15276500628 | Z12: 15276500628 | AA12: 0.07413758909 | AB12: 20644731915 | AC12: 15276500628 | AD12: 15276500628 | AE12: 0.07413758909 | AF12: 0.739970889 | AG12: -87976864 | AH12: -87976864 | AI12: 55368604665 | AJ12: 41313753962 | AK12: 55356898671 | AL12: 41010494203
A13: 00000311010100000000 | B13: SUELDOS PERSONAL DE NOMINA | C13: 119153276000 | D13: 0 | E13: -1410519691 | F13: 117742756309 | H13: 117742756309 | I13: 9599426975 | J13: 46723623080 | K13: 0.3968280049 | L13: 49347911598 | M13: 9597341214 | N13: 46718751833 | O13: 0.396786633 | P13: 0.9467219649 | Q13: 00000311010100000000 | R13: SUELDOS PERSONAL DE NOMINA | S13: 119153276000 | T13: -1000073963 | U13: -1000073963 | V13: 118153202037 | X13: 118153202037 | Y13: 8742016379 | Z13: 8742016379 | AA13: 0.07398882323 | AB13: 9849981357 | AC13: 8742016379 | AD13: 8742016379 | AE13: 0.07398882323 | AF13: 0.887516033 | AG13: -410445728 | AH13: -410445728 | AI13: 37981606701 | AJ13: 28382179726 | AK13: 37976735454 | AL13: 28379394240
A14: 00000311010200000000 | B14: GASTOS DE REPRESENTACION | C14: 71675000 | F14: 71675000 | H14: 71675000 | I14: 5817190 | J14: 28504231 | K14: 0.3976872131 | L14: 29864500 | M14: 5817190 | N14: 28504231 | O14: 0.3976872131 | P14: 0.9544519748 | Q14: 00000311010200000000 | R14: GASTOS DE REPRESENTACION | S14: 71675000 | V14: 71675000 | X14: 71675000 | Y14: 5535436 | Z14: 5535436 | AA14: 0.07722966167 | AB14: 5972900 | AC14: 5535436 | AD14: 5535436 | AE14: 0.07722966167 | AF14: 0.926758526 | AG14: 0 | AH14: 0 | AI14: 22968795 | AJ14: 17151605 | AK14: 22968795 | AL14: 17151605
A15: 00000311010300000000 | B15: HORAS EXTRAS, DOMINICALES, FESTIVOS, RECARGO NOCTURNO Y TRA | C15: 11374267000 | D15: 0 | E15: -11429135 | F15: 11362837865 | H15: 11362837865 | I15: 1465987255 | J15: 7323117003 | K15: 0.6444795825 | L15: 7375163207 | M15: 1467232476 | N15: 7323117003 | O15: 0.6444795825 | P15: 0.9929430438 | Q15: 00000311010300000000 | R15: HORAS EXTRAS, DOMINICALES, FESTIVOS, RECARGO NOCTURNO Y TRA | S15: 11374267000 | T15: -17350615 | U15: -17350615 | V15: 11356916385 | X15: 11356916385 | Y15: 1702924950 | Z15: 1702924950 | AA15: 0.1499460674 | AB15: 1753411108 | AC15: 1702924950 | AD15: 1702924950 | AE15: 0.1499460674 | AF15: 0.9712068905 | AG15: 5921480 | AH15: 5921480 | AI15: 5620192053 | AJ15: 4154204798 | AK15: 5620192053 | AL15: 4152959577
A16: 00000311010400000000 | B16: SUBSIDIO DE TRANSPORTE | C16: 1518813000 | D16: 0 | E16: -213803 | F16: 1518599197 | H16: 1518599197 | I16: 97825758 | J16: 523188105 | K16: 0.3445202039 | L16: 639245313 | M16: 97890216 | N16: 523188105 | O16: 0.3445202039 | P16: 0.8184465249 | Q16: 00000311010400000000 | R16: SUBSIDIO DE TRANSPORTE | S16: 1518813000 | T16: -213803 | U16: -213803 | V16: 1518599197 | X16: 1518599197 | Y16: 130683384 | Z16: 130683384 | AA16: 0.08605521737 | AB16: 133379062 | AC16: 130683384 | AD16: 130683384 | AE16: 0.08605521737 | AF16: 0.9797893465 | AG16: 0 | AH16: 0 | AI16: 392504721 | AJ16: 294678963 | AK16: 392504721 | AL16: 294614505
A17: 00000311010500000000 | B17: SUBSIDIO DE ALIMENTACION | C17: 8862554000 | D17: 0 | E17: 2332021 | F17: 8864886021 | H17: 8864886021 | I17: 707417909 | J17: 3947138759 | K17: 0.4452554437 | L17: 3997260639 | M17: 707743434 | N17: 3947138759 | O17: 0.4452554437 | P17: 0.9874609427 | Q17: 00000311010500000000 | R17: SUBSIDIO DE ALIMENTACION | S17: 8862554000 | T17: 2332021 | U17: 2332021 | V17: 8864886021 | X17: 8864886021 | Y17: 1015555830 | Z17: 1015555830 | AA17: 0.1145593782 | AB17: 1144332128 | AC17: 1015555830 | AD17: 1015555830 | AE17: 0.1145593782 | AF17: 0.887465977 | AG17: 0 | AH17: 0 | AI17: 2931582929 | AJ17: 2224165020 | AK17: 2931582929 | AL17: 2223839495
A18: 00000311010600000000 | B18: BONIFICACION POR SERVICIOS PRESTADOS | C18: 428970000 | D18: 0 | E18: 5201331 | F18: 434171331 | H18: 434171331 | I18: 9376488 | J18: 72039633 | K18: 0.1659244355 | L18: 179200043 | M18: 9376488 | N18: 72039633 | O18: 0.1659244355 | P18: 0.4020067841 | Q18: 00000311010600000000 | R18: BONIFICACION POR SERVICIOS PRESTADOS | S18: 428970000 | T18: -5127753 | U18: -5127753 | V18: 423842247 | X18: 423842247 | Y18: 25910782 | Z18: 25910782 | AA18: 0.06113308002 | AB18: 35320131 | AC18: 25910782 | AD18: 25910782 | AE18: 0.06113308002 | AF18: 0.7335981285 | AG18: 10329084 | AH18: 10329084 | AI18: 46128851 | AJ18: 36752363 | AK18: 46128851 | AL18: 36752363
A19: 00000311010700000000 | B19: PRIMA SEMESTRAL | C19: 13981393000 | D19: 0 | E19: 22564148 | F19: 14003957148 | H19: 14003957148 | J19: 25957399 | K19: 0.001853576009 | L19: 5831258439 | M19: 1678777 | N19: 25957399 | O19: 0.001853576009 | P19: 0.004451423183 | Q19: 00000311010700000000 | R19: PRIMA SEMESTRAL | S19: 13981393000 | V19: 13981393000 | X19: 13981393000 | Y19: 8349833 | Z19: 8349833 | AA19: 0.0005972103781 | AB19: 1165116000 | AC19: 8349833 | AD19: 8349833 | AE19: 0.0005972103781 | AF19: 0.00716652505 | AG19: 22564148 | AH19: 22564148 | AI19: 17607566 | AJ19: 17607566 | AK19: 17607566 | AL19: 15928789
A20: 00000311010900000000 | B20: PRIMA DE NAVIDAD | C20: 14466954000 | D20: 0 | E20: -110423280 | F20: 14356530720 | H20: 14356530720 | J20: 11363857 | K20: 0.0007915461765 | L20: 5973484541 | M20: 838888 | N20: 11363857 | O20: 0.0007915461765 | P20: 0.001902383261 | Q20: 00000311010900000000 | R20: PRIMA DE NAVIDAD | S20: 14466954000 | T20: -161349296 | U20: -161349296 | V20: 14305604704 | X20: 14305604704 | Y20: 1003388 | Z20: 1003388 | AA20: 7.013950272e-05 | AB20: 1192133726 | AC20: 1003388 | AD20: 1003388 | AE20: 7.013950272e-05 | AF20: 0.0008416740321 | AG20: 50926016 | AH20: 50926016 | AI20: 10360469 | AJ20: 10360469 | AK20: 10360469 | AL20: 9521581
A21: 00000311011000000000 | B21: PRIMA DE VACACIONES | C21: 15513705000 | D21: 0 | E21: -79703481 | F21: 15434001519 | H21: 15434001519 | I21: 1015156601 | J21: 4341964437 | K21: 0.2813246086 | L21: 6421414186 | M21: 1015679946 | N21: 4335129690 | O21: 0.2808817716 | P21: 0.6751051349 | Q21: 00000311011000000000 | R21: PRIMA DE VACACIONES | S21: 15513705000 | T21: -126712121 | U21: -126712121 | V21: 15386992879 | X21: 15386992879 | Y21: 1034226019 | Z21: 1034226019 | AA21: 0.06721430413 | AB21: 1279636822 | AC21: 1034226019 | AD21: 1034226019 | AE21: 0.06721430413 | AF21: 0.8082183954 | AG21: 47008640 | AH21: 47008640 | AI21: 3307738418 | AJ21: 2292581817 | AK21: 3300903671 | AL21: 2285223725
A22: 00000311011100000000 | B22: PRIMA TECNICA | C22: 4202843000 | D22: 0 | E22: 45594918 | F22: 4248437918 | H22: 4248437918 | I22: 325759721 | J22: 1644014425 | K22: 0.3869691535 | L22: 1740964164 | M22: 325759721 | N22: 1644014425 | O22: 0.3869691535 | P22: 0.9443126165 | Q22: 00000311011100000000 | R22: PRIMA TECNICA | S22: 4202843000 | T22: -131475210 | U22: -131475210 | V22: 4071367790 | X22: 4071367790 | Y22: 306310647 | Z22: 306310647 | AA22: 0.07523531717 | AB22: 339280629 | AC22: 306310647 | AD22: 306310647 | AE22: 0.07523531717 | AF22: 0.9028238597 | AG22: 177070128 | AH22: 177070128 | AI22: 1337703778 | AJ22: 1011944057 | AK22: 1337703778 | AL22: 1011944057
A23: 00000311011200000000 | B23: OTRAS PRIMAS Y BONIFICACIONES | C23: 11618579000 | D23: 0 | E23: -87578742 | F23: 11531000258 | H23: 11531000258 | I23: 158137187 | J23: 3284038828 | K23: 0.2848008633 | L23: 6313251471 | M23: 432453922 | N23: 3284038828 | O23: 0.2848008633 | P23: 0.5201818497 | Q23: 00000311011200000000 | R23: OTRAS PRIMAS Y BONIFICACIONES | S23: 11618579000 | T23: -96228110 | U23: -96228110 | V23: 11522350890 | X23: 11522350890 | Y23: 2047018976 | Z23: 2047018976 | AA23: 0.1776563651 | AB23: 2650498312 | AC23: 2047018976 | AD23: 2047018976 | AE23: 0.1776563651 | AF23: 0.7723147631 | AG23: 8649368 | AH23: 8649368 | AI23: 1237019852 | AJ23: 1078882665 | AK23: 1237019852 | AL23: 804565930
A24: 00000311011400000000 | B24: QUINQUENIO | C24: 4341645000 | F24: 4341645000 | H24: 4341645000 | I24: 423854119 | J24: 2454948576 | K24: 0.5654420331 | L24: 2894430040 | M24: 438500696 | N24: 2454948576 | O24: 0.5654420331 | P24: 0.848163038 | Q24: 00000311011400000000 | R24: QUINQUENIO | S24: 4341645000 | V24: 4341645000 | X24: 4341645000 | Y24: 237849544 | Z24: 237849544 | AA24: 0.05478327777 | AB24: 661803740 | AC24: 237849544 | AD24: 237849544 | AE24: 0.05478327777 | AF24: 0.3593958898 | AG24: 0 | AH24: 0 | AI24: 2217099032 | AJ24: 1793244913 | AK24: 2217099032 | AL24: 1778598336
A25: 00000311011500000000 | B25: INDEMNIZACIONES LABORALES | C25: 1512000000 | F25: 1512000000 | H25: 1512000000 | J25: 19115460 | K25: 0.0126425 | L25: 798000000 | N25: 19115460 | O25: 0.0126425 | P25: 0.02395421053 | Q25: 00000311011500000000 | R25: INDEMNIZACIONES LABORALES | S25: 1512000000 | V25: 1512000000 | X25: 1512000000 | Y25: 19115460 | Z25: 19115460 | AA25: 0.0126425 | AB25: 252000000 | AC25: 19115460 | AD25: 19115460 | AE25: 0.0126425 | AF25: 0.075855 | AG25: 0 | AH25: 0 | AI25: 0 | AJ25: 0 | AK25: 0 | AL25: 0
A26: 00000311011600000000 | B26: CONVENCIONES COLECTIVAS O CONVENIOS | C26: 545600000 | F26: 545600000 | H26: 545600000 | I26: 246091500 | J26: 246091500 | K26: 0.4510474707 | L26: 545600000 | M26: 246091500 | N26: 246091500 | O26: 0.4510474707 | P26: 0.4510474707 | Q26: 00000311011600000000 | R26: CONVENCIONES COLECTIVAS O CONVENIOS | S26: 545600000 | V26: 545600000 | X26: 545600000 | AB26: 181866000 | AG26: 0 | AH26: 0 | AI26: 246091500 | AJ26: 0 | AK26: 246091500 | AL26: 0
A27: 311020000000000 | B27: SERVICIOS PERSONALES INDIRECTOS | C27: 52943116000 | D27: 0 | E27: 11516114068 | F27: 64459230068 | H27: 64459230068 | I27: 465097468 | J27: 42826386985 | K27: 0.6643949507 | L27: 22206735676 | M27: 3623128600 | N27: 18620523880 | O27: 0.2888728869 | P27: 0.8385079262 | Q27: 311020000000000 | R27: SERVICIOS PERSONALES INDIRECTOS | S27: 52943116000 | T27: 4712018129 | U27: 4712018129 | V27: 57655134129 | X27: 57655134129 | Y27: 33193043172 | Z27: 33193043172 | AA27: 0.5757170402 | AB27: 2049659847 | AC27: 279496097 | AD27: 279496097 | AE27: 0.004847722605 | AF27: 0.1363621859 | AG27: 6804095939 | AH27: 6804095939 | AI27: 9633343813 | AJ27: 9168246345 | AK27: 18341027783 | AL27: 14717899183
A28: 00000311020300000000 | B28: HONORARIOS | C28: 43143000000 | D28: 0 | E28: 5441561452 | F28: 48584561452 | H28: 48584561452 | I28: 188750141 | J28: 33360727526 | K28: 0.6866528487 | L28: 12875588247 | M28: 3290903274 | N28: 9848606645 | O28: 0.2027106215 | P28: 0.7649053741 | Q28: 00000311020300000000 | R28: HONORARIOS | S28: 43143000000 | T28: 4759366645 | U28: 4759366645 | V28: 47902366645 | X28: 47902366645 | Y28: 32158918764 | Z28: 32158918764 | AA28: 0.6713430049 | AB28: 1481152357 | AC28: 15321412 | AD28: 15321412 | AE28: 0.0003198466605 | AF28: 0.01034425117 | AG28: 682194807 | AH28: 682194807 | AI28: 1201808762 | AJ28: 1013058621 | AK28: 9833285233 | AL28: 6542381959
A29: 00000311020400000000 | B29: REMUNERACION SERVICIOS TECNICOS | C29: 4240000000 | D29: 0 | E29: 29831004 | F29: 4269831004 | H29: 4269831004 | I29: 17128868 | J29: 873645091 | K29: 0.2046088218 | L29: 259130374 | M29: 73006867 | N29: 179902867 | O29: 0.04213348651 | P29: 0.6942561932 | Q29: 00000311020400000000 | R29: REMUNERACION SERVICIOS TECNICOS | S29: 4240000000 | T29: 0 | U29: 0 | V29: 4240000000 | X29: 4240000000 | Y29: 769949723 | Z29: 769949723 | AA29: 0.1815919158 | AB29: 0 | AG29: 29831004 | AH29: 29831004 | AI29: 103695368 | AJ29: 86566500 | AK29: 179902867 | AL29: 106896000
A30: 00000311029900000000 | B30: OTROS GASTOS DE PERSONAL | C30: 5560116000 | D30: 0 | E30: 6044721612 | F30: 11604837612 | H30: 11604837612 | I30: 259218459 | J30: 8592014368 | K30: 0.7403821281 | L30: 9072017055 | M30: 259218459 | N30: 8592014368 | O30: 0.7403821281 | P30: 0.9470897504 | Q30: 00000311029900000000 | R30: OTROS GASTOS DE PERSONAL | S30: 5560116000 | T30: -47348516 | U30: -47348516 | V30: 5512767484 | X30: 5512767484 | Y30: 264174685 | Z30: 264174685 | AA30: 0.0479205201 | AB30: 568507490 | AC30: 264174685 | AD30: 264174685 | AE30: 0.0479205201 | AF30: 0.4646810986 | AG30: 6092070128 | AH30: 6092070128 | AI30: 8327839683 | AJ30: 8068621224 | AK30: 8327839683 | AL30: 8068621224
A31: 311030000000000 | B31: APORTES PATRONALES AL SECTOR PUBLICO Y PRIVADO | C31: 62165175000 | D31: 0 | E31: 723152678 | F31: 62888327678 | H31: 62888327678 | I31: 4109636672 | J31: 28573388129 | K31: 0.4543512156 | L31: 31275091318 | M31: 4674884817 | N31: 24627693331 | O31: 0.3916099257 | P31: 0.7874539224 | Q31: 311030000000000 | R31: APORTES PATRONALES AL SECTOR PUBLICO Y PRIVADO | S31: 62165175000 | T31: 439219126 | U31: 439219126 | V31: 62604394126 | X31: 62604394126 | Y31: 11614256298 | Z31: 11614256298 | AA31: 0.1855182286 | AB31: 12697352866 | AC31: 7699282279 | AD31: 7699282279 | AE31: 0.1229830971 | AF31: 0.6063690881 | AG31: 283933552 | AH31: 283933552 | AI31: 16959131831 | AJ31: 12849495159 | AK31: 16928411052 | AL31: 12253526235
A32: 00000311030100000000 | B32: CAJA DE COMPENSACION | C32: 7583715000 | D32: 0 | E32: -27358158 | F32: 7556356842 | H32: 7556356842 | I32: 490267732 | J32: 2720231473 | K32: 0.359992458 | L32: 3143471862 | M32: 774452229 | N32: 2192647329 | O32: 0.2901725494 | P32: 0.6975240833 | Q32: 00000311030100000000 | R32: CAJA DE COMPENSACION | S32: 7583715000 | T32: -57720530 | U32: -57720530 | V32: 7525994470 | X32: 7525994470 | Y32: 494391488 | Z32: 494391488 | AA32: 0.06569118406 | AB32: 627266189 | AC32: 4381000 | AD32: 4381000 | AE32: 0.0005821157612 | AF32: 0.006984275698 | AG32: 30362372 | AH32: 30362372 | AI32: 2225839985 | AJ32: 1735572253 | AK32: 2188266329 | AL32: 1413814100
A33: 00000311030200000000 | B33: CESANTIAS | C33: 7200812000 | D33: 0 | E33: 918571312 | F33: 8119383312 | H33: 8119383312 | J33: 7397909592 | K33: 0.9111418082 | L33: 8061191398 | N33: 7397889441 | O33: 0.9111393263 | P33: 0.9177166346 | Q33: 00000311030200000000 | R33: CESANTIAS | S33: 7200812000 | T33: 855791900 | U33: 855791900 | V33: 8056603900 | X33: 8056603900 | Y33: 7397915322 | Z33: 7397915322 | AA33: 0.9182424026 | AB33: 8056603900 | AC33: 7397376458 | AD33: 7397376458 | AE33: 0.9181755179 | AF33: 0.9181755179 | AG33: 62779412 | AH33: 62779412 | AI33: -5730 | AJ33: -5730 | AK33: 512983 | AL33: 512983
A34: 00000311030300000000 | B34: PENSIONES | C34: 17533115000 | D34: 0 | E34: -75857243 | F34: 17457257757 | H34: 17457257757 | I34: 1521458685 | J34: 7657923248 | K34: 0.4386670206 | L34: 7687901262 | M34: 1558186578 | N34: 6245347386 | O34: 0.3577507689 | P34: 0.8123605095 | Q34: 00000311030300000000 | R34: PENSIONES | S34: 17533115000 | T34: -172555039 | U34: -172555039 | V34: 17360559961 | X34: 17360559961 | Y34: 1537215794 | Z34: 1537215794 | AA34: 0.08854644075 | AB34: 1541713308 | AC34: 96154989 | AD34: 96154989 | AE34: 0.005538703199 | AF34: 0.06236891678 | AG34: 96697796 | AH34: 96697796 | AI34: 6120707454 | AJ34: 4599248769 | AK34: 6149192397 | AL34: 4591005819
A35: 00000311030400000000 | B35: SALUD | C35: 23992277000 | D35: 0 | E35: -90862198 | F35: 23901414802 | H35: 23901414802 | I35: 1834035677 | J35: 9423480890 | K35: 0.3942645642 | L35: 9950830354 | M35: 1964881817 | N35: 7690326382 | O35: 0.3217519317 | P35: 0.7728326289 | Q35: 00000311030400000000 | R35: SALUD | S35: 23992277000 | T35: -139903246 | U35: -139903246 | V35: 23852373754 | X35: 23852373754 | Y35: 1930205591 | Z35: 1930205591 | AA35: 0.08092299789 | AB35: 1987697762 | AC35: 195723632 | AD35: 195723632 | AE35: 0.0082056249 | AF35: 0.09846750132 | AG35: 49041048 | AH35: 49041048 | AI35: 7493275299 | AJ35: 5659239622 | AK35: 7494602750 | AL35: 5529720933
A36: 00000311030500000000 | B36: RIESGOS PROFESIONALES | C36: 1334593000 | D36: 0 | E36: -6268389 | F36: 1328324611 | H36: 1328324611 | I36: 111049669 | J36: 541845772 | K36: 0.4079166851 | L36: 552325757 | M36: 109887700 | N36: 428254100 | O36: 0.3224016904 | P36: 0.7753650714 | Q36: 00000311030500000000 | R36: RIESGOS PROFESIONALES | S36: 1334593000 | T36: -13191829 | U36: -13191829 | V36: 1321401171 | X36: 1321401171 | Y36: 102973814 | Z36: 102973814 | AA36: 0.07792774538 | AB36: 110116684 | AC36: 169900 | AD36: 169900 | AE36: 0.0001285756391 | AF36: 0.001542908793 | AG36: 6923440 | AH36: 6923440 | AI36: 438871958 | AJ36: 327822289 | AK36: 428084200 | AL36: 318196500
A37: 00000311030600000000 | B37: ICBF | C37: 2730824000 | D37: 0 | E37: 2540271 | F37: 2733364271 | H37: 2733364271 | I37: 91692846 | J37: 499218852 | K37: 0.1826389762 | L37: 1135173349 | M37: 160480396 | N37: 403939296 | O37: 0.1477809966 | P37: 0.3558393054 | Q37: 00000311030600000000 | R37: ICBF | S37: 2730824000 | T37: -20054977 | U37: -20054977 | V37: 2710769023 | X37: 2710769023 | Y37: 90952575 | Z37: 90952575 | AA37: 0.03355231458 | AB37: 225897417 | AC37: 3285900 | AD37: 3285900 | AE37: 0.001212165246 | AF37: 0.01454598306 | AG37: 22595248 | AH37: 22595248 | AI37: 408266277 | AJ37: 316573431 | AK37: 400653396 | AL37: 240173000
A38: 00000311030700000000 | B38: SENA | C38: 1789839000 | D38: 0 | E38: 2387083 | F38: 1792226083 | H38: 1792226083 | I38: 61132063 | J38: 332778302 | K38: 0.1856787518 | L38: 744197336 | M38: 106996097 | N38: 269289397 | O38: 0.1502541446 | P38: 0.3618521378 | Q38: 00000311030700000000 | R38: SENA | S38: 1789839000 | T38: -13147153 | U38: -13147153 | V38: 1776691847 | X38: 1776691847 | Y38: 60601714 | Z38: 60601714 | AA38: 0.03410929932 | AB38: 148057606 | AC38: 2190400 | AD38: 2190400 | AE38: 0.001232853071 | AF38: 0.01479424164 | AG38: 15534236 | AH38: 15534236 | AI38: 272176588 | AJ38: 211044525 | AK38: 267098997 | AL38: 160102900
A39: 312000000000000 | B39: GASTOS GENERALES | C39: 508410399000 | D39: 1630680456 | E39: -28345083314 | F39: 480065315686 | H39: 480065315686 | I39: 64804701752 | J39: 229405162778 | K39: 0.4778623976 | L39: 221948036845 | M39: 33207340910 | N39: 105769954324 | O39: 0.2203240911 | P39: 0.4765527816 | Q39: 312000000000000 | R39: GASTOS GENERALES | S39: 508410399000 | T39: -29195617809 | U39: -29195617809 | V39: 479214781191 | X39: 479214781191 | Y39: 100527903841 | Z39: 100527903841 | AA39: 0.2097763003 | AB39: 28893217986 | AC39: 14076634216 | AD39: 14076634216 | AE39: 0.02937437401 | AF39: 0.4871950997 | AG39: 850534495 | AH39: -780145961 | AI39: 128877258937 | AJ39: 64072557185 | AK39: 91693320108 | AL39: 58485979198
A40: 312010000000000 | B40: ADQUISICION DE BIENES Y SERVICIOS | C40: 508410399000 | D40: 1630680456 | E40: -28345083314 | F40: 480065315686 | H40: 480065315686 | I40: 64804701752 | J40: 229405162778 | K40: 0.4778623976 | L40: 221948036845 | M40: 33207340910 | N40: 105769954324 | O40: 0.2203240911 | P40: 0.4765527816 | Q40: 312010000000000 | R40: ADQUISICION DE BIENES Y SERVICIOS | S40: 508410399000 | T40: -29195617809 | U40: -29195617809 | V40: 479214781191 | X40: 479214781191 | Y40: 100527903841 | Z40: 100527903841 | AA40: 0.2097763003 | AB40: 28893217986 | AC40: 14076634216 | AD40: 14076634216 | AE40: 0.02937437401 | AF40: 0.4871950997 | AG40: 850534495 | AH40: -780145961 | AI40: 128877258937 | AJ40: 64072557185 | AK40: 91693320108 | AL40: 58485979198
A41: 00000312010100000000 | B41: DOTACION | C41: 3462394000 | D41: -47008589 | E41: 55018169 | F41: 3517412169 | H41: 3517412169 | I41: 12120000 | J41: 223614238 | K41: 0.06357351009 | L41: 115720673 | M41: 128064 | N41: 22636134 | O41: 0.006435451097 | P41: 0.1956101137 | Q41: 00000312010100000000 | R41: DOTACION | S41: 3462394000 | T41: 0 | U41: 0 | V41: 3462394000 | X41: 3462394000 | Y41: 500000 | Z41: 500000 | AA41: 0.000144408753 | AB41: 168805 | AG41: 55018169 | AH41: 102026758 | AI41: 223114238 | AJ41: 210994238 | AK41: 22636134 | AL41: 22508070
A42: 00000312010200000000 | B42: MATERIALES Y SUMINISTROS | C42: 14360601000 | D42: -500000000 | E42: -618000000 | F42: 13742601000 | H42: 13742601000 | I42: 0 | J42: 8035515494 | K42: 0.5847157677 | L42: 2413835579 | M42: 108570758 | N42: 203453494 | O42: 0.01480458423 | P42: 0.0842863929 | Q42: 00000312010200000000 | R42: MATERIALES Y SUMINISTROS | S42: 14360601000 | T42: -106000000 | U42: -106000000 | V42: 14254601000 | X42: 14254601000 | Y42: 7179498234 | Z42: 7179498234 | AA42: 0.5036618166 | AB42: 834155886 | AG42: -512000000 | AH42: -12000000 | AI42: 856017260 | AJ42: 856017260 | AK42: 203453494 | AL42: 94882736
A43: 00000312010300000000 | B43: ARRENDAMIENTOS | C43: 13288258000 | D43: 35379000 | E43: -80240303 | F43: 13208017697 | H43: 13208017697 | I43: 7679747 | J43: 8646361143 | K43: 0.6546297364 | L43: 1056761886 | M43: 269335189 | N43: 781523922 | O43: 0.05917041754 | P43: 0.7395459018 | Q43: 00000312010300000000 | R43: ARRENDAMIENTOS | S43: 13288258000 | T43: -126756564 | U43: -126756564 | V43: 13161501436 | X43: 13161501436 | Y43: 8484093116 | Z43: 8484093116 | AA43: 0.6446143821 | AB43: 213803689 | AG43: 46516261 | AH43: 11137261 | AI43: 162268027 | AJ43: 154588280 | AK43: 781523922 | AL43: 512188733
A44: 00000312010400000000 | B44: GASTOS DE COMPUTADOR | C44: 33237587000 | D44: 747750298 | E44: 661897748 | F44: 33899484748 | H44: 33899484748 | I44: 0 | J44: 28986784381 | K44: 0.8550803824 | L44: 6666802083 | M44: 1606900668 | N44: 6666802075 | O44: 0.1966638173 | P44: 0.9999999988 | Q44: 00000312010400000000 | R44: GASTOS DE COMPUTADOR | S44: 33237587000 | T44: -85852550 | U44: -85852550 | V44: 33151734450 | X44: 33151734450 | Y44: 26234946567 | Z44: 26234946567 | AA44: 0.7913596981 | AB44: 410384853 | AG44: 747750298 | AH44: 0 | AI44: 2751837814 | AJ44: 2751837814 | AK44: 6666802075 | AL44: 5059901407
A45: 00000312010500000000 | B45: VIATICOS Y GASTOS DE VIAJE | C45: 994851000 | F45: 994851000 | H45: 994851000 | I45: 91729879 | J45: 184759863 | K45: 0.1857161153 | L45: 414520575 | M45: 58921606 | N45: 146478988 | O45: 0.1472371119 | P45: 0.353369644 | Q45: 00000312010500000000 | R45: VIATICOS Y GASTOS DE VIAJE | S45: 994851000 | V45: 994851000 | X45: 994851000 | Y45: 21094056 | Z45: 21094056 | AA45: 0.02120323144 | AB45: 82904115 | AC45: 21094056 | AD45: 21094056 | AE45: 0.02120323144 | AF45: 0.2544391916 | AG45: 0 | AH45: 0 | AI45: 163665807 | AJ45: 71935928 | AK45: 125384932 | AL45: 66463326
A46: 00000312010600000000 | B46: GASTOS DE TRANSPORTE Y COMUNICACIÓN | C46: 13130922000 | D46: 44620577 | E46: -210359423 | F46: 12920562577 | H46: 12920562577 | I46: 1582729677 | J46: 4828066384 | K46: 0.3736730777 | L46: 3005289302 | M46: 463906009 | N46: 2114083732 | O46: 0.1636216472 | P46: 0.7034543166 | Q46: 00000312010600000000 | R46: GASTOS DE TRANSPORTE Y COMUNICACIÓN | S46: 13130922000 | T46: -200325000 | U46: -200325000 | V46: 12930597000 | X46: 12930597000 | Y46: 779155352 | Z46: 779155352 | AA46: 0.06025671916 | AB46: 292740271 | AC46: 263447703 | AD46: 263447703 | AE46: 0.02037397832 | AF46: 0.8999366643 | AG46: -10034423 | AH46: -54655000 | AI46: 4048911032 | AJ46: 2466181355 | AK46: 1850636029 | AL46: 1386730020
A47: 00000312010700000000 | B47: IMPRESOS Y PUBLICACIONES | C47: 527293000 | D47: -8639000 | E47: -12281000 | F47: 515012000 | H47: 515012000 | I47: 823271 | J47: 70312199 | K47: 0.1365253606 | L47: 67109805 | M47: 823271 | N47: 50403949 | O47: 0.09786946518 | P47: 0.7510668374 | Q47: 00000312010700000000 | R47: IMPRESOS Y PUBLICACIONES | S47: 527293000 | V47: 527293000 | X47: 527293000 | Y47: 21665060 | Z47: 21665060 | AA47: 0.04108732716 | AB47: 7154283 | AC47: 4862260 | AD47: 4862260 | AE47: 0.009221173048 | AF47: 0.6796292515 | AG47: -12281000 | AH47: -3642000 | AI47: 48647139 | AJ47: 47823868 | AK47: 45541689 | AL47: 44718418
A48: 00000312010800000000 | B48: SENTENCIAS JUDICIALES | C48: 750000000 | F48: 750000000 | H48: 750000000 | J48: 167983326 | K48: 0.223977768 | L48: 168000000 | N48: 167983326 | O48: 0.223977768 | P48: 0.99990075 | Q48: 00000312010800000000 | R48: SENTENCIAS JUDICIALES | S48: 750000000 | V48: 750000000 | X48: 750000000 | AB48: 62500000 | AG48: 0 | AH48: 0 | AI48: 167983326 | AJ48: 167983326 | AK48: 167983326 | AL48: 167983326
A49: 00000312010900000000 | B49: MANTENIMIENTO Y REPARACIONES | C49: 70962890000 | D49: 405379423 | E49: -66181923 | F49: 70896708077 | H49: 70896708077 | I49: 3138105822 | J49: 27028035152 | K49: 0.3812311726 | L49: 16002309834 | M49: 2661473568 | N49: 5484960174 | O49: 0.07736551277 | P49: 0.3427605284 | Q49: 00000312010900000000 | R49: MANTENIMIENTO Y REPARACIONES | S49: 70962890000 | T49: -237790220 | U49: -237790220 | V49: 70725099780 | X49: 70725099780 | Y49: 14423791024 | Z49: 14423791024 | AA49: 0.2039416143 | AB49: 754679907 | AC49: 10617764 | AD49: 10617764 | AE49: 0.0001501272396 | AF49: 0.01406922843 | AG49: 171608297 | AH49: -233771126 | AI49: 12604244128 | AJ49: 9466138306 | AK49: 5474342410 | AL49: 2812868842
A50: 00000312011000000000 | B50: COMBUSTIBLES, LUBRICANTES Y LLANTAS | C50: 5152897000 | D50: 0 | E50: -1500000000 | F50: 3652897000 | H50: 3652897000 | I50: 927478038 | J50: 1001476078 | K50: 0.2741594077 | L50: 24511173 | M50: 3591779 | N50: 3591779 | O50: 0.0009832686221 | P50: 0.1465363979 | Q50: 00000312011000000000 | R50: COMBUSTIBLES, LUBRICANTES Y LLANTAS | S50: 5152897000 | T50: 0 | U50: 0 | V50: 5152897000 | X50: 5152897000 | Y50: 33998040 | Z50: 33998040 | AA50: 0.006597849714 | AB50: 3025150 | AG50: -1500000000 | AH50: -1500000000 | AI50: 967478038 | AJ50: 40000000 | AK50: 3591779 | AL50: 0
A51: 00000312011100000000 | B51: SEGUROS | C51: 23885466000 | D51: 0 | E51: 263999976 | F51: 24149465976 | H51: 24149465976 | I51: 15336841 | J51: 21925482657 | K51: 0.907907557 | L51: 22105617104 | M51: 45641410 | N51: 15680906763 | O51: 0.6493272679 | P51: 0.7093629954 | Q51: 00000312011100000000 | R51: SEGUROS | S51: 23885466000 | T51: 0 | U51: 0 | V51: 23885466000 | X51: 23885466000 | Y51: 20994817460 | Z51: 20994817460 | AA51: 0.8789787673 | AB51: 21673500346 | AC51: 11040406218 | AD51: 11040406218 | AE51: 0.4622227684 | AF51: 0.5093965461 | AG51: 263999976 | AH51: 263999976 | AI51: 930665197 | AJ51: 915328356 | AK51: 4640500545 | AL51: 4594859135
A52: 00000312011200000000 | B52: SUMINISTRO DE ALIMENTOS | C52: 3945800000 | D52: 0 | E52: 358399035 | F52: 4304199035 | H52: 4304199035 | I52: 0 | J52: 1201230635 | K52: 0.2790834311 | L52: 365199035 | M52: 212012804 | N52: 243209019 | O52: 0.05650505867 | P52: 0.665962929 | Q52: 00000312011200000000 | R52: SUMINISTRO DE ALIMENTOS | S52: 3945800000 | T52: 310000000 | U52: 310000000 | V52: 4255800000 | X52: 4255800000 | AG52: 48399035 | AH52: 48399035 | AI52: 1201230635 | AJ52: 1201230635 | AK52: 243209019 | AL52: 31196215
A53: 00000312011300000000 | B53: SERVICIOS PUBLICOS | C53: 5773285000 | D53: 0 | E53: 0 | F53: 5773285000 | H53: 5773285000 | I53: 147868829 | J53: 4910301796 | K53: 0.8505212883 | L53: 1521043098 | M53: 446972534 | N53: 1464135656 | O53: 0.2536052968 | P53: 0.9625865683 | Q53: 00000312011300000000 | R53: SERVICIOS PUBLICOS | S53: 5773285000 | T53: 0 | U53: 0 | V53: 5773285000 | X53: 5773285000 | Y53: 1292055095 | Z53: 1292055095 | AA53: 0.2237989455 | AB53: 510706922 | AC53: 129494595 | AD53: 129494595 | AE53: 0.02242996751 | AF53: 0.2535595063 | AG53: 0 | AH53: 0 | AI53: 3618246701 | AJ53: 3470377872 | AK53: 1334641061 | AL53: 887668527
A54: 00000312011400000000 | B54: CAPACITACION | C54: 885200000 | D54: 0 | E54: -3862685 | F54: 881337315 | H54: 881337315 | I54: 0 | J54: 151410050 | K54: 0.171795801 | L54: 83057315 | M54: 26047272 | N54: 37815794 | O54: 0.042907288 | P54: 0.4552975737 | Q54: 00000312011400000000 | R54: CAPACITACION | S54: 885200000 | V54: 885200000 | X54: 885200000 | Y54: 151410050 | Z54: 151410050 | AA54: 0.1710461478 | AG54: -3862685 | AH54: -3862685 | AI54: 0 | AJ54: 0 | AK54: 37815794 | AL54: 11768522
A55: 00000312011500000000 | B55: BIENESTAR E INCENTIVOS | C55: 4594000000 | F55: 4594000000 | H55: 4594000000 | L55: 0 | Q55: 00000312011500000000 | R55: BIENESTAR E INCENTIVOS | S55: 4594000000 | V55: 4594000000 | X55: 4594000000 | AG55: 0 | AH55: 0 | AI55: 0 | AJ55: 0 | AK55: 0 | AL55: 0
A56: 00000312011600000000 | B56: PROMOCION INSTITUCIONAL | C56: 3115000000 | F56: 3115000000 | H56: 3115000000 | I56: 2345000 | J56: 1111062700 | K56: 0.3566814446 | L56: 218124268 | M56: 123398411 | N56: 167987792 | O56: 0.05392866517 | P56: 0.7701471897 | Q56: 00000312011600000000 | R56: PROMOCION INSTITUCIONAL | S56: 3115000000 | V56: 3115000000 | X56: 3115000000 | Y56: 1094219148 | Z56: 1094219148 | AA56: 0.3512742048 | AG56: 0 | AH56: 0 | AI56: 16843552 | AJ56: 14498552 | AK56: 167987792 | AL56: 44589381
A57: 00000312011700000000 | B57: IMPUESTOS, TASAS, CONTRIBUCIONES, DERECHOS Y MULTAS | C57: 299348017000 | D57: 876190158 | E57: -27900160257 | F57: 271447856743 | H57: 271447856743 | I57: 58333316621 | J57: 116136354529 | K57: 0.4278403813 | L57: 165878584835 | M57: 26809870913 | N57: 71408671931 | O57: 0.2630658897 | P57: 0.4304875883 | Q57: 00000312011700000000 | R57: IMPUESTOS, TASAS, CONTRIBUCIONES, DERECHOS Y MULTAS | S57: 299348017000 | T57: -28162403139 | U57: -28162403139 | V57: 271185613861 | X57: 271185613861 | Y57: 15612460731 | Z57: 15612460731 | AA57: 0.05757112447 | AB57: 3813797198 | AC57: 2606366802 | AD57: 2606366802 | AE57: 0.009611006885 | AF57: 0.6834046664 | AG57: 262242882 | AH57: -613947276 | AI57: 100523893798 | AJ57: 42190577177 | AK57: 68802305129 | AL57: 41992434216
A58: 00000312011800000000 | B58: INTERESES Y COMISIONES | C58: 1843664000 | D58: 0 | E58: 65180000 | F58: 1908844000 | H58: 1908844000 | I58: 316500000 | J58: 1800164000 | K58: 0.9430650174 | L58: 199596822 | M58: 6248451 | N58: 7362413 | O58: 0.003857000886 | P58: 0.03688642397 | Q58: 00000312011800000000 | R58: INTERESES Y COMISIONES | S58: 1843664000 | T58: 0 | U58: 0 | V58: 1843664000 | X58: 1843664000 | Y58: 1483664000 | Z58: 1483664000 | AA58: 0.8047366548 | AB58: 700000 | AC58: 344818 | AD58: 344818 | AE58: 0.000187028656 | AF58: 0.4925971429 | AG58: 65180000 | AH58: 65180000 | AI58: 316500000 | AJ58: 0 | AK58: 7017595 | AL58: 769144
A59: 00000312011900000000 | B59: SALUD OCUPACIONAL | C59: 764775000 | F59: 764775000 | H59: 764775000 | J59: 51505611 | K59: 0.06734740414 | L59: 91268403 | Q59: 00000312011900000000 | R59: SALUD OCUPACIONAL | S59: 764775000 | V59: 764775000 | X59: 764775000 | AG59: 0 | AH59: 0 | AI59: 51505611 | AJ59: 51505611 | AK59: 0 | AL59: 0
A60: 00000312012000000000 | B60: PROGRAMAS Y CONVENIOS INSTITUCIONALES | C60: 142000000 | F60: 142000000 | H60: 142000000 | J60: 64157000 | K60: 0.4518098592 | L60: 64157000 | N60: 64157000 | O60: 0.4518098592 | P60: 1 | Q60: 00000312012000000000 | R60: PROGRAMAS Y CONVENIOS INSTITUCIONALES | S60: 142000000 | V60: 142000000 | X60: 142000000 | Y60: 64157000 | Z60: 64157000 | AA60: 0.4518098592 | AB60: 64157000 | AG60: 0 | AH60: 0 | AI60: 0 | AJ60: 0 | AK60: 64157000 | AL60: 64157000
A61: 00000312019900000000 | B61: OTROS GASTOS GENERALES | C61: 8245499000 | D61: 77008589 | E61: 641507349 | F61: 8887006349 | H61: 8887006349 | I61: 228668027 | J61: 2880585542 | K61: 0.3241345205 | L61: 1486528055 | M61: 363498203 | N61: 1053790383 | O61: 0.1185765309 | P61: 0.7088937067 | Q61: 00000312019900000000 | R61: OTROS GASTOS GENERALES | S61: 8245499000 | T61: -586490336 | U61: -586490336 | V61: 7659008664 | X61: 7659008664 | Y61: 2656378908 | Z61: 2656378908 | AA61: 0.3468306441 | AB61: 168839561 | AG61: 1227997685 | AH61: 1150989096 | AI61: 224206634 | AJ61: -4461393 | AK61: 1053790383 | AL61: 690292180
A62: 313000000000000 | B62: TRANSFERENCIAS CORRIENTES | C62: 288946579000 | D62: -508523362 | E62: -1544489796 | F62: 287402089204 | H62: 287402089204 | I62: 13695295244 | J62: 135506353302 | K62: 0.4714870156 | L62: 102293990211 | M62: 15280080946 | N62: 78533064994 | O62: 0.2732515453 | P62: 0.7677192456 | Q62: 313000000000000 | R62: TRANSFERENCIAS CORRIENTES | S62: 288946579000 | T62: -1060405414 | U62: -1060405414 | V62: 287886173586 | X62: 287886173586 | Y62: 74307406938 | Z62: 74307406938 | AA62: 0.2581138441 | AB62: 23042818595 | AC62: 14305393268 | AD62: 14305393268 | AE62: 0.04969114386 | AF62: 0.6208178574 | AG62: -484084382 | AH62: 24438980 | AI62: 61198946364 | AJ62: 47503651120 | AK62: 64227671726 | AL62: 48947590780
A63: 313030000000000 | B63: TRANSFERENCIAS DE PREVISION Y SEGURIDAD | C63: 266335378000 | D63: -508523362 | E63: -1544489796 | F63: 264790888204 | H63: 264790888204 | I63: 13695295244 | J63: 129233506228 | K63: 0.4880587361 | L63: 102004323541 | M63: 15280080946 | N63: 78429836804 | O63: 0.2961953764 | P63: 0.7688873773 | Q63: 313030000000000 | R63: TRANSFERENCIAS DE PREVISION Y SEGURIDAD | S63: 266335378000 | T63: -1060405414 | U63: -1060405414 | V63: 265274972586 | X63: 265274972586 | Y63: 74231221448 | Z63: 74231221448 | AA63: 0.2798274587 | AB63: 22956885261 | AC63: 14229207778 | AD63: 14229207778 | AE63: 0.05363946564 | AF63: 0.6198230995 | AG63: -484084382 | AH63: 24438980 | AI63: 55002284780 | AJ63: 41306989536 | AK63: 64200629026 | AL63: 48920548080
A64: 00000313030100000000 | B64: PENSIONES Y JUBILACIONES | C64: 190660263000 | D64: 0 | E64: -536848830 | F64: 190123414170 | H64: 190123414170 | I64: 12897164969 | J64: 65240722348 | K64: 0.3431493308 | L64: 79441775915 | M64: 12897164969 | N64: 65144722348 | O64: 0.3426443957 | P64: 0.8200310428 | Q64: 00000313030100000000 | R64: PENSIONES Y JUBILACIONES | S64: 190660263000 | T64: -536848830 | U64: -536848830 | V64: 190123414170 | X64: 190123414170 | Y64: 12921652929 | Z64: 12921652929 | AA64: 0.06796455337 | AB64: 15888355183 | AC64: 12921652929 | AD64: 12921652929 | AE64: 0.06796455337 | AF64: 0.8132782016 | AG64: 0 | AH64: 0 | AI64: 52319069419 | AJ64: 39421904450 | AK64: 52223069419 | AL64: 39325904450
A65: 00000313030200000000 | B65: CESANTIAS | C65: 14141377000 | D65: 0 | E65: -499117604 | F65: 13642259396 | H65: 13642259396 | I65: 704635775 | J65: 4071914522 | K65: 0.2984780163 | L65: 6494092438 | M65: 766782940 | N65: 4071914522 | O65: 0.2984780163 | P65: 0.6270182571 | Q65: 00000313030200000000 | R65: CESANTIAS | S65: 14141377000 | T65: -523556584 | U65: -523556584 | V65: 13617820416 | X65: 13617820416 | Y65: 1307554849 | Z65: 1307554849 | AA65: 0.09601792424 | AB65: 1971225360 | AC65: 1307554849 | AD65: 1307554849 | AE65: 0.09601792424 | AF65: 0.6633208336 | AG65: 24438980 | AH65: 24438980 | AI65: 2764359673 | AJ65: 2059723898 | AK65: 2764359673 | AL65: 1997576733
A66: 00000313030300000000 | B66: OTRAS TRANSFERENCIAS DE PREVISION Y SEGURIDAD SOCIAL | C66: 61533738000 | D66: -508523362 | E66: -508523362 | F66: 61025214638 | H66: 61025214638 | I66: 93494500 | J66: 59920869358 | K66: 0.9819034593 | L66: 16068455188 | M66: 1616133037 | N66: 9213199934 | O66: 0.1509736588 | P66: 0.5733718535 | Q66: 00000313030300000000 | R66: OTRAS TRANSFERENCIAS DE PREVISION Y SEGURIDAD SOCIAL | S66: 61533738000 | T66: 0 | U66: 0 | V66: 61533738000 | X66: 61533738000 | Y66: 60002013670 | Z66: 60002013670 | AA66: 0.975107569 | AB66: 5097304718 | AG66: -508523362 | AH66: 0 | AI66: -81144312 | AJ66: -174638812 | AK66: 9213199934 | AL66: 7597066897
A67: 313040000000000 | B67: OTRAS TRANSFERENCIAS | C67: 22611201000 | F67: 22611201000 | H67: 22611201000 | J67: 6272847074 | K67: 0.2774221092 | L67: 289666670 | N67: 103228190 | O67: 0.004565356347 | P67: 0.3563688912 | Q67: 313040000000000 | R67: OTRAS TRANSFERENCIAS | S67: 22611201000 | V67: 22611201000 | X67: 22611201000 | Y67: 76185490 | Z67: 76185490 | AA67: 0.003369369455 | AB67: 85933334 | AC67: 76185490 | AD67: 76185490 | AE67: 0.003369369455 | AF67: 0.8865650435 | AG67: 0 | AH67: 0 | AI67: 6196661584 | AJ67: 6196661584 | AK67: 27042700 | AL67: 27042700
A68: 00000313040200000000 | B68: PRESTAMOS DE BIENESTAR | C68: 611201000 | F68: 611201000 | H68: 611201000 | J68: 103228190 | K68: 0.1688940136 | L68: 289666670 | N68: 103228190 | O68: 0.1688940136 | P68: 0.3563688912 | Q68: 00000313040200000000 | R68: PRESTAMOS DE BIENESTAR | S68: 611201000 | V68: 611201000 | X68: 611201000 | Y68: 76185490 | Z68: 76185490 | AA68: 0.1246488307 | AB68: 85933334 | AC68: 76185490 | AD68: 76185490 | AE68: 0.1246488307 | AF68: 0.8865650435 | AG68: 0 | AH68: 0 | AI68: 27042700 | AJ68: 27042700 | AK68: 27042700 | AL68: 27042700
A69: 00000313040300000000 | B69: PRESTAMOS FONDO DE VIVIENDA | C69: 22000000000 | F69: 22000000000 | H69: 22000000000 | J69: 6169618884 | K69: 0.280437222 | Q69: 00000313040300000000 | R69: PRESTAMOS FONDO DE VIVIENDA | S69: 22000000000 | V69: 22000000000 | X69: 22000000000 | AG69: 0 | AH69: 0 | AI69: 6169618884 | AJ69: 6169618884 | AK69: 0 | AL69: 0
A70: 314000000000000 | B70: CUENTAS POR PAGAR | C70: 116559783000 | D70: -1122157094 | E70: 24381160576 | F70: 140940943576 | H70: 140940943576 | I70: -1233895882 | J70: 132384262684 | K70: 0.9392888917 | L70: 103676323015 | M70: 7736321595 | N70: 73734229345 | O70: 0.5231569158 | P70: 0.7111964159 | Q70: 314000000000000 | R70: CUENTAS POR PAGAR | S70: 116559783000 | T70: 26640984818 | U70: 26640984818 | V70: 143200767818 | X70: 143200767818 | Y70: 142961063285 | Z70: 142961063285 | AA70: 0.9983260946 | AB70: 44971851165 | AC70: 17823386263 | AD70: 17823386263 | AE70: 0.1244643205 | AF70: 0.3963231622 | AG70: -2259824242 | AH70: -1137667148 | AI70: -10576800601 | AJ70: -9342904719 | AK70: 55910843082 | AL70: 48174521487
A71: 00000314000000000000 | B71: CUENTAS POR PAGAR | C71: 116559783000 | D71: -1122157094 | E71: 24381160576 | F71: 140940943576 | H71: 140940943576 | I71: -1233895882 | J71: 132384262684 | K71: 0.9392888917 | L71: 103676323015 | M71: 7736321595 | N71: 73734229345 | O71: 0.5231569158 | P71: 0.7111964159 | Q71: 00000314000000000000 | R71: CUENTAS POR PAGAR | S71: 116559783000 | T71: 26640984818 | U71: 26640984818 | V71: 143200767818 | X71: 143200767818 | Y71: 142961063285 | Z71: 142961063285 | AA71: 0.9983260946 | AB71: 44971851165 | AC71: 17823386263 | AD71: 17823386263 | AE71: 0.1244643205 | AF71: 0.3963231622 | AG71: -2259824242 | AH71: -1137667148 | AI71: -10576800601 | AJ71: -9342904719 | AK71: 55910843082 | AL71: 48174521487
A72: 320000000000000 | B72: GASTOS DE OPERACIÓN | C72: 320996098000 | D72: 0 | E72: 23210171796 | F72: 344206269796 | H72: 344206269796 | I72: -2864058968 | J72: 249672106079 | K72: 0.725356067 | L72: 125101021300 | M72: 13602888795 | N72: 105277806492 | O72: 0.3058567369 | P72: 0.8415423423 | Q72: 320000000000000 | R72: GASTOS DE OPERACIÓN | S72: 320996098000 | T72: 0 | U72: 0 | V72: 320996098000 | X72: 320996098000 | Y72: 240834217349 | Z72: 240834217349 | AA72: 0.7502714795 | AB72: 33037249612 | AC72: 17487795633 | AD72: 17487795633 | AE72: 0.05447977636 | AF72: 0.5293356995 | AG72: 23210171796 | AH72: 23210171796 | AI72: 8837888730 | AJ72: 11701947698 | AK72: 87790010859 | AL72: 74187122064
A73: 321000000000000 | B73: GASTOS DE COMERCIALIZACION | C73: 121536854000 | D73: 0 | E73: 28468959480 | F73: 150005813480 | H73: 150005813480 | I73: 1044456 | J73: 77519326859 | K73: 0.516775484 | L73: 29872328738 | M73: 1737272556 | N73: 21779102038 | O73: 0.1451883866 | P73: 0.7290727894 | Q73: 321000000000000 | R73: GASTOS DE COMERCIALIZACION | S73: 121536854000 | T73: 15254787684 | U73: 15254787684 | V73: 136791641684 | X73: 136791641684 | Y73: 76242247276 | Z73: 76242247276 | AA73: 0.557360423 | AB73: 504475092 | AG73: =F73-V73 -> 13214171796 | AH73: =AG73-D73 -> 13214171796 | AI73: =J73-Z73 -> 1277079583 | AJ73: =AI73-I73 -> 1276035127 | AK73: =N73-AD73 -> 21779102038 | AL73: =AK73-M73 -> 20041829482
A74: 321010000000000 | B74: COMPRA DE BIENES PARA LA VENTA | C74: 14000000000 | D74: 0 | E74: 0 | F74: 14000000000 | H74: 14000000000 | J74: 13999992223 | K74: 0.9999994445 | L74: 0 | Q74: 321010000000000 | R74: COMPRA DE BIENES PARA LA VENTA | S74: 14000000000 | T74: 0 | U74: 0 | V74: 14000000000 | X74: 14000000000 | Y74: 13999992223 | Z74: 13999992223 | AA74: 0.9999994445 | AB74: 0 | AG74: 0 | AH74: 0 | AI74: 0 | AJ74: 0 | AK74: 0 | AL74: 0
A75: 00000321010100000000 | B75: MEDIDORES | C75: 14000000000 | D75: 0 | E75: 0 | F75: 14000000000 | H75: 14000000000 | J75: 13999992223 | K75: 0.9999994445 | L75: 0 | Q75: 00000321010100000000 | R75: MEDIDORES | S75: 14000000000 | T75: 0 | U75: 0 | V75: 14000000000 | X75: 14000000000 | Y75: 13999992223 | Z75: 13999992223 | AA75: 0.9999994445 | AB75: 0 | AG75: 0 | AH75: 0 | AI75: 0 | AJ75: 0 | AK75: 0 | AL75: 0
A76: 321020000000000 | B76: COMPRA DE SERVICIOS PARA LA VENTA | C76: 12817034000 | D76: 0 | E76: 20254171796 | F76: 33071205796 | H76: 33071205796 | I76: 0 | J76: 28124373051 | K76: 0.8504187366 | L76: 19984956230 | M76: 50916120 | N76: 16831504362 | O76: 0.5089474048 | P76: 0.8422087178 | Q76: 321020000000000 | R76: COMPRA DE SERVICIOS PARA LA VENTA | S76: 12817034000 | T76: 17301135099 | U76: 17301135099 | V76: 30118169099 | X76: 30118169099 | Y76: 26850301362 | Z76: 26850301362 | AA76: 0.8914984597 | AB76: 0 | AG76: 2953036697 | AH76: 2953036697 | AI76: 1274071689 | AJ76: 1274071689 | AK76: 16831504362 | AL76: 16780588242
A77: 00000321020100000000 | B77: GESTION COMERCIAL | C77: 12817034000 | D77: 0 | E77: 450000000 | F77: 13267034000 | H77: 13267034000 | I77: 0 | J77: 9862267757 | K77: 0.7433664342 | L77: 180784434 | M77: 50916120 | N77: 100757649 | O77: 0.007594587381 | P77: 0.5573358655 | Q77: 00000321020100000000 | R77: GESTION COMERCIAL | S77: 12817034000 | T77: 0 | U77: 0 | V77: 12817034000 | X77: 12817034000 | Y77: 9671731782 | Z77: 9671731782 | AA77: 0.7545998382 | AB77: 0 | AG77: 450000000 | AH77: 450000000 | AI77: 190535975 | AJ77: 190535975 | AK77: 100757649 | AL77: 49841529
A78: 00000321020400000000 | B78: PROCESO ASEO | D78: 0 | E78: 19804171796 | F78: 19804171796 | H78: 19804171796 | J78: 18262105294 | K78: 0.9221342595 | L78: 19804171796 | N78: 16730746713 | O78: 0.8448092092 | P78: 0.8448092092 | Q78: 00000321020400000000 | R78: PROCESO ASEO | T78: 17301135099 | U78: 17301135099 | V78: 17301135099 | X78: 17301135099 | Y78: 17178569580 | Z78: 17178569580 | AA78: 0.9929157527 | AG78: 2503036697 | AH78: 2503036697 | AI78: 1083535714 | AJ78: 1083535714 | AK78: 16730746713 | AL78: 16730746713
A79: 321030000000000 | B79: OTROS GASTOS DE COMERCIALIZACION | C79: 94719820000 | D79: 0 | E79: 8214787684 | F79: 102934607684 | H79: 102934607684 | I79: 1044456 | J79: 35394961585 | K79: 0.3438587117 | L79: 9887372508 | M79: 1686356436 | N79: 4947597676 | O79: 0.04806544453 | P79: 0.5003955977 | Q79: 321030000000000 | R79: OTROS GASTOS DE COMERCIALIZACION | S79: 94719820000 | T79: -2046347415 | U79: -2046347415 | V79: 92673472585 | X79: 92673472585 | Y79: 35391953691 | Z79: 35391953691 | AA79: 0.3818995091 | AB79: 504475092 | AG79: 10261135099 | AH79: 10261135099 | AI79: 3007894 | AJ79: 1963438 | AK79: 4947597676 | AL79: 3261241240
A80: 00000321030100000000 | B80: MANTENIMIENTO Y MATERIALES OPERACION INF AC Y AL | C80: 88789820000 | D80: 0 | E80: 2960000000 | F80: 91749820000 | H80: 91749820000 | I80: 1044456 | J80: 35394961585 | K80: 0.3857769049 | L80: 9837372508 | M80: 1686356436 | N80: 4947597676 | O80: 0.0539248761 | P80: 0.5029389374 | Q80: 00000321030100000000 | R80: MANTENIMIENTO Y MATERIALES OPERACION INF AC Y AL | S80: 88789820000 | T80: -7301135099 | U80: -7301135099 | V80: 81488684901 | X80: 81488684901 | Y80: 35391953691 | Z80: 35391953691 | AA80: 0.4343173992 | AB80: 491975092 | AG80: 10261135099 | AH80: 10261135099 | AI80: 3007894 | AJ80: 1963438 | AK80: 4947597676 | AL80: 3261241240
A81: 00000321030200000000 | B81: COMERCIALIZACION DE ENERGIA - CHSA | C81: 150000000 | F81: 150000000 | H81: 150000000 | L81: 50000000 | Q81: 00000321030200000000 | R81: COMERCIALIZACION DE ENERGIA - CHSA | S81: 150000000 | V81: 150000000 | X81: 150000000 | AB81: 12500000 | AG81: 0 | AH81: 0 | AI81: 0 | AJ81: 0 | AK81: 0 | AL81: 0
A82: 00000321030400000000 | B82: FONDO ATENCION DE EMERGENCIAS | C82: 4280000000 | D82: 0 | E82: -97707731 | F82: 4182292269 | H82: 4182292269 | Q82: 00000321030400000000 | R82: FONDO ATENCION DE EMERGENCIAS | S82: 4280000000 | T82: -97707731 | U82: -97707731 | V82: 4182292269 | X82: 4182292269 | AG82: 0 | AH82: 0 | AI82: 0 | AJ82: 0 | AK82: 0 | AL82: 0
A83: 00000321030600000000 | B83: FONDO OBLIGACIONES CONTINGENTES | C83: 1500000000 | D83: 0 | E83: 5352495415 | F83: 6852495415 | H83: 6852495415 | Q83: 00000321030600000000 | R83: FONDO OBLIGACIONES CONTINGENTES | S83: 1500000000 | T83: 5352495415 | U83: 5352495415 | V83: 6852495415 | X83: 6852495415 | AG83: 0 | AH83: 0 | AI83: 0 | AJ83: 0 | AK83: 0 | AL83: 0
A84: 322000000000000 | B84: GASTOS DE PRODUCCION | C84: 99780483000 | D84: 0 | E84: -5352495415 | F84: 94427987585 | H84: 94427987585 | I84: 758943486 | J84: 77024101166 | K84: 0.81569144 | L84: 21040077785 | M84: 4934031548 | N84: 17645562718 | O84: 0.1868679315 | P84: 0.838664329 | Q84: 322000000000000 | R84: GASTOS DE PRODUCCION | S84: 99780483000 | T84: -15352495415 | U84: -15352495415 | V84: 84427987585 | X84: 84427987585 | Y84: 65815501342 | Z84: 65815501342 | AA84: 0.7795460158 | AB84: 5312849691 | AG84: 10000000000 | AH84: 10000000000 | AI84: 11208599824 | AJ84: 10449656338 | AK84: 17645562718 | AL84: 12711531170
A85: 322010000000000 | B85: INDUSTRIAL | C85: 99780483000 | D85: 0 | E85: -5352495415 | F85: 94427987585 | H85: 94427987585 | I85: 758943486 | J85: 77024101166 | K85: 0.81569144 | L85: 21040077785 | M85: 4934031548 | N85: 17645562718 | O85: 0.1868679315 | P85: 0.838664329 | Q85: 322010000000000 | R85: INDUSTRIAL | S85: 99780483000 | T85: -15352495415 | U85: -15352495415 | V85: 84427987585 | X85: 84427987585 | Y85: 65815501342 | Z85: 65815501342 | AA85: 0.7795460158 | AB85: 5312849691 | AG85: 10000000000 | AH85: 10000000000 | AI85: 11208599824 | AJ85: 10449656338 | AK85: 17645562718 | AL85: 12711531170
A86: 00000322010200000000 | B86: PRODUCTOS QUIMICOS | C86: 18831920000 | D86: 0 | E86: 5791793667 | F86: 24623713667 | H86: 24623713667 | I86: 0 | J86: 21763772834 | K86: 0.8838542036 | L86: 5372225139 | M86: 1104653044 | N86: 2458348941 | O86: 0.09983664423 | P86: 0.4576034841 | Q86: 00000322010200000000 | R86: PRODUCTOS QUIMICOS | S86: 18831920000 | T86: 5791793667 | U86: 5791793667 | V86: 24623713667 | X86: 24623713667 | Y86: 13449675736 | Z86: 13449675736 | AA86: 0.5462082575 | AB86: 800992243 | AG86: 0 | AH86: 0 | AI86: 8314097098 | AJ86: 8314097098 | AK86: 2458348941 | AL86: 1353695897
A87: 00000322010300000000 | B87: ENERGIA PARA BOMBEO | C87: 54142290000 | D87: 0 | E87: 0 | F87: 54142290000 | H87: 54142290000 | I87: 0 | J87: 54142290000 | K87: 1 | L87: 14535572344 | M87: 3070435018 | N87: 14069175445 | O87: 0.2598555666 | P87: 0.9679134135 | Q87: 00000322010300000000 | R87: ENERGIA PARA BOMBEO | S87: 54142290000 | T87: 0 | U87: 0 | V87: 54142290000 | X87: 54142290000 | Y87: 52006730760 | Z87: 52006730760 | AA87: 0.9605565402 | AB87: 4511857448 | AG87: 0 | AH87: 0 | AI87: 2135559240 | AJ87: 2135559240 | AK87: 14069175445 | AL87: 10998740427
A88: 00000322010400000000 | B88: TASA POR USO DE AGUA | C88: 4306273000 | F88: 4306273000 | H88: 4306273000 | I88: 758943486 | J88: 1118038332 | K88: 0.2596301563 | L88: 1132280302 | M88: 758943486 | N88: 1118038332 | O88: 0.2596301563 | P88: 0.987421869 | Q88: 00000322010400000000 | R88: TASA POR USO DE AGUA | S88: 4306273000 | V88: 4306273000 | X88: 4306273000 | Y88: 359094846 | Z88: 359094846 | AA88: 0.08338877865 | AG88: 0 | AH88: 0 | AI88: 758943486 | AJ88: 0 | AK88: 1118038332 | AL88: 359094846
A89: 00000322011000000000 | B89: ASISTENCIA OPERACIÓN | C89: 22500000000 | D89: 0 | E89: -11144289082 | F89: 11355710918 | H89: 11355710918 | L89: 0 | Q89: 00000322011000000000 | R89: ASISTENCIA OPERACIÓN | S89: 22500000000 | T89: -21144289082 | U89: -21144289082 | V89: 1355710918 | X89: 1355710918 | AB89: 0 | AG89: 10000000000 | AH89: 10000000000 | AI89: 0 | AJ89: 0 | AK89: 0 | AL89: 0
A90: 324000000000000 | B90: CUENTAS POR PAGAR | C90: 99678761000 | D90: 0 | E90: 93707731 | F90: 99772468731 | H90: 99772468731 | I90: -3624046910 | J90: 95128678054 | K90: 0.9534561915 | L90: 74188614777 | M90: 6931584691 | N90: 65853141736 | O90: 0.6600331993 | P90: 0.8876448487 | Q90: 324000000000000 | R90: CUENTAS POR PAGAR | S90: 99678761000 | T90: 97707731 | U90: 97707731 | V90: 99776468731 | X90: 99776468731 | Y90: 98776468731 | Z90: 98776468731 | AA90: 0.9899775968 | AB90: 27219924829 | AC90: 17487795633 | AD90: 17487795633 | AE90: 0.175269739 | AF90: 0.6424630392 | AG90: -4000000 | AH90: -4000000 | AI90: -3647790677 | AJ90: -23743767 | AK90: 48365346103 | AL90: 41433761412
A91: 00000324000000000000 | B91: CUENTAS POR PAGAR | C91: 99678761000 | D91: 0 | E91: 93707731 | F91: 99772468731 | H91: 99772468731 | I91: -3624046910 | J91: 95128678054 | K91: 0.9534561915 | L91: 74188614777 | M91: 6931584691 | N91: 65853141736 | O91: 0.6600331993 | P91: 0.8876448487 | Q91: 00000324000000000000 | R91: CUENTAS POR PAGAR | S91: 99678761000 | T91: 97707731 | U91: 97707731 | V91: 99776468731 | X91: 99776468731 | Y91: 98776468731 | Z91: 98776468731 | AA91: 0.9899775968 | AB91: 27219924829 | AC91: 17487795633 | AD91: 17487795633 | AE91: 0.175269739 | AF91: 0.6424630392 | AG91: -4000000 | AH91: -4000000 | AI91: -3647790677 | AJ91: -23743767 | AK91: 48365346103 | AL91: 41433761412
A92: 330000000000000 | B92: SERVICIO DE LA DEUDA | C92: 94315746000 | D92: 0 | E92: 0 | F92: 94315746000 | H92: 94315746000 | I92: 0 | J92: 57201187541 | K92: 0.606486085 | L92: 24787498045 | M92: 4893699 | N92: 23362540355 | O92: 0.2477056202 | P92: 0.9425130488 | Q92: 330000000000000 | R92: SERVICIO DE LA DEUDA | S92: 94315746000 | T92: 0 | U92: 0 | V92: 94315746000 | X92: 94315746000 | Y92: 56534716182 | Z92: 56534716182 | AA92: 0.5994197001 | AB92: 271822809 | AC92: 10693059 | AD92: 10693059 | AE92: 0.0001133751198 | AF92: 0.03933834338 | AG92: 0 | AH92: 0 | AI92: 666471359 | AJ92: 666471359 | AK92: 23351847296 | AL92: 23346953597
A93: 331000000000000 | B93: DEUDA INTERNA | C93: 78014332000 | F93: 78014332000 | H93: 78014332000 | J93: 56472715561 | K93: 0.7238761663 | L93: 23428384000 | N93: 22665801139 | O93: 0.2905338104 | P93: 0.9674504711 | Q93: 331000000000000 | R93: DEUDA INTERNA | S93: 78014332000 | V93: 78014332000 | X93: 78014332000 | Y93: 56472715561 | Z93: 56472715561 | AA93: 0.7238761663 | AB93: 0 | AG93: 0 | AH93: 0 | AI93: 0 | AJ93: 0 | AK93: 22665801139 | AL93: 22665801139
A94: 00000331010000000000 | B94: AMORTIZACION CAPITAL | C94: 31446890000 | F94: 31446890000 | H94: 31446890000 | J94: 31446888900 | K94: 0.999999965 | L94: 13701445000 | N94: 13701444444 | O94: 0.4357010962 | P94: 0.9999999594 | Q94: 00000331010000000000 | R94: AMORTIZACION CAPITAL | S94: 31446890000 | V94: 31446890000 | X94: 31446890000 | Y94: 31446888900 | Z94: 31446888900 | AA94: 0.999999965 | AG94: 0 | AH94: 0 | AI94: 0 | AJ94: 0 | AK94: 13701444444 | AL94: 13701444444
A95: 00000331020000000000 | B95: INTERESES | C95: 44449342000 | F95: 44449342000 | H95: 44449342000 | J95: 25025826661 | K95: 0.563019058 | L95: 9726939000 | N95: 8964356695 | O95: 0.201675802 | P95: 0.9216009985 | Q95: 00000331020000000000 | R95: INTERESES | S95: 44449342000 | V95: 44449342000 | X95: 44449342000 | Y95: 25025826661 | Z95: 25025826661 | AA95: 0.563019058 | AG95: 0 | AH95: 0 | AI95: 0 | AJ95: 0 | AK95: 8964356695 | AL95: 8964356695
A96: 00000331030000000000 | B96: COMISIONES Y OTROS | C96: 2118100000 | F96: 2118100000 | H96: 2118100000 | L96: 0 | Q96: 00000331030000000000 | R96: COMISIONES Y OTROS | S96: 2118100000 | V96: 2118100000 | X96: 2118100000 | AB96: 0 | AG96: 0 | AH96: 0 | AI96: 0 | AJ96: 0 | AK96: 0 | AL96: 0
A97: 332000000000000 | B97: DEUDA EXTERNA | C97: 200000000 | F97: 200000000 | H97: 200000000 | Q97: 332000000000000 | R97: DEUDA EXTERNA | S97: 200000000 | V97: 200000000 | X97: 200000000 | AG97: 0 | AH97: 0 | AI97: 0 | AJ97: 0 | AK97: 0 | AL97: 0
A98: 00000332030000000000 | B98: COMISIONES Y OTROS | C98: 200000000 | F98: 200000000 | H98: 200000000 | Q98: 00000332030000000000 | R98: COMISIONES Y OTROS | S98: 200000000 | V98: 200000000 | X98: 200000000 | AG98: 0 | AH98: 0 | AI98: 0 | AJ98: 0 | AK98: 0 | AL98: 0
A99: 333000000000000 | B99: BONOS PENSIONALES | C99: 3203150000 | F99: 3203150000 | H99: 3203150000 | J99: 672543359 | K99: 0.2099631172 | L99: 1334645530 | N99: 672543359 | O99: 0.2099631172 | P99: 0.5039115959 | Q99: 333000000000000 | R99: BONOS PENSIONALES | S99: 3203150000 | V99: 3203150000 | X99: 3203150000 | Y99: 6072000 | Z99: 6072000 | AA99: 0.001895633985 | AB99: 266929106 | AC99: 6072000 | AD99: 6072000 | AE99: 0.001895633985 | AF99: 0.02274761299 | AG99: 0 | AH99: 0 | AI99: 666471359 | AJ99: 666471359 | AK99: 666471359 | AL99: 666471359
A100: 00000333010000000000 | B100: BONOS PENSIONALES | C100: 3203150000 | F100: 3203150000 | H100: 3203150000 | J100: 672543359 | K100: 0.2099631172 | L100: 1334645530 | N100: 672543359 | O100: 0.2099631172 | P100: 0.5039115959 | Q100: 00000333010000000000 | R100: BONOS PENSIONALES | S100: 3203150000 | V100: 3203150000 | X100: 3203150000 | Y100: 6072000 | Z100: 6072000 | AA100: 0.001895633985 | AB100: 266929106 | AC100: 6072000 | AD100: 6072000 | AE100: 0.001895633985 | AF100: 0.02274761299 | AG100: 0 | AH100: 0 | AI100: 666471359 | AJ100: 666471359 | AK100: 666471359 | AL100: 666471359
A101: 334000000000000 | B101: CUENTAS POR PAGAR | C101: 55929000 | D101: 0 | E101: 0 | F101: 55929000 | H101: 55929000 | I101: 0 | J101: 55928621 | K101: 0.9999932236 | L101: 24468515 | M101: 4893699 | N101: 24195857 | O101: 0.432617372 | P101: 0.9888567819 | Q101: 334000000000000 | R101: CUENTAS POR PAGAR | S101: 55929000 | T101: 0 | U101: 0 | V101: 55929000 | X101: 55929000 | Y101: 55928621 | Z101: 55928621 | AA101: 0.9999932236 | AB101: 4893703 | AC101: 4621059 | AD101: 4621059 | AE101: 0.08262366572 | AF101: 0.9442867702 | AG101: 0 | AH101: 0 | AI101: 0 | AJ101: 0 | AK101: 19574798 | AL101: 14681099
A102: 00000334000000000000 | B102: CUENTAS POR PAGAR | C102: 55929000 | D102: 0 | E102: 0 | F102: 55929000 | H102: 55929000 | I102: 0 | J102: 55928621 | K102: 0.9999932236 | L102: 24468515 | M102: 4893699 | N102: 24195857 | O102: 0.432617372 | P102: 0.9888567819 | Q102: 00000334000000000000 | R102: CUENTAS POR PAGAR | S102: 55929000 | T102: 0 | U102: 0 | V102: 55929000 | X102: 55929000 | Y102: 55928621 | Z102: 55928621 | AA102: 0.9999932236 | AB102: 4893703 | AC102: 4621059 | AD102: 4621059 | AE102: 0.08262366572 | AF102: 0.9442867702 | AG102: 0 | AH102: 0 | AI102: 0 | AJ102: 0 | AK102: 19574798 | AL102: 14681099
A103: 338000000000000 | B103: FONDO OBLIGACIONES CONTINGENTES | C103: 12842335000 | F103: 12842335000 | H103: 12842335000 | Q103: 338000000000000 | R103: FONDO OBLIGACIONES CONTINGENTES | S103: 12842335000 | V103: 12842335000 | X103: 12842335000 | AG103: 0 | AH103: 0 | AI103: 0 | AJ103: 0 | AK103: 0 | AL103: 0
A104: 00000338000000000000 | B104: FONDO OBLIGACIONES CONTINGENTES | C104: 12842335000 | F104: 12842335000 | H104: 12842335000 | Q104: 00000338000000000000 | R104: FONDO OBLIGACIONES CONTINGENTES | S104: 12842335000 | V104: 12842335000 | X104: 12842335000 | AG104: 0 | AH104: 0 | AI104: 0 | AJ104: 0 | AK104: 0 | AL104: 0
A105: 340000000000000 | B105: GASTOS DE INVERSION | C105: 2086894365000 | D105: 0 | E105: 74807097669 | F105: 2161701462669 | H105: 2161701462669 | I105: -1159821123 | J105: 999672863922 | K105: 0.4624472348 | L105: 252420785551 | M105: 29315870324 | N105: 189361060728 | O105: 0.08759815543 | P105: 0.7501801419 | Q105: 340000000000000 | R105: GASTOS DE INVERSION | S105: 2086894365000 | T105: 0 | U105: 0 | V105: 2086894365000 | X105: 2086894365000 | Y105: 994467464246 | Z105: 994467464246 | AA105: 0.4765298526 | AB105: 153481138561 | AC105: 5003273871 | AD105: 5003273871 | AE105: 0.002397473468 | AF105: 0.03259862363 | AG105: 74807097669 | AH105: 74807097669 | AI105: 5205399676 | AJ105: 6365220799 | AK105: 184357786857 | AL105: 155041916533
A106: 341000000000000 | B106: DIRECTA | C106: 1115022286000 | D106: 1717810411 | E106: -50358439600 | F106: 1064663846400 | H106: 1064663846400 | I106: 2795888317 | J106: 516029826044 | K106: 0.4846880335 | L106: 40528485285 | M106: 6860723827 | N106: 26267844800 | O106: 0.02467243054 | P106: 0.6481329025 | Q106: 341000000000000 | R106: DIRECTA | S106: 1115022286000 | T106: -14064202605 | U106: -14064202605 | V106: 1100958083395 | X106: 1100958083395 | Y106: 509406791208 | Z106: 509406791208 | AA106: 0.4626940834 | AB106: 107841157096 | AG106: -36294236995 | AH106: -38012047406 | AI106: 6623034836 | AJ106: 3827146519 | AK106: 26267844800 | AL106: 19407120973
A107: 3411500000000000 | B107: BOGOTA MEJOR PARA TODOS | C107: 1115022286000 | D107: 1717810411 | E107: -50358439600 | F107: 1064663846400 | H107: 1064663846400 | I107: 2795888317 | J107: 516029826044 | K107: 0.4846880335 | L107: 40528485285 | M107: 6860723827 | N107: 26267844800 | O107: 0.02467243054 | P107: 0.6481329025 | Q107: 3411500000000000 | R107: BOGOTA MEJOR PARA TODOS | S107: 1115022286000 | T107: -14064202605 | U107: -14064202605 | V107: 1100958083395 | X107: 1100958083395 | Y107: 509406791208 | Z107: 509406791208 | AA107: 0.4626940834 | AB107: 107841157096 | AG107: -36294236995 | AH107: -38012047406 | AI107: 6623034836 | AJ107: 3827146519 | AK107: 26267844800 | AL107: 19407120973
A108: 3411502000000000 | B108: DEMOCRACIA URBANA | C108: 1021237719000 | D108: 1212207355 | E108: -48213671187 | F108: 973024047813 | H108: 973024047813 | I108: 2646687726 | J108: 478422619188 | K108: 0.491686326 | L108: 32394016292 | M108: 6398231731 | N108: 24903015852 | O108: 0.0255934228 | P108: 0.7687535756 | Q108: 3411502000000000 | R108: DEMOCRACIA URBANA | S108: 1021237719000 | T108: -14064202605 | U108: -14064202605 | V108: 1007173516395 | X108: 1007173516395 | Y108: 474961994907 | Z108: 474961994907 | AA108: 0.4715791144 | AB108: 106429578540 | AG108: -34149468582 | AH108: -35361675937 | AI108: 3460624281 | AJ108: 813936555 | AK108: 24903015852 | AL108: 18504784121
A109: 3411502130000000 | B109: INFRAESTRUCTURA PARA EL DESARROLLO DEL HÁBITAT | C109: 1021237719000 | D109: 1212207355 | E109: -48213671187 | F109: 973024047813 | H109: 973024047813 | I109: 2646687726 | J109: 478422619188 | K109: 0.491686326 | L109: 32394016292 | M109: 6398231731 | N109: 24903015852 | O109: 0.0255934228 | P109: 0.7687535756 | Q109: 3411502130000000 | R109: INFRAESTRUCTURA PARA EL DESARROLLO DEL HÁBITAT | S109: 1021237719000 | T109: -14064202605 | U109: -14064202605 | V109: 1007173516395 | X109: 1007173516395 | Y109: 474961994907 | Z109: 474961994907 | AA109: 0.4715791144 | AB109: 106429578540 | AG109: -34149468582 | AH109: -35361675937 | AI109: 3460624281 | AJ109: 813936555 | AK109: 24903015852 | AL109: 18504784121
A110: 3411502130019000 | B110: CONST.REDES LOCALES PARA EL SERVICIO ALCANTARILLADO PLUVIAL | C110: 39310965000 | D110: -5528009 | E110: -9478286938 | F110: 29832678062 | H110: 29832678062 | I110: 0 | J110: 16883409630 | K110: 0.5659367756 | L110: 3474944999 | M110: 647938770 | N110: 2637739448 | O110: 0.08841778946 | P110: 0.759073726 | Q110: 3411502130019000 | R110: CONST.REDES LOCALES PARA EL SERVICIO ALCANTARILLADO PLUVIAL | S110: 39310965000 | T110: 0 | U110: 0 | V110: 39310965000 | X110: 39310965000 | Y110: 16883409630 | Z110: 16883409630 | AA110: 0.4294834693 | AB110: 1620816806 | AG110: -9478286938 | AH110: -9472758929 | AI110: 0 | AJ110: 0 | AK110: 2637739448 | AL110: 1989800678
A111: 00003411502130019133 | B111: INFRAESTRUCTURA PARA EL DESARROLLO DEL HÁBITAT | C111: 39310965000 | D111: -5528009 | E111: -9478286938 | F111: 29832678062 | H111: 29832678062 | I111: 0 | J111: 16883409630 | K111: 0.5659367756 | L111: 3474944999 | M111: 647938770 | N111: 2637739448 | O111: 0.08841778946 | P111: 0.759073726 | Q111: 00003411502130019133 | R111: INFRAESTRUCTURA PARA EL DESARROLLO DEL HÁBITAT | S111: 39310965000 | T111: 0 | U111: 0 | V111: 39310965000 | X111: 39310965000 | Y111: 16883409630 | Z111: 16883409630 | AA111: 0.4294834693 | AB111: 1620816806 | AG111: -9478286938 | AH111: -9472758929 | AI111: 0 | AJ111: 0 | AK111: 2637739448 | AL111: 1989800678
A112: 3411502130020000 | B112: CONST.REDES LOCALES SERVICIO DE ALCANTARILLADO SANITARIO | C112: 27526040000 | D112: 78040100 | E112: -11131218264 | F112: 16394821736 | H112: 16394821736 | I112: 0 | J112: 6237906783 | K112: 0.3804803055 | L112: 481528903 | M112: 29846409 | N112: 416011566 | O112: 0.02537457087 | P112: 0.8639389316 | Q112: 3411502130020000 | R112: CONST.REDES LOCALES SERVICIO DE ALCANTARILLADO SANITARIO | S112: 27526040000 | T112: 0 | U112: 0 | V112: 27526040000 | X112: 27526040000 | Y112: 6237906783 | Z112: 6237906783 | AA112: 0.2266183869 | AB112: 529894182 | AG112: -11131218264 | AH112: -11209258364 | AI112: 0 | AJ112: 0 | AK112: 416011566 | AL112: 386165157
A113: 00003411502130020133 | B113: INFRAESTRUCTURA PARA EL DESARROLLO DEL HÁBITAT | C113: 27526040000 | D113: 78040100 | E113: -11131218264 | F113: 16394821736 | H113: 16394821736 | I113: 0 | J113: 6237906783 | K113: 0.3804803055 | L113: 481528903 | M113: 29846409 | N113: 416011566 | O113: 0.02537457087 | P113: 0.8639389316 | Q113: 00003411502130020133 | R113: INFRAESTRUCTURA PARA EL DESARROLLO DEL HÁBITAT | S113: 27526040000 | T113: 0 | U113: 0 | V113: 27526040000 | X113: 27526040000 | Y113: 6237906783 | Z113: 6237906783 | AA113: 0.2266183869 | AB113: 529894182 | AG113: -11131218264 | AH113: -11209258364 | AI113: 0 | AJ113: 0 | AK113: 416011566 | AL113: 386165157
A114: 3411502130021000 | B114: CONST.SISTEMA TRONCAL Y SECUNDARIO ALCANTARILLADO SANITARIO | C114: 14273960000 | D114: 0 | E114: 67227578 | F114: 14341187578 | H114: 14341187578 | I114: 72066415 | J114: 13934955212 | K114: 0.971673729 | L114: 661068091 | N114: 661068091 | O114: 0.04609577048 | P114: 1 | Q114: 3411502130021000 | R114: CONST.SISTEMA TRONCAL Y SECUNDARIO ALCANTARILLADO SANITARIO | S114: 14273960000 | T114: 0 | U114: 0 | V114: 14273960000 | X114: 14273960000 | Y114: 13862888797 | Z114: 13862888797 | AA114: 0.9712013202 | AB114: 0 | AG114: 67227578 | AH114: 67227578 | AI114: 72066415 | AJ114: 0 | AK114: 661068091 | AL114: 661068091
A115: 00003411502130021133 | B115: INFRAESTRUCTURA PARA EL DESARROLLO DEL HÁBITAT | C115: 14273960000 | D115: 0 | E115: 67227578 | F115: 14341187578 | H115: 14341187578 | I115: 72066415 | J115: 13934955212 | K115: 0.971673729 | L115: 661068091 | N115: 661068091 | O115: 0.04609577048 | P115: 1 | Q115: 00003411502130021133 | R115: INFRAESTRUCTURA PARA EL DESARROLLO DEL HÁBITAT | S115: 14273960000 | T115: 0 | U115: 0 | V115: 14273960000 | X115: 14273960000 | Y115: 13862888797 | Z115: 13862888797 | AA115: 0.9712013202 | AB115: 0 | AG115: 67227578 | AH115: 67227578 | AI115: 72066415 | AJ115: 0 | AK115: 661068091 | AL115: 661068091
A116: 3411502130022000 | B116: CONST.SISTEMA TRONCAL Y SECUNDARIO DE ALCANTARILLADO PLUVIAL | C116: 38391669000 | D116: 1056930295 | E116: -646067367 | F116: 37745601633 | H116: 37745601633 | I116: 2497674 | J116: 32530634584 | K116: 0.86183908 | L116: 797823847 | M116: 391196000 | N116: 527878673 | O116: 0.01398517046 | P116: 0.6616481508 | Q116: 3411502130022000 | R116: CONST.SISTEMA TRONCAL Y SECUNDARIO DE ALCANTARILLADO PLUVIAL | S116: 38391669000 | T116: 0 | U116: 0 | V116: 38391669000 | X116: 38391669000 | Y116: 32464335289 | Z116: 32464335289 | AA116: 0.8456088556 | AB116: 468030485 | AG116: -646067367 | AH116: -1702997662 | AI116: 66299295 | AJ116: 63801621 | AK116: 527878673 | AL116: 136682673
A117: 00003411502130022133 | B117: INFRAESTRUCTURA PARA EL DESARROLLO DEL HÁBITAT | C117: 38391669000 | D117: 1056930295 | E117: -646067367 | F117: 37745601633 | H117: 37745601633 | I117: 2497674 | J117: 32530634584 | K117: 0.86183908 | L117: 797823847 | M117: 391196000 | N117: 527878673 | O117: 0.01398517046 | P117: 0.6616481508 | Q117: 00003411502130022133 | R117: INFRAESTRUCTURA PARA EL DESARROLLO DEL HÁBITAT | S117: 38391669000 | T117: 0 | U117: 0 | V117: 38391669000 | X117: 38391669000 | Y117: 32464335289 | Z117: 32464335289 | AA117: 0.8456088556 | AB117: 468030485 | AG117: -646067367 | AH117: -1702997662 | AI117: 66299295 | AJ117: 63801621 | AK117: 527878673 | AL117: 136682673
A118: 3411502130050000 | B118: RENOV,REHAB.O REPOS. SIST.ABAST. Y DISTRIB. MATRIZ ACUEDUCTO | C118: 155544351000 | D118: 407939405 | E118: -11389815028 | F118: 144154535972 | H118: 144154535972 | I118: 73477234 | J118: 69290580807 | K118: 0.4806687513 | L118: 7780328600 | M118: 1725345917 | N118: 5632200030 | O118: 0.03907057098 | P118: 0.7239025907 | Q118: 3411502130050000 | R118: RENOV,REHAB.O REPOS. SIST.ABAST. Y DISTRIB. MATRIZ ACUEDUCTO | S118: 155544351000 | T118: 0 | U118: 0 | V118: 155544351000 | X118: 155544351000 | Y118: 69065924314 | Z118: 69065924314 | AA118: 0.4440272107 | AB118: 17144989758 | AG118: -11389815028 | AH118: -11797754433 | AI118: 224656493 | AJ118: 151179259 | AK118: 5632200030 | AL118: 3906854113
A119: 00003411502130050133 | B119: INFRAESTRUCTURA PARA EL DESARROLLO DEL HÁBITAT | C119: 155544351000 | D119: 407939405 | E119: -11389815028 | F119: 144154535972 | H119: 144154535972 | I119: 73477234 | J119: 69290580807 | K119: 0.4806687513 | L119: 7780328600 | M119: 1725345917 | N119: 5632200030 | O119: 0.03907057098 | P119: 0.7239025907 | Q119: 00003411502130050133 | R119: INFRAESTRUCTURA PARA EL DESARROLLO DEL HÁBITAT | S119: 155544351000 | T119: 0 | U119: 0 | V119: 155544351000 | X119: 155544351000 | Y119: 69065924314 | Z119: 69065924314 | AA119: 0.4440272107 | AB119: 17144989758 | AG119: -11389815028 | AH119: -11797754433 | AI119: 224656493 | AJ119: 151179259 | AK119: 5632200030 | AL119: 3906854113
A120: 3411502130051000 | B120: RENOV,REHAB.O REPOS.SIST.TRONCAL,SEC. Y LOCAL ALC.SANITARIO | C120: 147614727000 | D120: 3061013983 | E120: 4684846594 | F120: 152299573594 | H120: 152299573594 | I120: 2249846256 | J120: 98246547230 | K120: 0.6450874741 | L120: 6220995382 | M120: 497570300 | N120: 4963770325 | O120: 0.03259214854 | P120: 0.797906126 | Q120: 3411502130051000 | R120: RENOV,REHAB.O REPOS.SIST.TRONCAL,SEC. Y LOCAL ALC.SANITARIO | S120: 147614727000 | T120: 0 | U120: 0 | V120: 147614727000 | X120: 147614727000 | Y120: 95996700974 | Z120: 95996700974 | AA120: 0.6503192664 | AB120: 3682128331 | AG120: 4684846594 | AH120: 1623832611 | AI120: 2249846256 | AJ120: 0 | AK120: 4963770325 | AL120: 4466200025
A121: 00003411502130051133 | B121: INFRAESTRUCTURA PARA EL DESARROLLO DEL HÁBITAT | C121: 147614727000 | D121: 3061013983 | E121: 4684846594 | F121: 152299573594 | H121: 152299573594 | I121: 2249846256 | J121: 98246547230 | K121: 0.6450874741 | L121: 6220995382 | M121: 497570300 | N121: 4963770325 | O121: 0.03259214854 | P121: 0.797906126 | Q121: 00003411502130051133 | R121: INFRAESTRUCTURA PARA EL DESARROLLO DEL HÁBITAT | S121: 147614727000 | T121: 0 | U121: 0 | V121: 147614727000 | X121: 147614727000 | Y121: 95996700974 | Z121: 95996700974 | AA121: 0.6503192664 | AB121: 3682128331 | AG121: 4684846594 | AH121: 1623832611 | AI121: 2249846256 | AJ121: 0 | AK121: 4963770325 | AL121: 4466200025
A122: 3411502130052000 | B122: RENOV,REHAB.O REPOS.SIST.TRONCAL, SEC. Y LOCAL ALC. PLUVIAL | C122: 137242908000 | D122: 0 | E122: -18597139855 | F122: 118645768145 | H122: 118645768145 | I122: 0 | J122: 101231726352 | K122: 0.8532266084 | L122: 3105959458 | N122: 1196031452 | O122: 0.01008069205 | P122: 0.3850763245 | Q122: 3411502130052000 | R122: RENOV,REHAB.O REPOS.SIST.TRONCAL, SEC. Y LOCAL ALC. PLUVIAL | S122: 137242908000 | T122: -14064202605 | U122: -14064202605 | V122: 123178705395 | X122: 123178705395 | Y122: 101231726352 | Z122: 101231726352 | AA122: 0.8218281401 | AB122: 550272728 | AG122: -4532937250 | AH122: -4532937250 | AI122: 0 | AJ122: 0 | AK122: 1196031452 | AL122: 1196031452
A123: 00003411502130052133 | B123: INFRAESTRUCTURA PARA EL DESARROLLO DEL HÁBITAT | C123: 137242908000 | D123: 0 | E123: -18597139855 | F123: 118645768145 | H123: 118645768145 | I123: 0 | J123: 101231726352 | K123: 0.8532266084 | L123: 3105959458 | N123: 1196031452 | O123: 0.01008069205 | P123: 0.3850763245 | Q123: 00003411502130052133 | R123: INFRAESTRUCTURA PARA EL DESARROLLO DEL HÁBITAT | S123: 137242908000 | T123: -14064202605 | U123: -14064202605 | V123: 123178705395 | X123: 123178705395 | Y123: 101231726352 | Z123: 101231726352 | AA123: 0.8218281401 | AB123: 550272728 | AG123: -4532937250 | AH123: -4532937250 | AI123: 0 | AJ123: 0 | AK123: 1196031452 | AL123: 1196031452
A124: 3411502130053000 | B124: RENOV,REHAB.O REPOS.SIST.TRONCAL, SEC. Y LOCAL ALC. COMBIN | C124: 14605692000 | D124: 0 | E124: 334982531 | F124: 14940674531 | H124: 14940674531 | I124: 227173548 | J124: 302103597 | K124: 0.02022021137 | L124: 0 | Q124: 3411502130053000 | R124: RENOV,REHAB.O REPOS.SIST.TRONCAL, SEC. Y LOCAL ALC. COMBIN | S124: 14605692000 | V124: 14605692000 | X124: 14605692000 | AG124: 334982531 | AH124: 334982531 | AI124: 302103597 | AJ124: 74930049 | AK124: 0 | AL124: 0
A125: 00003411502130053133 | B125: INFRAESTRUCTURA PARA EL DESARROLLO DEL HÁBITAT | C125: 14605692000 | D125: 0 | E125: 334982531 | F125: 14940674531 | H125: 14940674531 | I125: 227173548 | J125: 302103597 | K125: 0.02022021137 | L125: 0 | Q125: 00003411502130053133 | R125: INFRAESTRUCTURA PARA EL DESARROLLO DEL HÁBITAT | S125: 14605692000 | V125: 14605692000 | X125: 14605692000 | AG125: 334982531 | AH125: 334982531 | AI125: 302103597 | AJ125: 74930049 | AK125: 0 | AL125: 0
A126: 3411502130054000 | B126: ACCIONES PARA EL SANEAMIENTO DEL RÍO BOGOTÁ | C126: 14225533000 | D126: 0 | E126: 74807097669 | F126: 89032630669 | H126: 89032630669 | I126: 2497674 | J126: 12299497674 | K126: 0.1381459537 | L126: 2497674 | M126: 2497674 | N126: 2497674 | O126: 2.805346738e-05 | P126: 1 | Q126: 3411502130054000 | R126: ACCIONES PARA EL SANEAMIENTO DEL RÍO BOGOTÁ | S126: 14225533000 | T126: 0 | U126: 0 | V126: 14225533000 | X126: 14225533000 | Y126: 12297000000 | Z126: 12297000000 | AA126: 0.8644315823 | AG126: 74807097669 | AH126: 74807097669 | AI126: 2497674 | AJ126: 0 | AK126: 2497674 | AL126: 0
A127: 00003411502130054133 | B127: INFRAESTRUCTURA PARA EL DESARROLLO DEL HÁBITAT | C127: 14225533000 | D127: 0 | E127: 74807097669 | F127: 89032630669 | H127: 89032630669 | I127: 2497674 | J127: 12299497674 | K127: 0.1381459537 | L127: 2497674 | M127: 2497674 | N127: 2497674 | O127: 2.805346738e-05 | P127: 1 | Q127: 00003411502130054133 | R127: INFRAESTRUCTURA PARA EL DESARROLLO DEL HÁBITAT | S127: 14225533000 | T127: 0 | U127: 0 | V127: 14225533000 | X127: 14225533000 | Y127: 12297000000 | Z127: 12297000000 | AA127: 0.8644315823 | AG127: 74807097669 | AH127: 74807097669 | AI127: 2497674 | AJ127: 0 | AK127: 2497674 | AL127: 0
A128: 3411502130068000 | B128: CONST,RENOV,REHAB.O REPOS.REDES ASOC.A INFRAESTRUCTURA VIAL | C128: 46457000000 | D128: 0 | E128: -46386466521 | F128: 70533479 | H128: 70533479 | Q128: 3411502130068000 | R128: CONST,RENOV,REHAB.O REPOS.REDES ASOC.A INFRAESTRUCTURA VIAL | S128: 46457000000 | V128: 46457000000 | X128: 46457000000 | AG128: -46386466521 | AH128: -46386466521 | AI128: 0 | AJ128: 0 | AK128: 0 | AL128: 0
A129: 00003411502130068133 | B129: INFRAESTRUCTURA PARA EL DESARROLLO DEL HÁBITAT | C129: 46457000000 | D129: 0 | E129: -46386466521 | F129: 70533479 | H129: 70533479 | Q129: 00003411502130068133 | R129: INFRAESTRUCTURA PARA EL DESARROLLO DEL HÁBITAT | S129: 46457000000 | V129: 46457000000 | X129: 46457000000 | AG129: -46386466521 | AH129: -46386466521 | AI129: 0 | AJ129: 0 | AK129: 0 | AL129: 0
A130: 3411502130081000 | B130: CORREDORES AMBIENTALES | C130: 121046203000 | D130: 0 | E130: -13762295878 | F130: 107283907122 | H130: 107283907122 | I130: 1799981 | J130: 2079196216 | K130: 0.01938031781 | L130: 20142156 | M130: 1648420 | N130: 1648420 | O130: 1.536502579e-05 | P130: 0.0818393026 | Q130: 3411502130081000 | R130: CORREDORES AMBIENTALES | S130: 121046203000 | T130: 0 | U130: 0 | V130: 121046203000 | X130: 121046203000 | Y130: 1751313132 | Z130: 1751313132 | AA130: 0.01446813769 | AB130: 2194298039 | AG130: -13762295878 | AH130: -13762295878 | AI130: 327883084 | AJ130: 326083103 | AK130: 1648420 | AL130: 0
A131: 00003411502130081133 | B131: INFRAESTRUCTURA PARA EL DESARROLLO DEL HÁBITAT | C131: 121046203000 | D131: 0 | E131: -13762295878 | F131: 107283907122 | H131: 107283907122 | I131: 1799981 | J131: 2079196216 | K131: 0.01938031781 | L131: 20142156 | M131: 1648420 | N131: 1648420 | O131: 1.536502579e-05 | P131: 0.0818393026 | Q131: 00003411502130081133 | R131: INFRAESTRUCTURA PARA EL DESARROLLO DEL HÁBITAT | S131: 121046203000 | T131: 0 | U131: 0 | V131: 121046203000 | X131: 121046203000 | Y131: 1751313132 | Z131: 1751313132 | AA131: 0.01446813769 | AB131: 2194298039 | AG131: -13762295878 | AH131: -13762295878 | AI131: 327883084 | AJ131: 326083103 | AK131: 1648420 | AL131: 0
A132: 3411502137334000 | B132: CONST.Y EXPANSIÓN SISTEMA ABASTECIMIENTO Y MATRIZ ACUEDUCTO | C132: 249776117000 | D132: -3386605934 | E132: -12704464860 | F132: 237071652140 | H132: 237071652140 | I132: 17328944 | J132: 121685036258 | K132: 0.5132837906 | L132: 9630988216 | M132: 3102188241 | N132: 8720334207 | O132: 0.03678353834 | P132: 0.9054454238 | Q132: 3411502137334000 | R132: CONST.Y EXPANSIÓN SISTEMA ABASTECIMIENTO Y MATRIZ ACUEDUCTO | S132: 249776117000 | T132: 0 | U132: 0 | V132: 249776117000 | X132: 249776117000 | Y132: 121469764791 | Z132: 121469764791 | AA132: 0.4863145694 | AB132: 79966314952 | AG132: -12704464860 | AH132: -9317858926 | AI132: 215271467 | AJ132: 197942523 | AK132: 8720334207 | AL132: 5618145966
A133: 00003411502137334133 | B133: INFRAESTRUCTURA PARA EL DESARROLLO DEL HÁBITAT | C133: 249776117000 | D133: -3386605934 | E133: -12704464860 | F133: 237071652140 | H133: 237071652140 | I133: 17328944 | J133: 121685036258 | K133: 0.5132837906 | L133: 9630988216 | M133: 3102188241 | N133: 8720334207 | O133: 0.03678353834 | P133: 0.9054454238 | Q133: 00003411502137334133 | R133: INFRAESTRUCTURA PARA EL DESARROLLO DEL HÁBITAT | S133: 249776117000 | T133: 0 | U133: 0 | V133: 249776117000 | X133: 249776117000 | Y133: 121469764791 | Z133: 121469764791 | AA133: 0.4863145694 | AB133: 79966314952 | AG133: -12704464860 | AH133: -9317858926 | AI133: 215271467 | AJ133: 197942523 | AK133: 8720334207 | AL133: 5618145966
A134: 3411502137338000 | B134: CONSTRUCCIÓN DE REDES LOCALES PARA EL SERVICIO DE ACUEDUCTO | C134: 15222554000 | D134: 417515 | E134: -4012070848 | F134: 11210483152 | H134: 11210483152 | J134: 3701024845 | K134: 0.3301396376 | L134: 217738966 | N134: 143835966 | O134: 0.01283048768 | P134: 0.6605890009 | Q134: 3411502137338000 | R134: CONSTRUCCIÓN DE REDES LOCALES PARA EL SERVICIO DE ACUEDUCTO | S134: 15222554000 | T134: 0 | U134: 0 | V134: 15222554000 | X134: 15222554000 | Y134: 3701024845 | Z134: 3701024845 | AA134: 0.2431277199 | AB134: 272833259 | AG134: -4012070848 | AH134: -4012488363 | AI134: 0 | AJ134: 0 | AK134: 143835966 | AL134: 143835966
A135: 00003411502137338133 | B135: INFRAESTRUCTURA PARA EL DESARROLLO DEL HÁBITAT | C135: 15222554000 | D135: 417515 | E135: -4012070848 | F135: 11210483152 | H135: 11210483152 | J135: 3701024845 | K135: 0.3301396376 | L135: 217738966 | N135: 143835966 | O135: 0.01283048768 | P135: 0.6605890009 | Q135: 00003411502137338133 | R135: INFRAESTRUCTURA PARA EL DESARROLLO DEL HÁBITAT | S135: 15222554000 | T135: 0 | U135: 0 | V135: 15222554000 | X135: 15222554000 | Y135: 3701024845 | Z135: 3701024845 | AA135: 0.2431277199 | AB135: 272833259 | AG135: -4012070848 | AH135: -4012488363 | AI135: 0 | AJ135: 0 | AK135: 143835966 | AL135: 143835966
A136: 3411506000000000 | B136: EJE TRANSV. SOST. AMBIENTAL BASADA EFICIENCIA ENERGÉTICA | C136: 61193149000 | D136: 124174735 | E136: -2566636817 | F136: 58626512183 | H136: 58626512183 | I136: 149200591 | J136: 35282370834 | K136: 0.6018159621 | L136: 3708091370 | M136: 462492096 | N136: 1344142710 | O136: 0.02292721603 | P136: 0.3624891018 | Q136: 3411506000000000 | R136: EJE TRANSV. SOST. AMBIENTAL BASADA EFICIENCIA ENERGÉTICA | S136: 61193149000 | T136: 0 | U136: 0 | V136: 61193149000 | X136: 61193149000 | Y136: 32827042961 | Z136: 32827042961 | AA136: 0.5364496434 | AB136: 1345278556 | AG136: -2566636817 | AH136: -2690811552 | AI136: 2455327873 | AJ136: 2306127282 | AK136: 1344142710 | AL136: 881650614
A137: 3411506380000000 | B137: RECUPERACIÓN Y MANEJO DE LA ESTRUCTURA ECOLÓGICA PRINCIPAL | D137: 124174735 | E137: 427224516 | F137: 427224516 | H137: 427224516 | I137: 149200591 | J137: 426420372 | K137: 0.9981177485 | L137: 283108085 | M137: 258246611 | N137: 264363002 | O137: 0.6187917409 | P137: 0.9337882456 | AG137: =F137-V137 -> 427224516 | AH137: =AG137-D137 -> 303049781 | AI137: =J137-Z137 -> 426420372 | AJ137: =AI137-I137 -> 277219781 | AK137: =N137-AD137 -> 264363002 | AL137: =AK137-M137 -> 6116391
A138: 3411506387341000 | B138: ADEC.HIDRÁULICA RECUP.AMB.HUMED,QUEBRADAS,RÍOS CUENCAS ABAST | D138: 124174735 | E138: 427224516 | F138: 427224516 | H138: 427224516 | I138: 149200591 | J138: 426420372 | K138: 0.9981177485 | L138: 283108085 | M138: 258246611 | N138: 264363002 | O138: 0.6187917409 | P138: 0.9337882456 | AG138: 427224516 | AH138: 303049781 | AI138: 426420372 | AJ138: 277219781 | AK138: 264363002 | AL138: 6116391
A139: 00003411506387341177 | B139: CONSOLIDACIÓN DE LA ESTRUCTURA ECOLÓGICA PRINCIPAL | D139: 124174735 | E139: 427224516 | F139: 427224516 | H139: 427224516 | I139: 149200591 | J139: 426420372 | K139: 0.9981177485 | L139: 283108085 | M139: 258246611 | N139: 264363002 | O139: 0.6187917409 | P139: 0.9337882456 | AG139: 427224516 | AH139: 303049781 | AI139: 426420372 | AJ139: 277219781 | AK139: 264363002 | AL139: 6116391
A140: 3411506390000000 | B140: AMBIENTE SANO PARA LA EQUIDAD Y DISFRUTE DEL CIUDADANO | C140: 61193149000 | D140: 0 | E140: -2993861333 | F140: 58199287667 | H140: 58199287667 | I140: 0 | J140: 34855950462 | K140: 0.5989068227 | L140: 3424983285 | M140: 204245485 | N140: 1079779708 | O140: 0.01855314302 | P140: 0.3152656869 | Q140: 3411506390000000 | R140: AMBIENTE SANO PARA LA EQUIDAD Y DISFRUTE DEL CIUDADANO | S140: 61193149000 | T140: 0 | U140: 0 | V140: 61193149000 | X140: 61193149000 | Y140: 32827042961 | Z140: 32827042961 | AA140: 0.5364496434 | AB140: 1345278556 | AG140: -2993861333 | AH140: -2993861333 | AI140: 2028907501 | AJ140: 2028907501 | AK140: 1079779708 | AL140: 875534223
A141: 3411506390082000 | B141: PLAN DE SANEAMIENTO Y MANEJO DE VERTIMIENTOS | C141: 61193149000 | D141: 0 | E141: -2993861333 | F141: 58199287667 | H141: 58199287667 | I141: 0 | J141: 34855950462 | K141: 0.5989068227 | L141: 3424983285 | M141: 204245485 | N141: 1079779708 | O141: 0.01855314302 | P141: 0.3152656869 | Q141: 3411506390082000 | R141: PLAN DE SANEAMIENTO Y MANEJO DE VERTIMIENTOS | S141: 61193149000 | T141: 0 | U141: 0 | V141: 61193149000 | X141: 61193149000 | Y141: 32827042961 | Z141: 32827042961 | AA141: 0.5364496434 | AB141: 1345278556 | AG141: -2993861333 | AH141: -2993861333 | AI141: 2028907501 | AJ141: 2028907501 | AK141: 1079779708 | AL141: 875534223
A142: 00003411506390082179 | B142: AMBIENTE SANO | C142: 61193149000 | D142: 0 | E142: -2993861333 | F142: 58199287667 | H142: 58199287667 | I142: 0 | J142: 34855950462 | K142: 0.5989068227 | L142: 3424983285 | M142: 204245485 | N142: 1079779708 | O142: 0.01855314302 | P142: 0.3152656869 | Q142: 00003411506390082179 | R142: AMBIENTE SANO | S142: 61193149000 | T142: 0 | U142: 0 | V142: 61193149000 | X142: 61193149000 | Y142: 32827042961 | Z142: 32827042961 | AA142: 0.5364496434 | AB142: 1345278556 | AG142: -2993861333 | AH142: -2993861333 | AI142: 2028907501 | AJ142: 2028907501 | AK142: 1079779708 | AL142: 875534223
A143: 3411507000000000 | B143: EJE TRANSVERSAL GOBIERNO LEGÍTIMO, FORT. LOCAL Y EFICIENTE | C143: 32591418000 | D143: 381428321 | E143: 421868404 | F143: 33013286404 | H143: 33013286404 | I143: 0 | J143: 2324836022 | K143: 0.07042122355 | L143: 4426377623 | N143: 20686238 | O143: 0.000626603415 | P143: 0.004673401088 | Q143: 3411507000000000 | R143: EJE TRANSVERSAL GOBIERNO LEGÍTIMO, FORT. LOCAL Y EFICIENTE | S143: 32591418000 | T143: 0 | U143: 0 | V143: 32591418000 | X143: 32591418000 | Y143: 1617753340 | Z143: 1617753340 | AA143: 0.04963740271 | AB143: 66300000 | AG143: 421868404 | AH143: 40440083 | AI143: 707082682 | AJ143: 707082682 | AK143: 20686238 | AL143: 20686238
A144: 3411507420000000 | B144: TRANSPARENCIA, GESTIÓN PÚBLICA Y SERVICIO A LA CIUDADANÍA | C144: 32591418000 | D144: 381428321 | E144: 421868404 | F144: 33013286404 | H144: 33013286404 | I144: 0 | J144: 2324836022 | K144: 0.07042122355 | L144: 4426377623 | N144: 20686238 | O144: 0.000626603415 | P144: 0.004673401088 | Q144: 3411507420000000 | R144: TRANSPARENCIA, GESTIÓN PÚBLICA Y SERVICIO A LA CIUDADANÍA | S144: 32591418000 | T144: 0 | U144: 0 | V144: 32591418000 | X144: 32591418000 | Y144: 1617753340 | Z144: 1617753340 | AA144: 0.04963740271 | AB144: 66300000 | AG144: 421868404 | AH144: 40440083 | AI144: 707082682 | AJ144: 707082682 | AK144: 20686238 | AL144: 20686238
A145: 3411507420055000 | B145: FORTALECIMIENTO ADMINISTRATIVO Y OPERATIVO EMPRESARIAL | C145: 32591418000 | D145: 381428321 | E145: 421868404 | F145: 33013286404 | H145: 33013286404 | I145: 0 | J145: 2324836022 | K145: 0.07042122355 | L145: 4426377623 | N145: 20686238 | O145: 0.000626603415 | P145: 0.004673401088 | Q145: 3411507420055000 | R145: FORTALECIMIENTO ADMINISTRATIVO Y OPERATIVO EMPRESARIAL | S145: 32591418000 | T145: 0 | U145: 0 | V145: 32591418000 | X145: 32591418000 | Y145: 1617753340 | Z145: 1617753340 | AA145: 0.04963740271 | AB145: 66300000 | AG145: 421868404 | AH145: 40440083 | AI145: 707082682 | AJ145: 707082682 | AK145: 20686238 | AL145: 20686238
A146: 00003411507420055185 | B146: FORTALECIMIENTO ADMINISTRATIVO Y OPERATIVO EMPRESARIAL | C146: 32591418000 | D146: 381428321 | E146: 421868404 | F146: 33013286404 | H146: 33013286404 | I146: 0 | J146: 2324836022 | K146: 0.07042122355 | L146: 4426377623 | N146: 20686238 | O146: 0.000626603415 | P146: 0.004673401088 | Q146: 00003411507420055185 | R146: FORTALECIMIENTO ADMINISTRATIVO Y OPERATIVO EMPRESARIAL | S146: 32591418000 | T146: 0 | U146: 0 | V146: 32591418000 | X146: 32591418000 | Y146: 1617753340 | Z146: 1617753340 | AA146: 0.04963740271 | AB146: 66300000 | AG146: 421868404 | AH146: 40440083 | AI146: 707082682 | AJ146: 707082682 | AK146: 20686238 | AL146: 20686238
A147: 342000000000000 | B147: TRANSFERENCIAS PARA INVERSION | C147: 406848694000 | D147: 125770953 | E147: 113858205066 | F147: 520706899066 | H147: 520706899066 | I147: 119512134 | J147: 5499091084 | K147: 0.01056081856 | L147: 5571891248 | M147: 119512134 | N147: 5499091084 | O147: 0.01056081856 | P147: 0.9869343889 | Q147: 342000000000000 | R147: TRANSFERENCIAS PARA INVERSION | S147: 406848694000 | V147: 406848694000 | X147: 406848694000 | Y147: 0 | Z147: 0 | AA147: 0 | AG147: 113858205066 | AH147: 113732434113 | AI147: 5499091084 | AJ147: 5379578950 | AK147: 5499091084 | AL147: 5379578950
A148: 00000342030000000000 | B148: PATRIMONIO AUTONOMO PENSIONAL | C148: 73800000000 | D148: 0 | E148: 14560885000 | F148: 88360885000 | H148: 88360885000 | J148: 5000000000 | K148: 0.05658612405 | L148: 5000000000 | N148: 5000000000 | O148: 0.05658612405 | P148: 1 | Q148: 00000342030000000000 | R148: PATRIMONIO AUTONOMO PENSIONAL | S148: 73800000000 | V148: 73800000000 | X148: 73800000000 | AG148: 14560885000 | AH148: 14560885000 | AI148: 5000000000 | AJ148: 5000000000 | AK148: 5000000000 | AL148: 5000000000
A149: 00000342040000000000 | B149: FONDO PLAN DE EXPANSION | C149: 318975936000 | D149: 128924053 | E149: 99302096166 | F149: 418278032166 | H149: 418278032166 | Q149: 00000342040000000000 | R149: FONDO PLAN DE EXPANSION | S149: 318975936000 | V149: 318975936000 | X149: 318975936000 | AG149: 99302096166 | AH149: 99173172113 | AI149: 0 | AJ149: 0 | AK149: 0 | AL149: 0
A150: 00000342060000000000 | B150: FONDO CUENTAS POR PAGAR LIBERADAS | C150: 4000000000 | D150: -3153100 | E150: -4776100 | F150: 3995223900 | H150: 3995223900 | Q150: 00000342060000000000 | R150: FONDO CUENTAS POR PAGAR LIBERADAS | S150: 4000000000 | V150: 4000000000 | X150: 4000000000 | AG150: -4776100 | AH150: -1623000 | AI150: 0 | AJ150: 0 | AK150: 0 | AL150: 0
A151: 00000342090000000000 | B151: TRANFERENCIAS ADMINISTRACION CENTRAL - RIO BOGOTA | C151: 2795000000 | F151: 2795000000 | H151: 2795000000 | Q151: 00000342090000000000 | R151: TRANFERENCIAS ADMINISTRACION CENTRAL - RIO BOGOTA | S151: 2795000000 | V151: 2795000000 | X151: 2795000000 | AG151: 0 | AH151: 0 | AI151: 0 | AJ151: 0 | AK151: 0 | AL151: 0
A152: 00000342100000000000 | B152: FONDO EQUIPOS SINIESTRADOS | C152: 2000000000 | F152: 2000000000 | H152: 2000000000 | Q152: 00000342100000000000 | R152: FONDO EQUIPOS SINIESTRADOS | S152: 2000000000 | V152: 2000000000 | X152: 2000000000 | AG152: 0 | AH152: 0 | AI152: 0 | AJ152: 0 | AK152: 0 | AL152: 0
A153: 00000342120000000000 | B153: FONDO REPOSICION EQUIPOS ASEO | C153: 3782557000 | F153: 3782557000 | H153: 3782557000 | I153: 119512134 | J153: 499091084 | K153: 0.1319454232 | L153: 571891248 | M153: 119512134 | N153: 499091084 | O153: 0.1319454232 | P153: 0.8727027835 | Q153: 00000342120000000000 | R153: FONDO REPOSICION EQUIPOS ASEO | S153: 3782557000 | V153: 3782557000 | X153: 3782557000 | AG153: 0 | AH153: 0 | AI153: 499091084 | AJ153: 379578950 | AK153: 499091084 | AL153: 379578950
A154: 00000342140000000000 | B154: TRANSFERENCIAS ENTIDADES DISTRITALES | J154: 0 | K154: 0 | Q154: 00000342140000000000 | R154: TRANSFERENCIAS ENTIDADES DISTRITALES | Y154: 0 | Z154: 0 | AA154: 0 | AG154: 0 | AH154: 0 | AI154: 0 | AJ154: 0 | AK154: 0 | AL154: 0
A155: 00000342160000000000 | B155: FONDO OBLIGACIONES CONTINGENTES | C155: 1495201000 | F155: 1495201000 | H155: 1495201000 | Q155: 00000342160000000000 | R155: FONDO OBLIGACIONES CONTINGENTES | S155: 1495201000 | V155: 1495201000 | X155: 1495201000 | AG155: 0 | AH155: 0 | AI155: 0 | AJ155: 0 | AK155: 0 | AL155: 0
A156: 343000000000000 | B156: CUENTAS POR PAGAR | C156: 565023385000 | D156: -1843581364 | E156: 11307332203 | F156: 576330717203 | H156: 576330717203 | I156: -4075221574 | J156: 478143946794 | K156: 0.8296346742 | L156: 206320409018 | M156: 22335634363 | N156: 157594124844 | O156: 0.2734439101 | P156: 0.7638319718 | Q156: 343000000000000 | R156: CUENTAS POR PAGAR | S156: 565023385000 | T156: 14064202605 | U156: 14064202605 | V156: 579087587605 | X156: 579087587605 | Y156: 485060673038 | Z156: 485060673038 | AA156: 0.8376292005 | AB156: 45639981465 | AC156: 5003273871 | AD156: 5003273871 | AE156: 0.008639925942 | AF156: 0.1096248007 | AG156: -2756870402 | AH156: -913289038 | AI156: -6916726244 | AJ156: -2841504670 | AK156: 152590850973 | AL156: 130255216610
A157: 00000343000000000000 | B157: CUENTAS POR PAGAR | C157: 565023385000 | D157: -1843581364 | E157: 11307332203 | F157: 576330717203 | H157: 576330717203 | I157: -4075221574 | J157: 478143946794 | K157: 0.8296346742 | L157: 206320409018 | M157: 22335634363 | N157: 157594124844 | O157: 0.2734439101 | P157: 0.7638319718 | Q157: 00000343000000000000 | R157: CUENTAS POR PAGAR | S157: 565023385000 | T157: 14064202605 | U157: 14064202605 | V157: 579087587605 | X157: 579087587605 | Y157: 485060673038 | Z157: 485060673038 | AA157: 0.8376292005 | AB157: 45639981465 | AC157: 5003273871 | AD157: 5003273871 | AE157: 0.008639925942 | AF157: 0.1096248007 | AG157: -2756870402 | AH157: -913289038 | AI157: -6916726244 | AJ157: -2841504670 | AK157: 152590850973 | AL157: 130255216610
A158: 400000000000000 | B158: DISPONIBILIDAD FINAL | C158: 111809729000 | D158: 0 | E158: 0 | F158: 111809729000 | H158: 111809729000 | Q158: 400000000000000 | R158: DISPONIBILIDAD FINAL | S158: 111809729000 | T158: 0 | U158: 0 | V158: 111809729000 | X158: 111809729000 | AG158: 0 | AH158: 0 | AI158: 0 | AJ158: 0 | AK158: 0 | AL158: 0
A159: 00000400000000000000 | B159: DISPONIBILIDAD FINAL | C159: 111809729000 | D159: 0 | E159: 0 | F159: 111809729000 | H159: 111809729000 | Q159: 00000400000000000000 | R159: DISPONIBILIDAD FINAL | S159: 111809729000 | T159: 0 | U159: 0 | V159: 111809729000 | X159: 111809729000 | AG159: 0 | AH159: 0 | AI159: 0 | AJ159: 0 | AK159: 0 | AL159: 0
